Body,Body Name,Date,TransNo,Amount � (Excl VAT),Supplier name,Supplier ID,Expense Area,Expense Type,Expense Code
http://statistics.data.gov.uk/id/local-authority/00BF,London Borough of Sutton,14/11/2016,6896247,"1,000.00",9th Carshalton Scout Group (Cub Section),28448,"Environment, Housing & Regeneration Directorate",Assistance to Voluntary Organisations,F471
http://statistics.data.gov.uk/id/local-authority/00BF,London Borough of Sutton,01/01/2013,6896101,"1,950.10",A K Gulati  & Co,18813,Peoples Services Directorate,Children Assessments,G329
http://statistics.data.gov.uk/id/local-authority/00BF,London Borough of Sutton,02/11/2016,6895264,"1,290.00",Redacted,99891,"Environment, Housing & Regeneration Directorate",Fees -General-Vatable,S100
http://statistics.data.gov.uk/id/local-authority/00BF,London Borough of Sutton,31/10/2016,1227028,"1,216.00",A Star Transport Ltd,24386,Peoples Services Directorate,Hired Peoples Transport (Children),E072
http://statistics.data.gov.uk/id/local-authority/00BF,London Borough of Sutton,15/11/2016,6896301,725.00,A T Sound Hire,10306,Resources Directorate,Special,D535
http://statistics.data.gov.uk/id/local-authority/00BF,London Borough of Sutton,24/10/2016,6894814,772.10,Absolute Care Services Ltd,10021,Peoples Services Directorate,Homecare Core Services,G336
http://statistics.data.gov.uk/id/local-authority/00BF,London Borough of Sutton,31/10/2016,6894973,"4,620.00",Absolute Care Services Ltd,10021,Peoples Services Directorate,Homecare Core Services,G336
http://statistics.data.gov.uk/id/local-authority/00BF,London Borough of Sutton,31/10/2016,6894974,877.80,Absolute Care Services Ltd,10021,Peoples Services Directorate,Homecare Core Services,G336
http://statistics.data.gov.uk/id/local-authority/00BF,London Borough of Sutton,31/10/2016,6894988,"4,828.75",Absolute Care Services Ltd,10021,Peoples Services Directorate,Homecare Core Services,G336
http://statistics.data.gov.uk/id/local-authority/00BF,London Borough of Sutton,31/10/2016,6894989,"6,902.75",Absolute Care Services Ltd,10021,Peoples Services Directorate,Homecare Core Services,G336
http://statistics.data.gov.uk/id/local-authority/00BF,London Borough of Sutton,31/10/2016,6895278,772.10,Absolute Care Services Ltd,10021,Peoples Services Directorate,Homecare Core Services,G336
http://statistics.data.gov.uk/id/local-authority/00BF,London Borough of Sutton,07/11/2016,6895498,"4,828.75",Absolute Care Services Ltd,10021,Peoples Services Directorate,Homecare Core Services,G336
http://statistics.data.gov.uk/id/local-authority/00BF,London Borough of Sutton,07/11/2016,6895499,"6,902.75",Absolute Care Services Ltd,10021,Peoples Services Directorate,Homecare Core Services,G336
http://statistics.data.gov.uk/id/local-authority/00BF,London Borough of Sutton,07/11/2016,6895500,"4,620.00",Absolute Care Services Ltd,10021,Peoples Services Directorate,Homecare Core Services,G336
http://statistics.data.gov.uk/id/local-authority/00BF,London Borough of Sutton,07/11/2016,6895501,877.80,Absolute Care Services Ltd,10021,Peoples Services Directorate,Homecare Core Services,G336
http://statistics.data.gov.uk/id/local-authority/00BF,London Borough of Sutton,07/11/2016,6895789,772.10,Absolute Care Services Ltd,10021,Peoples Services Directorate,Homecare Core Services,G336
http://statistics.data.gov.uk/id/local-authority/00BF,London Borough of Sutton,14/11/2016,6896054,"4,828.75",Absolute Care Services Ltd,10021,Peoples Services Directorate,Homecare Core Services,G336
http://statistics.data.gov.uk/id/local-authority/00BF,London Borough of Sutton,14/11/2016,6896055,"6,902.75",Absolute Care Services Ltd,10021,Peoples Services Directorate,Homecare Core Services,G336
http://statistics.data.gov.uk/id/local-authority/00BF,London Borough of Sutton,14/11/2016,6896056,"4,620.00",Absolute Care Services Ltd,10021,Peoples Services Directorate,Homecare Core Services,G336
http://statistics.data.gov.uk/id/local-authority/00BF,London Borough of Sutton,14/11/2016,6896057,877.80,Absolute Care Services Ltd,10021,Peoples Services Directorate,Homecare Core Services,G336
http://statistics.data.gov.uk/id/local-authority/00BF,London Borough of Sutton,23/10/2016,40008977,676.11,Absolute Care Services Ltd,10021,Peoples Services Directorate,Home Care,G334
http://statistics.data.gov.uk/id/local-authority/00BF,London Borough of Sutton,23/10/2016,40008987,518.08,Absolute Care Services Ltd,10021,Peoples Services Directorate,Home Care,G334
http://statistics.data.gov.uk/id/local-authority/00BF,London Borough of Sutton,23/10/2016,40009028,556.12,Absolute Care Services Ltd,10021,Peoples Services Directorate,Home Care,G334
http://statistics.data.gov.uk/id/local-authority/00BF,London Borough of Sutton,23/10/2016,40009304,"2,415.00",Absolute Care Services Ltd,10021,Peoples Services Directorate,Home Care,G334
http://statistics.data.gov.uk/id/local-authority/00BF,London Borough of Sutton,23/10/2016,40009499,455.00,Absolute Care Services Ltd,10021,Peoples Services Directorate,Home Care,G334
http://statistics.data.gov.uk/id/local-authority/00BF,London Borough of Sutton,30/10/2016,40009585,"2,415.00",Absolute Care Services Ltd,10021,Peoples Services Directorate,Home Care,G334
http://statistics.data.gov.uk/id/local-authority/00BF,London Borough of Sutton,23/10/2016,40009778,423.05,Absolute Care Services Ltd,10021,Peoples Services Directorate,Home Care,G334
http://statistics.data.gov.uk/id/local-authority/00BF,London Borough of Sutton,23/10/2016,40009782,564.06,Absolute Care Services Ltd,10021,Peoples Services Directorate,Home Care,G334
http://statistics.data.gov.uk/id/local-authority/00BF,London Borough of Sutton,23/10/2016,40009783,570.78,Absolute Care Services Ltd,10021,Peoples Services Directorate,Home Care,G334
http://statistics.data.gov.uk/id/local-authority/00BF,London Borough of Sutton,23/10/2016,40009807,517.06,Absolute Care Services Ltd,10021,Peoples Services Directorate,Home Care,G334
http://statistics.data.gov.uk/id/local-authority/00BF,London Borough of Sutton,23/10/2016,40009817,443.19,Absolute Care Services Ltd,10021,Peoples Services Directorate,Home Care,G334
http://statistics.data.gov.uk/id/local-authority/00BF,London Borough of Sutton,23/10/2016,40009818,725.22,Absolute Care Services Ltd,10021,Peoples Services Directorate,Home Care,G334
http://statistics.data.gov.uk/id/local-authority/00BF,London Borough of Sutton,23/10/2016,40009830,529.11,Absolute Care Services Ltd,10021,Peoples Services Directorate,Home Care,G334
http://statistics.data.gov.uk/id/local-authority/00BF,London Borough of Sutton,30/10/2016,40009863,546.00,Absolute Care Services Ltd,10021,Peoples Services Directorate,Home Care,G334
http://statistics.data.gov.uk/id/local-authority/00BF,London Borough of Sutton,30/10/2016,40009868,455.00,Absolute Care Services Ltd,10021,Peoples Services Directorate,Home Care,G334
http://statistics.data.gov.uk/id/local-authority/00BF,London Borough of Sutton,30/10/2016,40010750,437.97,Absolute Care Services Ltd,10021,Peoples Services Directorate,Home Care,G334
http://statistics.data.gov.uk/id/local-authority/00BF,London Borough of Sutton,30/10/2016,40010776,423.05,Absolute Care Services Ltd,10021,Peoples Services Directorate,Home Care,G334
http://statistics.data.gov.uk/id/local-authority/00BF,London Borough of Sutton,30/10/2016,40010780,564.06,Absolute Care Services Ltd,10021,Peoples Services Directorate,Home Care,G334
http://statistics.data.gov.uk/id/local-authority/00BF,London Borough of Sutton,30/10/2016,40010781,564.06,Absolute Care Services Ltd,10021,Peoples Services Directorate,Home Care,G334
http://statistics.data.gov.uk/id/local-authority/00BF,London Borough of Sutton,30/10/2016,40010837,517.06,Absolute Care Services Ltd,10021,Peoples Services Directorate,Home Care,G334
http://statistics.data.gov.uk/id/local-authority/00BF,London Borough of Sutton,30/10/2016,40010847,725.22,Absolute Care Services Ltd,10021,Peoples Services Directorate,Home Care,G334
http://statistics.data.gov.uk/id/local-authority/00BF,London Borough of Sutton,30/10/2016,40010859,540.56,Absolute Care Services Ltd,10021,Peoples Services Directorate,Home Care,G334
http://statistics.data.gov.uk/id/local-authority/00BF,London Borough of Sutton,30/10/2016,40010888,556.12,Absolute Care Services Ltd,10021,Peoples Services Directorate,Home Care,G334
http://statistics.data.gov.uk/id/local-authority/00BF,London Borough of Sutton,30/10/2016,40010952,518.08,Absolute Care Services Ltd,10021,Peoples Services Directorate,Home Care,G334
http://statistics.data.gov.uk/id/local-authority/00BF,London Borough of Sutton,30/10/2016,40011022,455.74,Absolute Care Services Ltd,10021,Peoples Services Directorate,Home Care,G334
http://statistics.data.gov.uk/id/local-authority/00BF,London Borough of Sutton,13/11/2016,40015358,556.12,Absolute Care Services Ltd,10021,Peoples Services Directorate,Home Care,G334
http://statistics.data.gov.uk/id/local-authority/00BF,London Borough of Sutton,13/11/2016,40015372,518.08,Absolute Care Services Ltd,10021,Peoples Services Directorate,Home Care,G334
http://statistics.data.gov.uk/id/local-authority/00BF,London Borough of Sutton,06/11/2016,40015407,423.05,Absolute Care Services Ltd,10021,Peoples Services Directorate,Home Care,G334
http://statistics.data.gov.uk/id/local-authority/00BF,London Borough of Sutton,06/11/2016,40015411,564.06,Absolute Care Services Ltd,10021,Peoples Services Directorate,Home Care,G334
http://statistics.data.gov.uk/id/local-authority/00BF,London Borough of Sutton,06/11/2016,40015412,564.06,Absolute Care Services Ltd,10021,Peoples Services Directorate,Home Care,G334
http://statistics.data.gov.uk/id/local-authority/00BF,London Borough of Sutton,06/11/2016,40015447,517.06,Absolute Care Services Ltd,10021,Peoples Services Directorate,Home Care,G334
http://statistics.data.gov.uk/id/local-authority/00BF,London Borough of Sutton,06/11/2016,40015458,725.22,Absolute Care Services Ltd,10021,Peoples Services Directorate,Home Care,G334
http://statistics.data.gov.uk/id/local-authority/00BF,London Borough of Sutton,06/11/2016,40015470,529.11,Absolute Care Services Ltd,10021,Peoples Services Directorate,Home Care,G334
http://statistics.data.gov.uk/id/local-authority/00BF,London Borough of Sutton,13/11/2016,40015473,455.74,Absolute Care Services Ltd,10021,Peoples Services Directorate,Home Care,G334
http://statistics.data.gov.uk/id/local-authority/00BF,London Borough of Sutton,13/11/2016,40015504,437.97,Absolute Care Services Ltd,10021,Peoples Services Directorate,Home Care,G334
http://statistics.data.gov.uk/id/local-authority/00BF,London Borough of Sutton,06/11/2016,40015523,556.12,Absolute Care Services Ltd,10021,Peoples Services Directorate,Home Care,G334
http://statistics.data.gov.uk/id/local-authority/00BF,London Borough of Sutton,06/11/2016,40015547,518.08,Absolute Care Services Ltd,10021,Peoples Services Directorate,Home Care,G334
http://statistics.data.gov.uk/id/local-authority/00BF,London Borough of Sutton,06/11/2016,40015581,455.74,Absolute Care Services Ltd,10021,Peoples Services Directorate,Home Care,G334
http://statistics.data.gov.uk/id/local-authority/00BF,London Borough of Sutton,06/11/2016,40015599,437.97,Absolute Care Services Ltd,10021,Peoples Services Directorate,Home Care,G334
http://statistics.data.gov.uk/id/local-authority/00BF,London Borough of Sutton,26/09/2016,40015670,570.78,Absolute Care Services Ltd,10021,Peoples Services Directorate,Home Care,G334
http://statistics.data.gov.uk/id/local-authority/00BF,London Borough of Sutton,26/09/2016,40015691,564.06,Absolute Care Services Ltd,10021,Peoples Services Directorate,Home Care,G334
http://statistics.data.gov.uk/id/local-authority/00BF,London Borough of Sutton,26/09/2016,40015693,517.06,Absolute Care Services Ltd,10021,Peoples Services Directorate,Home Care,G334
http://statistics.data.gov.uk/id/local-authority/00BF,London Borough of Sutton,26/09/2016,40015697,540.54,Absolute Care Services Ltd,10021,Peoples Services Directorate,Home Care,G334
http://statistics.data.gov.uk/id/local-authority/00BF,London Borough of Sutton,26/09/2016,40015712,423.05,Absolute Care Services Ltd,10021,Peoples Services Directorate,Home Care,G334
http://statistics.data.gov.uk/id/local-authority/00BF,London Borough of Sutton,29/09/2016,40015725,503.63,Absolute Care Services Ltd,10021,Peoples Services Directorate,Home Care,G334
http://statistics.data.gov.uk/id/local-authority/00BF,London Borough of Sutton,13/11/2016,40016199,442.00,Absolute Care Services Ltd,10021,Peoples Services Directorate,Home Care,G334
http://statistics.data.gov.uk/id/local-authority/00BF,London Borough of Sutton,13/11/2016,40016235,"2,415.00",Absolute Care Services Ltd,10021,Peoples Services Directorate,Home Care,G334
http://statistics.data.gov.uk/id/local-authority/00BF,London Borough of Sutton,06/11/2016,40016323,455.00,Absolute Care Services Ltd,10021,Peoples Services Directorate,Home Care,G334
http://statistics.data.gov.uk/id/local-authority/00BF,London Borough of Sutton,06/11/2016,40016341,"2,415.00",Absolute Care Services Ltd,10021,Peoples Services Directorate,Home Care,G334
http://statistics.data.gov.uk/id/local-authority/00BF,London Borough of Sutton,27/10/2016,6895059,"1,095.70",Acacia Groundcare Equipment Rental Ltd,21843,"Environment, Housing & Regeneration Directorate",Materials - General,F100
http://statistics.data.gov.uk/id/local-authority/00BF,London Borough of Sutton,31/10/2016,1226879,"3,108.00",Access Mobility Transport Ltd,27456,Peoples Services Directorate,Hired Peoples Transport (Children),E072
http://statistics.data.gov.uk/id/local-authority/00BF,London Borough of Sutton,31/10/2016,1226880,"1,140.00",Access Mobility Transport Ltd,27456,Peoples Services Directorate,Hired Peoples Transport (Children),E072
http://statistics.data.gov.uk/id/local-authority/00BF,London Borough of Sutton,16/11/2016,6896505,925.00,Achilles Information Ltd,23642,Chief Executive's Directorate,Other Services,F340
http://statistics.data.gov.uk/id/local-authority/00BF,London Borough of Sutton,04/11/2016,40007255,"2,903.20",Acorn Lodge,15804,Peoples Services Directorate,Residential Care - Ext Provider,G310
http://statistics.data.gov.uk/id/local-authority/00BF,London Borough of Sutton,04/11/2016,40007309,"3,042.36",Acorn Residential Home,15828,Peoples Services Directorate,Residential Care - Ext Provider,G310
http://statistics.data.gov.uk/id/local-authority/00BF,London Borough of Sutton,06/09/2016,6896976,875.00,Adaram Ltd T/A Rosehill Lodging,12014,"Environment, Housing & Regeneration Directorate",Bed and Breakfast Accommodation,G400
http://statistics.data.gov.uk/id/local-authority/00BF,London Borough of Sutton,06/09/2016,6896977,875.00,Adaram Ltd T/A Rosehill Lodging,12014,"Environment, Housing & Regeneration Directorate",Bed and Breakfast Accommodation,G400
http://statistics.data.gov.uk/id/local-authority/00BF,London Borough of Sutton,04/11/2016,40007238,"7,707.14",Addiction Recovery Centres Ltd,23357,Peoples Services Directorate,Interim Placements - Ext Provider,G317
http://statistics.data.gov.uk/id/local-authority/00BF,London Borough of Sutton,02/11/2016,6895231,"177,504.54",Adecco Uk Ltd,10059,Resources Directorate,Suspense/Holding Accounts,X550
http://statistics.data.gov.uk/id/local-authority/00BF,London Borough of Sutton,26/10/2016,6895232,"240,764.68",Adecco Uk Ltd,10059,Resources Directorate,Suspense/Holding Accounts,X550
http://statistics.data.gov.uk/id/local-authority/00BF,London Borough of Sutton,19/10/2016,6895233,"182,000.09",Adecco Uk Ltd,10059,Resources Directorate,Suspense/Holding Accounts,X550
http://statistics.data.gov.uk/id/local-authority/00BF,London Borough of Sutton,19/10/2016,6895457,957.60,Adecco Uk Ltd,10059,"Environment, Housing & Regeneration Directorate",Agency Staff - Adecco,A300
http://statistics.data.gov.uk/id/local-authority/00BF,London Borough of Sutton,19/10/2016,6895458,608.40,Adecco Uk Ltd,10059,"Environment, Housing & Regeneration Directorate",Agency Staff - Adecco,A300
http://statistics.data.gov.uk/id/local-authority/00BF,London Borough of Sutton,26/10/2016,6895459,957.60,Adecco Uk Ltd,10059,"Environment, Housing & Regeneration Directorate",Agency Staff - Adecco,A300
http://statistics.data.gov.uk/id/local-authority/00BF,London Borough of Sutton,26/10/2016,6895461,608.40,Adecco Uk Ltd,10059,"Environment, Housing & Regeneration Directorate",Agency Staff - Adecco,A300
http://statistics.data.gov.uk/id/local-authority/00BF,London Borough of Sutton,05/10/2016,6895908,608.40,Adecco Uk Ltd,10059,"Environment, Housing & Regeneration Directorate",Agency Staff - Adecco,A300
http://statistics.data.gov.uk/id/local-authority/00BF,London Borough of Sutton,12/10/2016,6895909,957.60,Adecco Uk Ltd,10059,"Environment, Housing & Regeneration Directorate",Agency Staff - Adecco,A300
http://statistics.data.gov.uk/id/local-authority/00BF,London Borough of Sutton,05/10/2016,6895910,957.60,Adecco Uk Ltd,10059,"Environment, Housing & Regeneration Directorate",Agency Staff - Adecco,A300
http://statistics.data.gov.uk/id/local-authority/00BF,London Borough of Sutton,05/10/2016,6895911,439.35,Adecco Uk Ltd,10059,"Environment, Housing & Regeneration Directorate",Agency Staff - Adecco,A300
http://statistics.data.gov.uk/id/local-authority/00BF,London Borough of Sutton,12/10/2016,6895912,561.93,Adecco Uk Ltd,10059,"Environment, Housing & Regeneration Directorate",Agency Staff - Adecco,A300
http://statistics.data.gov.uk/id/local-authority/00BF,London Borough of Sutton,19/10/2016,6895924,424.20,Adecco Uk Ltd,10059,"Environment, Housing & Regeneration Directorate",Agency Staff - Adecco,A300
http://statistics.data.gov.uk/id/local-authority/00BF,London Borough of Sutton,12/10/2016,6895925,782.75,Adecco Uk Ltd,10059,"Environment, Housing & Regeneration Directorate",Agency Staff - Adecco,A300
http://statistics.data.gov.uk/id/local-authority/00BF,London Borough of Sutton,10/11/2016,6896159,"272,139.01",Adecco Uk Ltd,10059,Resources Directorate,Suspense/Holding Accounts,X550
http://statistics.data.gov.uk/id/local-authority/00BF,London Borough of Sutton,16/11/2016,6897024,957.60,Adecco Uk Ltd,10059,"Environment, Housing & Regeneration Directorate",Agency Staff - Adecco,A300
http://statistics.data.gov.uk/id/local-authority/00BF,London Borough of Sutton,16/11/2016,6897025,957.60,Adecco Uk Ltd,10059,"Environment, Housing & Regeneration Directorate",Agency Staff - Adecco,A300
http://statistics.data.gov.uk/id/local-authority/00BF,London Borough of Sutton,16/11/2016,6897026,608.40,Adecco Uk Ltd,10059,"Environment, Housing & Regeneration Directorate",Agency Staff - Adecco,A300
http://statistics.data.gov.uk/id/local-authority/00BF,London Borough of Sutton,16/11/2016,6897027,957.60,Adecco Uk Ltd,10059,"Environment, Housing & Regeneration Directorate",Agency Staff - Adecco,A300
http://statistics.data.gov.uk/id/local-authority/00BF,London Borough of Sutton,16/11/2016,6897028,583.05,Adecco Uk Ltd,10059,"Environment, Housing & Regeneration Directorate",Agency Staff - Adecco,A300
http://statistics.data.gov.uk/id/local-authority/00BF,London Borough of Sutton,16/11/2016,6897029,449.45,Adecco Uk Ltd,10059,"Environment, Housing & Regeneration Directorate",Agency Staff - Adecco,A300
http://statistics.data.gov.uk/id/local-authority/00BF,London Borough of Sutton,23/11/2016,6897161,"211,330.62",Adecco Uk Ltd,10059,Resources Directorate,Suspense/Holding Accounts,X550
http://statistics.data.gov.uk/id/local-authority/00BF,London Borough of Sutton,25/11/2016,6897162,589.76,Adecco Uk Ltd,10059,Resources Directorate,Suspense/Holding Accounts,X550
http://statistics.data.gov.uk/id/local-authority/00BF,London Borough of Sutton,01/11/2016,6895829,"1,074.80",Adt Fire & Security Plc,10063,Peoples Services Directorate,Security Systems - SCH,D880
http://statistics.data.gov.uk/id/local-authority/00BF,London Borough of Sutton,04/10/2016,6895606,"6,750.00",Advocacy For All,24795,Peoples Services Directorate,Provider Contract Payments,F470
http://statistics.data.gov.uk/id/local-authority/00BF,London Borough of Sutton,17/11/2016,6896551,"1,108.00",Affinity Sutton Homes Ltd Rent Income,24279,"Environment, Housing & Regeneration Directorate",Other Services,F340
http://statistics.data.gov.uk/id/local-authority/00BF,London Borough of Sutton,09/11/2016,6895856,888.75,Affinity Workforce Ltd,26099,Peoples Services Directorate,Agency Staff - Adecco,A300
http://statistics.data.gov.uk/id/local-authority/00BF,London Borough of Sutton,16/11/2016,6896549,"1,185.00",Affinity Workforce Ltd,26099,Peoples Services Directorate,Agency Staff - Adecco,A300
http://statistics.data.gov.uk/id/local-authority/00BF,London Borough of Sutton,23/11/2016,6897022,"1,422.00",Affinity Workforce Ltd,26099,Peoples Services Directorate,Agency Staff - Adecco,A300
http://statistics.data.gov.uk/id/local-authority/00BF,London Borough of Sutton,04/11/2016,40007656,"7,511.00",Aims Care Partnership (Leighton House Ltd),12628,Peoples Services Directorate,Residential Care - Ext Provider,G310
http://statistics.data.gov.uk/id/local-authority/00BF,London Borough of Sutton,04/11/2016,40007258,"5,278.00",Aitch Care Homes,20446,Peoples Services Directorate,Residential Care - Ext Provider,G310
http://statistics.data.gov.uk/id/local-authority/00BF,London Borough of Sutton,04/11/2016,40007359,"8,400.16",Aitch Care Homes,20446,Peoples Services Directorate,Residential Care - Ext Provider,G310
http://statistics.data.gov.uk/id/local-authority/00BF,London Borough of Sutton,02/11/2016,6895178,450.00,AJ Lucas Skip Hire,21254,Peoples Services Directorate,Equipment -General,Y520
http://statistics.data.gov.uk/id/local-authority/00BF,London Borough of Sutton,16/11/2016,6896750,"22,893.75",Aldermore Bank PLC,25028,"Environment, Housing & Regeneration Directorate",Hired Vehicles,E070
http://statistics.data.gov.uk/id/local-authority/00BF,London Borough of Sutton,15/11/2016,6896287,"1,000.00",All In Wallington,26878,"Environment, Housing & Regeneration Directorate",Assistance to Voluntary Organisations,F471
http://statistics.data.gov.uk/id/local-authority/00BF,London Borough of Sutton,01/11/2016,6895245,"1,454.45",All Security Ltd,97190,"Environment, Housing & Regeneration Directorate",Agency Services,G431
http://statistics.data.gov.uk/id/local-authority/00BF,London Borough of Sutton,31/10/2016,6895057,924.00,Allan White Motors Ltd,14584,"Environment, Housing & Regeneration Directorate",Centralised Transport Hire,E068
http://statistics.data.gov.uk/id/local-authority/00BF,London Borough of Sutton,31/10/2016,6895062,464.80,Allan White Motors Ltd,14584,"Environment, Housing & Regeneration Directorate",Centralised Transport Hire,E068
http://statistics.data.gov.uk/id/local-authority/00BF,London Borough of Sutton,02/11/2016,6895256,924.00,Allan White Motors Ltd,14584,"Environment, Housing & Regeneration Directorate",Centralised Transport Hire,E068
http://statistics.data.gov.uk/id/local-authority/00BF,London Borough of Sutton,18/10/2016,6895493,"1,001.00",Allan White Motors Ltd,14584,"Environment, Housing & Regeneration Directorate",Centralised Transport Hire,E068
http://statistics.data.gov.uk/id/local-authority/00BF,London Borough of Sutton,15/11/2016,6896168,"1,001.00",Allan White Motors Ltd,14584,"Environment, Housing & Regeneration Directorate",Centralised Transport Hire,E068
http://statistics.data.gov.uk/id/local-authority/00BF,London Borough of Sutton,16/11/2016,6896282,924.00,Allan White Motors Ltd,14584,"Environment, Housing & Regeneration Directorate",Centralised Transport Hire,E068
http://statistics.data.gov.uk/id/local-authority/00BF,London Borough of Sutton,17/11/2016,6896385,924.00,Allan White Motors Ltd,14584,"Environment, Housing & Regeneration Directorate",Centralised Transport Hire,E068
http://statistics.data.gov.uk/id/local-authority/00BF,London Borough of Sutton,04/11/2016,40007249,"6,234.48",Allied Care (Mhs) Ltd,10145,Peoples Services Directorate,Residential Care - Ext Provider,G310
http://statistics.data.gov.uk/id/local-authority/00BF,London Borough of Sutton,07/11/2016,6895532,500.00,Alljos Services Limited,99815,"Environment, Housing & Regeneration Directorate",Building Works,D421
http://statistics.data.gov.uk/id/local-authority/00BF,London Borough of Sutton,09/11/2016,6895845,420.00,Alljos Services Ltd,99815,"Environment, Housing & Regeneration Directorate",Building Works,D421
http://statistics.data.gov.uk/id/local-authority/00BF,London Borough of Sutton,21/11/2016,6896683,498.00,Alljos Services Ltd,99815,"Environment, Housing & Regeneration Directorate",Building Works,D421
http://statistics.data.gov.uk/id/local-authority/00BF,London Borough of Sutton,30/09/2016,6893868,"1,147.49",Allstar Business Solutions,24482,"Environment, Housing & Regeneration Directorate",Fuel Etc,E030
http://statistics.data.gov.uk/id/local-authority/00BF,London Borough of Sutton,15/10/2016,6894450,963.75,Allstar Business Solutions,24482,"Environment, Housing & Regeneration Directorate",Fuel Etc,E030
http://statistics.data.gov.uk/id/local-authority/00BF,London Borough of Sutton,04/11/2016,40007672,"8,013.56",Allswell Care Services Ltd,20761,Peoples Services Directorate,Residential Care - Ext Provider,G310
http://statistics.data.gov.uk/id/local-authority/00BF,London Borough of Sutton,08/11/2016,1226960,858.60,Amy Johnson Day Nursery,22840,Peoples Services Directorate,PVI - Pupil Premium,G407
http://statistics.data.gov.uk/id/local-authority/00BF,London Borough of Sutton,22/11/2016,1227748,"2,625.00",Amy Johnson Day Nursery,22840,Peoples Services Directorate,Top-up Funding,G064
http://statistics.data.gov.uk/id/local-authority/00BF,London Borough of Sutton,29/11/2016,1227770,718.99,Anchor Housing,10181,"Environment, Housing & Regeneration Directorate",Supporting People - Older People Services,H244
http://statistics.data.gov.uk/id/local-authority/00BF,London Borough of Sutton,04/11/2016,40007250,"2,842.00",Angel Home AS Ltd,10173,Peoples Services Directorate,Residential Care - Ext Provider,G310
http://statistics.data.gov.uk/id/local-authority/00BF,London Borough of Sutton,04/11/2016,40007580,"2,458.96",Angel Home AS Ltd,10173,Peoples Services Directorate,Residential Care - Ext Provider,G310
http://statistics.data.gov.uk/id/local-authority/00BF,London Borough of Sutton,04/11/2016,40007624,"2,131.92",Angel Home AS Ltd,10173,Peoples Services Directorate,Residential Care - Ext Provider,G310
http://statistics.data.gov.uk/id/local-authority/00BF,London Borough of Sutton,04/11/2016,40007626,"2,200.00",Angel Home AS Ltd,10173,Peoples Services Directorate,Residential Care - Ext Provider,G310
http://statistics.data.gov.uk/id/local-authority/00BF,London Borough of Sutton,04/11/2016,40007648,"2,056.80",Angel Home AS Ltd,10173,Peoples Services Directorate,Residential Care - Ext Provider,G310
http://statistics.data.gov.uk/id/local-authority/00BF,London Borough of Sutton,01/11/2016,6894826,"2,360.00",Angel Lettings,18658,"Environment, Housing & Regeneration Directorate",General Office Expenses,F235
http://statistics.data.gov.uk/id/local-authority/00BF,London Borough of Sutton,09/11/2016,6896916,780.00,Angell Welding,21146,"Environment, Housing & Regeneration Directorate",Labour,E010
http://statistics.data.gov.uk/id/local-authority/00BF,London Borough of Sutton,19/11/2016,6896811,"3,550.00",Anglia Ruskin University,26864,Peoples Services Directorate,Training - Course Fees,A520
http://statistics.data.gov.uk/id/local-authority/00BF,London Borough of Sutton,17/10/2016,6894970,"3,187.50",Ann-Marie Drake,28928,Peoples Services Directorate,Contractual Consultant Fees,G430
http://statistics.data.gov.uk/id/local-authority/00BF,London Borough of Sutton,21/10/2016,6894610,"1,379.60",Antonio D'agostino,28665,Peoples Services Directorate,Provider Contract Payments,F470
http://statistics.data.gov.uk/id/local-authority/00BF,London Borough of Sutton,28/10/2016,6894955,"1,242.40",Antonio D'agostino,28665,Peoples Services Directorate,Provider Contract Payments,F470
http://statistics.data.gov.uk/id/local-authority/00BF,London Borough of Sutton,04/11/2016,6895358,728.15,Antonio D'agostino,28665,Peoples Services Directorate,Provider Contract Payments,F470
http://statistics.data.gov.uk/id/local-authority/00BF,London Borough of Sutton,09/11/2016,6895706,644.15,Antonio D'agostino,28665,Peoples Services Directorate,Provider Contract Payments,F470
http://statistics.data.gov.uk/id/local-authority/00BF,London Borough of Sutton,18/11/2016,6896571,"1,450.05",Antonio D'agostino,28665,Peoples Services Directorate,Provider Contract Payments,F470
http://statistics.data.gov.uk/id/local-authority/00BF,London Borough of Sutton,23/11/2016,6896847,668.15,Antonio D'agostino,28665,Peoples Services Directorate,Provider Contract Payments,F470
http://statistics.data.gov.uk/id/local-authority/00BF,London Borough of Sutton,31/10/2016,6896078,"1,275.00",Aoc Archaeology Group,28515,Peoples Services Directorate,Other,Y194
http://statistics.data.gov.uk/id/local-authority/00BF,London Borough of Sutton,30/09/2016,6895830,"7,551.11",Apetito Ltd,10206,Peoples Services Directorate,Provisions - General,F150
http://statistics.data.gov.uk/id/local-authority/00BF,London Borough of Sutton,02/11/2016,6895391,"1,808.40",Architype Ltd,25419,Peoples Services Directorate,External Fees  - Architects,Y100
http://statistics.data.gov.uk/id/local-authority/00BF,London Borough of Sutton,10/11/2016,6896304,"71,952.00",Architype Ltd,25419,Peoples Services Directorate,External Fees  - Architects,Y100
http://statistics.data.gov.uk/id/local-authority/00BF,London Borough of Sutton,08/11/2016,6896347,756.00,Architype Ltd,25419,Peoples Services Directorate,External Fees  - Architects,Y100
http://statistics.data.gov.uk/id/local-authority/00BF,London Borough of Sutton,09/11/2016,6896264,"1,898.99",Arnold & Self,16110,"Environment, Housing & Regeneration Directorate",Bed and Breakfast Accommodation,G400
http://statistics.data.gov.uk/id/local-authority/00BF,London Borough of Sutton,09/11/2016,6896480,"4,703.97",Arnold & Self,16110,"Environment, Housing & Regeneration Directorate",Bed and Breakfast Accommodation,G400
http://statistics.data.gov.uk/id/local-authority/00BF,London Borough of Sutton,14/11/2016,6896207,"2,677.07",Ars.ltd T/A Wolsey Probate Client Account,99827,Peoples Services Directorate,Creditors - Sundry,X450
http://statistics.data.gov.uk/id/local-authority/00BF,London Borough of Sutton,01/10/2016,40010584,"1,049.97",Ashbrook House Ltd,23499,Peoples Services Directorate,Supported Living - Ext Provider,G306
http://statistics.data.gov.uk/id/local-authority/00BF,London Borough of Sutton,04/11/2016,40007223,"7,000.04",Ashcroft Care Services,22571,Peoples Services Directorate,Residential Care - Ext Provider,G310
http://statistics.data.gov.uk/id/local-authority/00BF,London Borough of Sutton,01/11/2016,40006853,884.48,Ashlong House Ltd,23101,Peoples Services Directorate,Supported Living - Ext Provider,G306
http://statistics.data.gov.uk/id/local-authority/00BF,London Borough of Sutton,04/11/2016,40007236,"5,436.00",Ashlong House Ltd,23101,Peoples Services Directorate,Residential Care - Ext Provider,G310
http://statistics.data.gov.uk/id/local-authority/00BF,London Borough of Sutton,01/10/2016,40010583,"1,470.34",Ashlong House Ltd,23101,Peoples Services Directorate,Supported Living - Ext Provider,G306
http://statistics.data.gov.uk/id/local-authority/00BF,London Borough of Sutton,01/09/2016,6894907,"1,085.00",Assetgrove Lettings Ltd,28820,"Environment, Housing & Regeneration Directorate",Bed and Breakfast Accommodation,G400
http://statistics.data.gov.uk/id/local-authority/00BF,London Borough of Sutton,01/09/2016,6894920,752.00,Assetgrove Lettings Ltd,28820,"Environment, Housing & Regeneration Directorate",Bed and Breakfast Accommodation,G400
http://statistics.data.gov.uk/id/local-authority/00BF,London Borough of Sutton,01/09/2016,6894922,961.00,Assetgrove Lettings Ltd,28820,"Environment, Housing & Regeneration Directorate",Bed and Breakfast Accommodation,G400
http://statistics.data.gov.uk/id/local-authority/00BF,London Borough of Sutton,01/11/2016,6895268,"1,269.00",Assetgrove Lettings Ltd,28820,"Environment, Housing & Regeneration Directorate",Bed and Breakfast Accommodation,G400
http://statistics.data.gov.uk/id/local-authority/00BF,London Borough of Sutton,01/11/2016,6895270,"1,457.00",Assetgrove Lettings Ltd,28820,"Environment, Housing & Regeneration Directorate",Bed and Breakfast Accommodation,G400
http://statistics.data.gov.uk/id/local-authority/00BF,London Borough of Sutton,01/11/2016,6895271,"1,457.00",Assetgrove Lettings Ltd,28820,"Environment, Housing & Regeneration Directorate",Bed and Breakfast Accommodation,G400
http://statistics.data.gov.uk/id/local-authority/00BF,London Borough of Sutton,01/11/2016,6895290,910.00,Assetgrove Lettings Ltd,28820,"Environment, Housing & Regeneration Directorate",Bed and Breakfast Accommodation,G400
http://statistics.data.gov.uk/id/local-authority/00BF,London Borough of Sutton,01/11/2016,6895291,"1,085.00",Assetgrove Lettings Ltd,28820,"Environment, Housing & Regeneration Directorate",Bed and Breakfast Accommodation,G400
http://statistics.data.gov.uk/id/local-authority/00BF,London Borough of Sutton,01/11/2016,6895292,910.00,Assetgrove Lettings Ltd,28820,"Environment, Housing & Regeneration Directorate",Bed and Breakfast Accommodation,G400
http://statistics.data.gov.uk/id/local-authority/00BF,London Borough of Sutton,01/11/2016,6895293,"1,457.00",Assetgrove Lettings Ltd,28820,"Environment, Housing & Regeneration Directorate",Bed and Breakfast Accommodation,G400
http://statistics.data.gov.uk/id/local-authority/00BF,London Borough of Sutton,01/11/2016,6895294,"1,457.00",Assetgrove Lettings Ltd,28820,"Environment, Housing & Regeneration Directorate",Bed and Breakfast Accommodation,G400
http://statistics.data.gov.uk/id/local-authority/00BF,London Borough of Sutton,01/11/2016,6895295,"1,085.00",Assetgrove Lettings Ltd,28820,"Environment, Housing & Regeneration Directorate",Bed and Breakfast Accommodation,G400
http://statistics.data.gov.uk/id/local-authority/00BF,London Borough of Sutton,01/11/2016,6895296,"1,178.00",Assetgrove Lettings Ltd,28820,"Environment, Housing & Regeneration Directorate",Bed and Breakfast Accommodation,G400
http://statistics.data.gov.uk/id/local-authority/00BF,London Borough of Sutton,01/11/2016,6895297,"1,085.00",Assetgrove Lettings Ltd,28820,"Environment, Housing & Regeneration Directorate",Bed and Breakfast Accommodation,G400
http://statistics.data.gov.uk/id/local-authority/00BF,London Borough of Sutton,01/11/2016,6895298,"1,085.00",Assetgrove Lettings Ltd,28820,"Environment, Housing & Regeneration Directorate",Bed and Breakfast Accommodation,G400
http://statistics.data.gov.uk/id/local-authority/00BF,London Borough of Sutton,01/11/2016,6895299,"1,178.00",Assetgrove Lettings Ltd,28820,"Environment, Housing & Regeneration Directorate",Bed and Breakfast Accommodation,G400
http://statistics.data.gov.uk/id/local-authority/00BF,London Borough of Sutton,01/11/2016,6895300,"1,085.00",Assetgrove Lettings Ltd,28820,"Environment, Housing & Regeneration Directorate",Bed and Breakfast Accommodation,G400
http://statistics.data.gov.uk/id/local-authority/00BF,London Borough of Sutton,01/11/2016,6895301,"1,240.00",Assetgrove Lettings Ltd,28820,"Environment, Housing & Regeneration Directorate",Bed and Breakfast Accommodation,G400
http://statistics.data.gov.uk/id/local-authority/00BF,London Borough of Sutton,01/11/2016,6895302,"1,085.00",Assetgrove Lettings Ltd,28820,"Environment, Housing & Regeneration Directorate",Bed and Breakfast Accommodation,G400
http://statistics.data.gov.uk/id/local-authority/00BF,London Borough of Sutton,01/11/2016,6895303,"1,085.00",Assetgrove Lettings Ltd,28820,"Environment, Housing & Regeneration Directorate",Bed and Breakfast Accommodation,G400
http://statistics.data.gov.uk/id/local-authority/00BF,London Borough of Sutton,01/11/2016,6895304,"1,178.00",Assetgrove Lettings Ltd,28820,"Environment, Housing & Regeneration Directorate",Bed and Breakfast Accommodation,G400
http://statistics.data.gov.uk/id/local-authority/00BF,London Borough of Sutton,01/11/2016,6895305,"1,619.75",Assetgrove Lettings Ltd,28820,"Environment, Housing & Regeneration Directorate",Bed and Breakfast Accommodation,G400
http://statistics.data.gov.uk/id/local-authority/00BF,London Borough of Sutton,01/11/2016,6895306,"1,457.00",Assetgrove Lettings Ltd,28820,"Environment, Housing & Regeneration Directorate",Bed and Breakfast Accommodation,G400
http://statistics.data.gov.uk/id/local-authority/00BF,London Borough of Sutton,01/11/2016,6895307,"1,085.00",Assetgrove Lettings Ltd,28820,"Environment, Housing & Regeneration Directorate",Bed and Breakfast Accommodation,G400
http://statistics.data.gov.uk/id/local-authority/00BF,London Borough of Sutton,01/11/2016,6895308,"1,395.00",Assetgrove Lettings Ltd,28820,"Environment, Housing & Regeneration Directorate",Bed and Breakfast Accommodation,G400
http://statistics.data.gov.uk/id/local-authority/00BF,London Borough of Sutton,01/11/2016,6895309,"1,085.00",Assetgrove Lettings Ltd,28820,"Environment, Housing & Regeneration Directorate",Bed and Breakfast Accommodation,G400
http://statistics.data.gov.uk/id/local-authority/00BF,London Borough of Sutton,01/11/2016,6895310,"1,085.00",Assetgrove Lettings Ltd,28820,"Environment, Housing & Regeneration Directorate",Bed and Breakfast Accommodation,G400
http://statistics.data.gov.uk/id/local-authority/00BF,London Borough of Sutton,30/09/2016,6896306,"1,350.00",Assetgrove Lettings Ltd,28820,"Environment, Housing & Regeneration Directorate",Bed and Breakfast Accommodation,G400
http://statistics.data.gov.uk/id/local-authority/00BF,London Borough of Sutton,30/09/2016,6896307,"1,410.00",Assetgrove Lettings Ltd,28820,"Environment, Housing & Regeneration Directorate",Bed and Breakfast Accommodation,G400
http://statistics.data.gov.uk/id/local-authority/00BF,London Borough of Sutton,30/09/2016,6896308,"1,050.00",Assetgrove Lettings Ltd,28820,"Environment, Housing & Regeneration Directorate",Bed and Breakfast Accommodation,G400
http://statistics.data.gov.uk/id/local-authority/00BF,London Borough of Sutton,30/09/2016,6896309,"1,140.00",Assetgrove Lettings Ltd,28820,"Environment, Housing & Regeneration Directorate",Bed and Breakfast Accommodation,G400
http://statistics.data.gov.uk/id/local-authority/00BF,London Borough of Sutton,30/09/2016,6896310,"1,050.00",Assetgrove Lettings Ltd,28820,"Environment, Housing & Regeneration Directorate",Bed and Breakfast Accommodation,G400
http://statistics.data.gov.uk/id/local-authority/00BF,London Borough of Sutton,30/09/2016,6896311,"1,050.00",Assetgrove Lettings Ltd,28820,"Environment, Housing & Regeneration Directorate",Bed and Breakfast Accommodation,G400
http://statistics.data.gov.uk/id/local-authority/00BF,London Borough of Sutton,30/09/2016,6896312,"1,050.00",Assetgrove Lettings Ltd,28820,"Environment, Housing & Regeneration Directorate",Bed and Breakfast Accommodation,G400
http://statistics.data.gov.uk/id/local-authority/00BF,London Borough of Sutton,30/09/2016,6896313,"1,140.00",Assetgrove Lettings Ltd,28820,"Environment, Housing & Regeneration Directorate",Bed and Breakfast Accommodation,G400
http://statistics.data.gov.uk/id/local-authority/00BF,London Borough of Sutton,30/09/2016,6896314,"1,050.00",Assetgrove Lettings Ltd,28820,"Environment, Housing & Regeneration Directorate",Bed and Breakfast Accommodation,G400
http://statistics.data.gov.uk/id/local-authority/00BF,London Borough of Sutton,30/09/2016,6896315,"1,200.00",Assetgrove Lettings Ltd,28820,"Environment, Housing & Regeneration Directorate",Bed and Breakfast Accommodation,G400
http://statistics.data.gov.uk/id/local-authority/00BF,London Borough of Sutton,30/09/2016,6896316,"1,410.00",Assetgrove Lettings Ltd,28820,"Environment, Housing & Regeneration Directorate",Bed and Breakfast Accommodation,G400
http://statistics.data.gov.uk/id/local-authority/00BF,London Borough of Sutton,30/09/2016,6896317,"1,410.00",Assetgrove Lettings Ltd,28820,"Environment, Housing & Regeneration Directorate",Bed and Breakfast Accommodation,G400
http://statistics.data.gov.uk/id/local-authority/00BF,London Borough of Sutton,30/09/2016,6896318,"1,050.00",Assetgrove Lettings Ltd,28820,"Environment, Housing & Regeneration Directorate",Bed and Breakfast Accommodation,G400
http://statistics.data.gov.uk/id/local-authority/00BF,London Borough of Sutton,30/09/2016,6896320,"1,050.00",Assetgrove Lettings Ltd,28820,"Environment, Housing & Regeneration Directorate",Bed and Breakfast Accommodation,G400
http://statistics.data.gov.uk/id/local-authority/00BF,London Borough of Sutton,30/09/2016,6896321,"1,140.00",Assetgrove Lettings Ltd,28820,"Environment, Housing & Regeneration Directorate",Bed and Breakfast Accommodation,G400
http://statistics.data.gov.uk/id/local-authority/00BF,London Borough of Sutton,30/09/2016,6896322,"1,050.00",Assetgrove Lettings Ltd,28820,"Environment, Housing & Regeneration Directorate",Bed and Breakfast Accommodation,G400
http://statistics.data.gov.uk/id/local-authority/00BF,London Borough of Sutton,30/09/2016,6896323,"1,410.00",Assetgrove Lettings Ltd,28820,"Environment, Housing & Regeneration Directorate",Bed and Breakfast Accommodation,G400
http://statistics.data.gov.uk/id/local-authority/00BF,London Borough of Sutton,30/09/2016,6896324,"1,050.00",Assetgrove Lettings Ltd,28820,"Environment, Housing & Regeneration Directorate",Bed and Breakfast Accommodation,G400
http://statistics.data.gov.uk/id/local-authority/00BF,London Borough of Sutton,30/09/2016,6896325,"1,050.00",Assetgrove Lettings Ltd,28820,"Environment, Housing & Regeneration Directorate",Bed and Breakfast Accommodation,G400
http://statistics.data.gov.uk/id/local-authority/00BF,London Borough of Sutton,30/09/2016,6896326,"1,050.00",Assetgrove Lettings Ltd,28820,"Environment, Housing & Regeneration Directorate",Bed and Breakfast Accommodation,G400
http://statistics.data.gov.uk/id/local-authority/00BF,London Borough of Sutton,30/09/2016,6896327,"1,410.00",Assetgrove Lettings Ltd,28820,"Environment, Housing & Regeneration Directorate",Bed and Breakfast Accommodation,G400
http://statistics.data.gov.uk/id/local-authority/00BF,London Borough of Sutton,30/09/2016,6896328,"1,410.00",Assetgrove Lettings Ltd,28820,"Environment, Housing & Regeneration Directorate",Bed and Breakfast Accommodation,G400
http://statistics.data.gov.uk/id/local-authority/00BF,London Borough of Sutton,30/09/2016,6896329,"1,050.00",Assetgrove Lettings Ltd,28820,"Environment, Housing & Regeneration Directorate",Bed and Breakfast Accommodation,G400
http://statistics.data.gov.uk/id/local-authority/00BF,London Borough of Sutton,30/09/2016,6896331,630.00,Assetgrove Lettings Ltd,28820,"Environment, Housing & Regeneration Directorate",Bed and Breakfast Accommodation,G400
http://statistics.data.gov.uk/id/local-authority/00BF,London Borough of Sutton,05/10/2016,6895352,965.50,Associated Security Group Ltd,10254,Peoples Services Directorate,Building Works-Sub Contractor,Y360
http://statistics.data.gov.uk/id/local-authority/00BF,London Borough of Sutton,04/11/2016,40007355,"3,639.72",Assurance Care Services Ltd T/A Christ the King Residential Care Homes,27458,Peoples Services Directorate,Residential Care - Ext Provider,G310
http://statistics.data.gov.uk/id/local-authority/00BF,London Borough of Sutton,31/10/2016,6895851,"7,135.02",ATS Euromaster Ltd,23885,"Environment, Housing & Regeneration Directorate",Tyre Expenditure,E015
http://statistics.data.gov.uk/id/local-authority/00BF,London Borough of Sutton,04/11/2016,40007253,"4,580.72",Autism & Aspergers Care Services,10327,Peoples Services Directorate,Residential Care - Ext Provider,G310
http://statistics.data.gov.uk/id/local-authority/00BF,London Borough of Sutton,04/11/2016,40007231,"2,805.00",Avante Ltd (Weybourne),24009,Peoples Services Directorate,Residential Care - Ext Provider,G310
http://statistics.data.gov.uk/id/local-authority/00BF,London Borough of Sutton,16/11/2016,6896353,921.99,Axiell ALM Ltd,24854,Peoples Services Directorate,Purchase of Software,F381
http://statistics.data.gov.uk/id/local-authority/00BF,London Borough of Sutton,25/11/2016,6896231,"2,000.00",B D Burrell T/A Jamanews Ltd,28460,Peoples Services Directorate,Personal Requisites,F106
http://statistics.data.gov.uk/id/local-authority/00BF,London Borough of Sutton,16/07/2015,6895400,888.72,Bailey Consulting,99815,"Environment, Housing & Regeneration Directorate",Grants -Made,Y610
http://statistics.data.gov.uk/id/local-authority/00BF,London Borough of Sutton,04/11/2016,40007400,"3,200.00",Balcombe Care Homes Ltd,10367,Peoples Services Directorate,Nursing Care - Ext Provider,G311
http://statistics.data.gov.uk/id/local-authority/00BF,London Borough of Sutton,04/11/2016,40007482,"3,200.00",Balcombe Care Homes Ltd,10367,Peoples Services Directorate,Nursing Care - Ext Provider,G311
http://statistics.data.gov.uk/id/local-authority/00BF,London Borough of Sutton,04/11/2016,6895462,"3,290.00",Bamberry Consulting LTD,28686,Peoples Services Directorate,Agency Staff - Adecco,A300
http://statistics.data.gov.uk/id/local-authority/00BF,London Borough of Sutton,15/10/2016,6895402,"1,357.00",Bandon Hill Primary,10372,Peoples Services Directorate,Other,Y450
http://statistics.data.gov.uk/id/local-authority/00BF,London Borough of Sutton,04/11/2016,40007473,"4,780.00",Barchester Healthcare (Epsom Beaumont Care Home),19157,Peoples Services Directorate,Nursing Care - Ext Provider,G311
http://statistics.data.gov.uk/id/local-authority/00BF,London Borough of Sutton,04/11/2016,40007240,"1,996.00",Barchester Healthcare (Tandridge Heights),16499,Peoples Services Directorate,Nursing Care - Ext Provider,G311
http://statistics.data.gov.uk/id/local-authority/00BF,London Borough of Sutton,04/11/2016,40007497,"4,400.00","Barchester Healthcare, Marriott House",26322,Peoples Services Directorate,Nursing Care - Ext Provider,G311
http://statistics.data.gov.uk/id/local-authority/00BF,London Borough of Sutton,19/10/2016,40006940,672.00,Barnardo's,10370,Peoples Services Directorate,Provider Contract Payments,F470
http://statistics.data.gov.uk/id/local-authority/00BF,London Borough of Sutton,01/10/2016,6896613,"1,465.64",Barts Health Nhs Trust,28991,Peoples Services Directorate,Provider Contract Payments,F470
http://statistics.data.gov.uk/id/local-authority/00BF,London Borough of Sutton,31/08/2016,6896650,565.00,Bates Wells Braithwaite London LLP,24975,Peoples Services Directorate,External Legal Fees (Corporate Legal Approved),F277
http://statistics.data.gov.uk/id/local-authority/00BF,London Borough of Sutton,04/11/2016,40007378,"2,120.00",Beaumont Lodge Ltd,16849,Peoples Services Directorate,Nursing Care - Ext Provider,G311
http://statistics.data.gov.uk/id/local-authority/00BF,London Borough of Sutton,19/10/2016,6894460,"1,705.00",Belmontview House Ltd (Mrs R Mulalazi),28831,Peoples Services Directorate,C.C.A Rent & Utilities,H211
http://statistics.data.gov.uk/id/local-authority/00BF,London Borough of Sutton,19/11/2016,6896831,"1,650.00",Belmontview House Ltd (Mrs R Mulalazi),28831,Peoples Services Directorate,C.C.A Rent & Utilities,H211
http://statistics.data.gov.uk/id/local-authority/00BF,London Borough of Sutton,30/09/2016,6895899,"7,772.50",Bestcourt UK Ltd,10441,"Environment, Housing & Regeneration Directorate",Bed and Breakfast Accommodation,G400
http://statistics.data.gov.uk/id/local-authority/00BF,London Borough of Sutton,31/10/2016,6896076,"11,152.20",Bestcourt UK Ltd,10441,"Environment, Housing & Regeneration Directorate",Bed and Breakfast Accommodation,G400
http://statistics.data.gov.uk/id/local-authority/00BF,London Borough of Sutton,04/11/2016,40007322,"2,459.04",Beverley Lodge Nursing Home,10434,Peoples Services Directorate,Nursing Care - Ext Provider,G311
http://statistics.data.gov.uk/id/local-authority/00BF,London Borough of Sutton,04/11/2016,40007335,"2,019.96",Beverley Lodge Nursing Home,10434,Peoples Services Directorate,Nursing Care - Ext Provider,G311
http://statistics.data.gov.uk/id/local-authority/00BF,London Borough of Sutton,04/11/2016,40007394,"1,200.00",Beverley Lodge Nursing Home,10434,Peoples Services Directorate,Nursing Care - 3rd party top up payment,G360
http://statistics.data.gov.uk/id/local-authority/00BF,London Borough of Sutton,04/11/2016,40007403,"2,800.00",Beverley Lodge Nursing Home,10434,Peoples Services Directorate,Nursing Care - Ext Provider,G311
http://statistics.data.gov.uk/id/local-authority/00BF,London Borough of Sutton,04/11/2016,40007474,"3,400.00",Beverley Lodge Nursing Home,10434,Peoples Services Directorate,Nursing Care - Ext Provider,G311
http://statistics.data.gov.uk/id/local-authority/00BF,London Borough of Sutton,04/11/2016,40007540,"2,400.00",Beverley Lodge Nursing Home,10434,Peoples Services Directorate,Respite Care,G333
http://statistics.data.gov.uk/id/local-authority/00BF,London Borough of Sutton,04/11/2016,40007546,"2,232.41",Beverley Lodge Nursing Home,10434,Peoples Services Directorate,Nursing Care - Ext Provider,G311
http://statistics.data.gov.uk/id/local-authority/00BF,London Borough of Sutton,04/11/2016,40007616,"2,462.44",Beverley Lodge Nursing Home,10434,Peoples Services Directorate,Nursing Care - Ext Provider,G311
http://statistics.data.gov.uk/id/local-authority/00BF,London Borough of Sutton,04/11/2016,40007638,"2,226.40",Beverley Lodge Nursing Home,10434,Peoples Services Directorate,Nursing Care - Ext Provider,G311
http://statistics.data.gov.uk/id/local-authority/00BF,London Borough of Sutton,02/11/2016,6895385,935.00,Blossom House Secondary School,18672,Peoples Services Directorate,Payments to Schools,G065
http://statistics.data.gov.uk/id/local-authority/00BF,London Borough of Sutton,04/11/2016,40007368,"2,033.92",Bridge House Care Centre,10620,Peoples Services Directorate,Nursing Care - Ext Provider,G311
http://statistics.data.gov.uk/id/local-authority/00BF,London Borough of Sutton,04/11/2016,40007386,"3,400.00",Bridge House Care Centre,10620,Peoples Services Directorate,Nursing Care - Ext Provider,G311
http://statistics.data.gov.uk/id/local-authority/00BF,London Borough of Sutton,04/11/2016,40007426,"3,475.36",Bridge House Care Centre,10620,Peoples Services Directorate,Nursing Care - Ext Provider,G311
http://statistics.data.gov.uk/id/local-authority/00BF,London Borough of Sutton,04/11/2016,40007441,"3,400.00",Bridge House Care Centre,10620,Peoples Services Directorate,Nursing Care - Ext Provider,G311
http://statistics.data.gov.uk/id/local-authority/00BF,London Borough of Sutton,04/11/2016,40007447,"3,000.00",Bridge House Care Centre,10620,Peoples Services Directorate,Nursing Care - Ext Provider,G311
http://statistics.data.gov.uk/id/local-authority/00BF,London Borough of Sutton,04/11/2016,40007451,"2,005.84",Bridge House Care Centre,10620,Peoples Services Directorate,Nursing Care - Ext Provider,G311
http://statistics.data.gov.uk/id/local-authority/00BF,London Borough of Sutton,04/11/2016,40007479,"3,200.00",Bridge House Care Centre,10620,Peoples Services Directorate,Nursing Care - Ext Provider,G311
http://statistics.data.gov.uk/id/local-authority/00BF,London Borough of Sutton,04/11/2016,40007483,"3,200.00",Bridge House Care Centre,10620,Peoples Services Directorate,Nursing Care - Ext Provider,G311
http://statistics.data.gov.uk/id/local-authority/00BF,London Borough of Sutton,04/11/2016,40007511,"3,380.00",Bridge House Care Centre,10620,Peoples Services Directorate,Nursing Care - Ext Provider,G311
http://statistics.data.gov.uk/id/local-authority/00BF,London Borough of Sutton,04/11/2016,40007515,"3,300.00",Bridge House Care Centre,10620,Peoples Services Directorate,Nursing Care - Ext Provider,G311
http://statistics.data.gov.uk/id/local-authority/00BF,London Borough of Sutton,04/11/2016,40007582,"2,034.96",Bridge House Care Centre,10620,Peoples Services Directorate,Nursing Care - Ext Provider,G311
http://statistics.data.gov.uk/id/local-authority/00BF,London Borough of Sutton,04/11/2016,40007587,"2,552.00",Bridge House Care Centre,10620,Peoples Services Directorate,Nursing Care - Ext Provider,G311
http://statistics.data.gov.uk/id/local-authority/00BF,London Borough of Sutton,04/11/2016,40007627,"1,996.00",Bridge House Care Centre,10620,Peoples Services Directorate,Nursing Care - Ext Provider,G311
http://statistics.data.gov.uk/id/local-authority/00BF,London Borough of Sutton,04/11/2016,40007653,"1,942.48",Bridge House Care Centre,10620,Peoples Services Directorate,Nursing Care - Ext Provider,G311
http://statistics.data.gov.uk/id/local-authority/00BF,London Borough of Sutton,04/11/2016,40007593,"2,439.36",British Home & Hospital For Incurables,10589,Peoples Services Directorate,Nursing Care - Ext Provider,G311
http://statistics.data.gov.uk/id/local-authority/00BF,London Borough of Sutton,04/11/2016,40007594,"2,439.36",British Home & Hospital For Incurables,10589,Peoples Services Directorate,Nursing Care - Ext Provider,G311
http://statistics.data.gov.uk/id/local-authority/00BF,London Borough of Sutton,04/11/2016,40007659,"2,710.40",British Home & Hospital For Incurables,10589,Peoples Services Directorate,Nursing Care - Ext Provider,G311
http://statistics.data.gov.uk/id/local-authority/00BF,London Borough of Sutton,03/11/2016,6895318,667.00,British Medical Journal,10590,Peoples Services Directorate,Books,F006
http://statistics.data.gov.uk/id/local-authority/00BF,London Borough of Sutton,03/10/2016,6894337,"2,197.25",British Telecommunications Plc,10574,Resources Directorate,Telephones - Rentals,F370
http://statistics.data.gov.uk/id/local-authority/00BF,London Borough of Sutton,04/11/2016,40007338,"2,444.00",Broadlands Nursing Home,10586,Peoples Services Directorate,Nursing Care - Ext Provider,G311
http://statistics.data.gov.uk/id/local-authority/00BF,London Borough of Sutton,04/11/2016,40007341,"1,835.60",Broadlands Nursing Home,10586,Peoples Services Directorate,Nursing Care - Ext Provider,G311
http://statistics.data.gov.uk/id/local-authority/00BF,London Borough of Sutton,04/11/2016,40007503,"2,945.00",Broadlands Nursing Home,10586,Peoples Services Directorate,Nursing Care - Ext Provider,G311
http://statistics.data.gov.uk/id/local-authority/00BF,London Borough of Sutton,04/11/2016,40007545,"1,335.71",Broadlands Nursing Home,10586,Peoples Services Directorate,Nursing Care - Ext Provider,G311
http://statistics.data.gov.uk/id/local-authority/00BF,London Borough of Sutton,04/11/2016,40007662,"3,277.16",Broadlands Nursing Home,10586,Peoples Services Directorate,Nursing Care - Ext Provider,G311
http://statistics.data.gov.uk/id/local-authority/00BF,London Borough of Sutton,04/11/2016,40007665,"2,088.64",Broadlands Nursing Home,10586,Peoples Services Directorate,Nursing Care - Ext Provider,G311
http://statistics.data.gov.uk/id/local-authority/00BF,London Borough of Sutton,04/11/2016,40007366,"2,242.72",Brook Care Homes (BH),10582,Peoples Services Directorate,Residential Care - Ext Provider,G310
http://statistics.data.gov.uk/id/local-authority/00BF,London Borough of Sutton,04/11/2016,40007448,"2,279.56",Brook Care Homes (BH),10582,Peoples Services Directorate,Residential Care - Ext Provider,G310
http://statistics.data.gov.uk/id/local-authority/00BF,London Borough of Sutton,04/11/2016,40007465,"3,694.60",Brook Care Homes (BH),10582,Peoples Services Directorate,Residential Care - Ext Provider,G310
http://statistics.data.gov.uk/id/local-authority/00BF,London Borough of Sutton,04/11/2016,40007527,"1,924.40",Brook Care Homes (BH),10582,Peoples Services Directorate,Residential Care - Ext Provider,G310
http://statistics.data.gov.uk/id/local-authority/00BF,London Borough of Sutton,04/11/2016,40007530,"6,090.00",Brook Care Homes (BH),10582,Peoples Services Directorate,Residential Care - Ext Provider,G310
http://statistics.data.gov.uk/id/local-authority/00BF,London Borough of Sutton,04/11/2016,40007556,"4,234.40",Brook Care Homes (BH),10582,Peoples Services Directorate,Residential Care - Ext Provider,G310
http://statistics.data.gov.uk/id/local-authority/00BF,London Borough of Sutton,04/11/2016,40007589,"3,150.56",Brook Care Homes (BH),10582,Peoples Services Directorate,Residential Care - Ext Provider,G310
http://statistics.data.gov.uk/id/local-authority/00BF,London Borough of Sutton,04/11/2016,40007613,"4,400.92",Brook Care Homes (BH),10582,Peoples Services Directorate,Residential Care - Ext Provider,G310
http://statistics.data.gov.uk/id/local-authority/00BF,London Borough of Sutton,04/11/2016,40007625,"2,639.00",Brook Care Homes (BH),10582,Peoples Services Directorate,Residential Care - Ext Provider,G310
http://statistics.data.gov.uk/id/local-authority/00BF,London Borough of Sutton,05/08/2016,1226421,"7,900.00",Brown's School,27856,Peoples Services Directorate,Independent Schools,G325
http://statistics.data.gov.uk/id/local-authority/00BF,London Borough of Sutton,02/11/2016,6895383,660.00,Brown's School,27856,Peoples Services Directorate,Payments to Schools,G065
http://statistics.data.gov.uk/id/local-authority/00BF,London Borough of Sutton,27/10/2016,1226163,"2,206.40",Brunel University London,10570,Peoples Services Directorate,Education Allowance,H321
http://statistics.data.gov.uk/id/local-authority/00BF,London Borough of Sutton,27/10/2016,5014788,"-2,206.40",Brunel University London,10570,Peoples Services Directorate,Education Allowance,H321
http://statistics.data.gov.uk/id/local-authority/00BF,London Borough of Sutton,31/10/2016,1226753,"3,912.00",Brunswick Cars 9761/1961276/Loc09,10611,Peoples Services Directorate,Hired Peoples Transport (Children),E072
http://statistics.data.gov.uk/id/local-authority/00BF,London Borough of Sutton,31/10/2016,1226754,"5,517.00",Brunswick Cars 9761/1961276/Loc09,10611,Peoples Services Directorate,Hired Peoples Transport (Children),E072
http://statistics.data.gov.uk/id/local-authority/00BF,London Borough of Sutton,31/10/2016,1226755,"2,464.00",Brunswick Cars 9761/1961276/Loc09,10611,Peoples Services Directorate,Hired Peoples Transport (Children),E072
http://statistics.data.gov.uk/id/local-authority/00BF,London Borough of Sutton,31/10/2016,1226756,"2,625.00",Brunswick Cars 9761/1961276/Loc09,10611,Peoples Services Directorate,Hired Peoples Transport (Children),E072
http://statistics.data.gov.uk/id/local-authority/00BF,London Borough of Sutton,31/10/2016,1226757,"4,137.00",Brunswick Cars 9761/1961276/Loc09,10611,Peoples Services Directorate,Hired Peoples Transport (Children),E072
http://statistics.data.gov.uk/id/local-authority/00BF,London Borough of Sutton,31/10/2016,1226759,"3,798.00",Brunswick Cars 9761/1961276/Loc09,10611,Peoples Services Directorate,Hired Peoples Transport (Children),E072
http://statistics.data.gov.uk/id/local-authority/00BF,London Borough of Sutton,31/10/2016,1226760,"1,952.00",Brunswick Cars 9761/1961276/Loc09,10611,Peoples Services Directorate,Hired Peoples Transport (Children),E072
http://statistics.data.gov.uk/id/local-authority/00BF,London Borough of Sutton,31/10/2016,1226761,"3,780.00",Brunswick Cars 9761/1961276/Loc09,10611,Peoples Services Directorate,Hired Peoples Transport (Children),E072
http://statistics.data.gov.uk/id/local-authority/00BF,London Borough of Sutton,31/10/2016,1226762,"3,601.00",Brunswick Cars 9761/1961276/Loc09,10611,Peoples Services Directorate,Hired Peoples Transport (Children),E072
http://statistics.data.gov.uk/id/local-authority/00BF,London Borough of Sutton,31/10/2016,1226763,"2,834.00",Brunswick Cars 9761/1961276/Loc09,10611,Peoples Services Directorate,Hired Peoples Transport (Children),E072
http://statistics.data.gov.uk/id/local-authority/00BF,London Borough of Sutton,31/10/2016,1226764,"1,725.00",Brunswick Cars 9761/1961276/Loc09,10611,Peoples Services Directorate,Hired Peoples Transport (Children),E072
http://statistics.data.gov.uk/id/local-authority/00BF,London Borough of Sutton,31/10/2016,1226765,"4,355.50",Brunswick Cars 9761/1961276/Loc09,10611,Peoples Services Directorate,Hired Peoples Transport (Children),E072
http://statistics.data.gov.uk/id/local-authority/00BF,London Borough of Sutton,31/10/2016,1226766,"3,958.50",Brunswick Cars 9761/1961276/Loc09,10611,Peoples Services Directorate,Hired Peoples Transport (Children),E072
http://statistics.data.gov.uk/id/local-authority/00BF,London Borough of Sutton,31/10/2016,1226767,"4,219.50",Brunswick Cars 9761/1961276/Loc09,10611,Peoples Services Directorate,Hired Peoples Transport (Children),E072
http://statistics.data.gov.uk/id/local-authority/00BF,London Borough of Sutton,31/10/2016,1226768,"1,400.00",Brunswick Cars 9761/1961276/Loc09,10611,Peoples Services Directorate,Hired Peoples Transport (Children),E072
http://statistics.data.gov.uk/id/local-authority/00BF,London Borough of Sutton,31/10/2016,1226769,"3,152.00",Brunswick Cars 9761/1961276/Loc09,10611,Peoples Services Directorate,Hired Peoples Transport (Children),E072
http://statistics.data.gov.uk/id/local-authority/00BF,London Borough of Sutton,31/10/2016,1226770,"1,092.00",Brunswick Cars 9761/1961276/Loc09,10611,Peoples Services Directorate,Hired Peoples Transport (Children),E072
http://statistics.data.gov.uk/id/local-authority/00BF,London Borough of Sutton,31/10/2016,1226771,"3,240.00",Brunswick Cars 9761/1961276/Loc09,10611,Peoples Services Directorate,Hired Peoples Transport (Children),E072
http://statistics.data.gov.uk/id/local-authority/00BF,London Borough of Sutton,31/10/2016,1226772,960.00,Brunswick Cars 9761/1961276/Loc09,10611,Peoples Services Directorate,Hired Peoples Transport (Children),E072
http://statistics.data.gov.uk/id/local-authority/00BF,London Borough of Sutton,31/10/2016,1226773,"1,470.00",Brunswick Cars 9761/1961276/Loc09,10611,Peoples Services Directorate,Hired Peoples Transport (Children),E072
http://statistics.data.gov.uk/id/local-authority/00BF,London Borough of Sutton,31/10/2016,1226774,"1,455.00",Brunswick Cars 9761/1961276/Loc09,10611,Peoples Services Directorate,Hired Peoples Transport (Children),E072
http://statistics.data.gov.uk/id/local-authority/00BF,London Borough of Sutton,31/10/2016,1226775,"2,650.50",Brunswick Cars 9761/1961276/Loc09,10611,Peoples Services Directorate,Hired Peoples Transport (Children),E072
http://statistics.data.gov.uk/id/local-authority/00BF,London Borough of Sutton,31/10/2016,1226776,"2,692.00",Brunswick Cars 9761/1961276/Loc09,10611,Peoples Services Directorate,Hired Peoples Transport (Children),E072
http://statistics.data.gov.uk/id/local-authority/00BF,London Borough of Sutton,31/10/2016,1226777,"1,456.00",Brunswick Cars 9761/1961276/Loc09,10611,Peoples Services Directorate,Hired Peoples Transport (Children),E072
http://statistics.data.gov.uk/id/local-authority/00BF,London Borough of Sutton,31/10/2016,1226778,"2,025.00",Brunswick Cars 9761/1961276/Loc09,10611,Peoples Services Directorate,Hired Peoples Transport (Children),E072
http://statistics.data.gov.uk/id/local-authority/00BF,London Borough of Sutton,31/10/2016,1226779,"2,640.00",Brunswick Cars 9761/1961276/Loc09,10611,Peoples Services Directorate,Hired Peoples Transport (Children),E072
http://statistics.data.gov.uk/id/local-authority/00BF,London Borough of Sutton,31/10/2016,1226780,"3,184.00",Brunswick Cars 9761/1961276/Loc09,10611,Peoples Services Directorate,Hired Peoples Transport (Children),E072
http://statistics.data.gov.uk/id/local-authority/00BF,London Borough of Sutton,31/10/2016,1226781,"3,512.00",Brunswick Cars 9761/1961276/Loc09,10611,Peoples Services Directorate,Hired Peoples Transport (Children),E072
http://statistics.data.gov.uk/id/local-authority/00BF,London Borough of Sutton,31/10/2016,1226782,"4,608.00",Brunswick Cars 9761/1961276/Loc09,10611,Peoples Services Directorate,Hired Peoples Transport (Children),E072
http://statistics.data.gov.uk/id/local-authority/00BF,London Borough of Sutton,31/10/2016,1226783,"2,650.50",Brunswick Cars 9761/1961276/Loc09,10611,Peoples Services Directorate,Hired Peoples Transport (Children),E072
http://statistics.data.gov.uk/id/local-authority/00BF,London Borough of Sutton,31/10/2016,1226784,"1,408.00",Brunswick Cars 9761/1961276/Loc09,10611,Peoples Services Directorate,Hired Peoples Transport (Children),E072
http://statistics.data.gov.uk/id/local-authority/00BF,London Borough of Sutton,31/10/2016,1226785,"1,560.00",Brunswick Cars 9761/1961276/Loc09,10611,Peoples Services Directorate,Hired Peoples Transport (Children),E072
http://statistics.data.gov.uk/id/local-authority/00BF,London Borough of Sutton,31/10/2016,1226786,"2,084.00",Brunswick Cars 9761/1961276/Loc09,10611,Peoples Services Directorate,Hired Peoples Transport (Children),E072
http://statistics.data.gov.uk/id/local-authority/00BF,London Borough of Sutton,31/10/2016,1226787,"3,808.00",Brunswick Cars 9761/1961276/Loc09,10611,Peoples Services Directorate,Hired Peoples Transport (Children),E072
http://statistics.data.gov.uk/id/local-authority/00BF,London Borough of Sutton,31/10/2016,1226788,"1,216.00",Brunswick Cars 9761/1961276/Loc09,10611,Peoples Services Directorate,Hired Peoples Transport (Children),E072
http://statistics.data.gov.uk/id/local-authority/00BF,London Borough of Sutton,31/10/2016,1226789,"2,205.00",Brunswick Cars 9761/1961276/Loc09,10611,Peoples Services Directorate,Hired Peoples Transport (Children),E072
http://statistics.data.gov.uk/id/local-authority/00BF,London Borough of Sutton,31/10/2016,1226790,"2,340.00",Brunswick Cars 9761/1961276/Loc09,10611,Peoples Services Directorate,Hired Peoples Transport (Children),E072
http://statistics.data.gov.uk/id/local-authority/00BF,London Borough of Sutton,31/10/2016,1226791,"3,462.00",Brunswick Cars 9761/1961276/Loc09,10611,Peoples Services Directorate,Hired Peoples Transport (Children),E072
http://statistics.data.gov.uk/id/local-authority/00BF,London Borough of Sutton,31/10/2016,1226792,"2,064.00",Brunswick Cars 9761/1961276/Loc09,10611,Peoples Services Directorate,Hired Peoples Transport (Children),E072
http://statistics.data.gov.uk/id/local-authority/00BF,London Borough of Sutton,31/10/2016,1226793,"2,416.00",Brunswick Cars 9761/1961276/Loc09,10611,Peoples Services Directorate,Hired Peoples Transport (Children),E072
http://statistics.data.gov.uk/id/local-authority/00BF,London Borough of Sutton,31/10/2016,1226794,430.00,Brunswick Cars 9761/1961276/Loc09,10611,Peoples Services Directorate,Hired Peoples Transport (Children),E072
http://statistics.data.gov.uk/id/local-authority/00BF,London Borough of Sutton,31/10/2016,1226795,992.00,Brunswick Cars 9761/1961276/Loc09,10611,Peoples Services Directorate,Hired Peoples Transport (Children),E072
http://statistics.data.gov.uk/id/local-authority/00BF,London Borough of Sutton,31/10/2016,1226796,"2,416.00",Brunswick Cars 9761/1961276/Loc09,10611,Peoples Services Directorate,Hired Peoples Transport (Children),E072
http://statistics.data.gov.uk/id/local-authority/00BF,London Borough of Sutton,31/10/2016,1226797,"3,120.00",Brunswick Cars 9761/1961276/Loc09,10611,Peoples Services Directorate,Hired Peoples Transport (Children),E072
http://statistics.data.gov.uk/id/local-authority/00BF,London Borough of Sutton,31/10/2016,1226798,"1,118.00",Brunswick Cars 9761/1961276/Loc09,10611,Peoples Services Directorate,Hired Peoples Transport (Children),E072
http://statistics.data.gov.uk/id/local-authority/00BF,London Borough of Sutton,31/10/2016,1226799,"1,118.00",Brunswick Cars 9761/1961276/Loc09,10611,Peoples Services Directorate,Hired Peoples Transport (Children),E072
http://statistics.data.gov.uk/id/local-authority/00BF,London Borough of Sutton,31/10/2016,1226800,"1,650.00",Brunswick Cars 9761/1961276/Loc09,10611,Peoples Services Directorate,Hired Peoples Transport (Children),E072
http://statistics.data.gov.uk/id/local-authority/00BF,London Borough of Sutton,31/10/2016,1226801,"1,350.00",Brunswick Cars 9761/1961276/Loc09,10611,Peoples Services Directorate,Hired Peoples Transport (Children),E072
http://statistics.data.gov.uk/id/local-authority/00BF,London Borough of Sutton,31/10/2016,1226802,"2,475.00",Brunswick Cars 9761/1961276/Loc09,10611,Peoples Services Directorate,Hired Peoples Transport (Children),E072
http://statistics.data.gov.uk/id/local-authority/00BF,London Borough of Sutton,31/10/2016,1226803,"1,376.00",Brunswick Cars 9761/1961276/Loc09,10611,Peoples Services Directorate,Hired Peoples Transport (Children),E072
http://statistics.data.gov.uk/id/local-authority/00BF,London Borough of Sutton,31/10/2016,1226804,"1,310.00",Brunswick Cars 9761/1961276/Loc09,10611,Peoples Services Directorate,Hired Peoples Transport (Children),E072
http://statistics.data.gov.uk/id/local-authority/00BF,London Borough of Sutton,31/10/2016,1226805,"1,680.00",Brunswick Cars 9761/1961276/Loc09,10611,Peoples Services Directorate,Hired Peoples Transport (Children),E072
http://statistics.data.gov.uk/id/local-authority/00BF,London Borough of Sutton,31/10/2016,1226806,"1,888.00",Brunswick Cars 9761/1961276/Loc09,10611,Peoples Services Directorate,Hired Peoples Transport (Children),E072
http://statistics.data.gov.uk/id/local-authority/00BF,London Borough of Sutton,31/10/2016,1226808,"3,375.00",Brunswick Cars 9761/1961276/Loc09,10611,Peoples Services Directorate,Hired Peoples Transport (Children),E072
http://statistics.data.gov.uk/id/local-authority/00BF,London Borough of Sutton,31/10/2016,1226809,540.00,Brunswick Cars 9761/1961276/Loc09,10611,Peoples Services Directorate,Hired Peoples Transport (Children),E072
http://statistics.data.gov.uk/id/local-authority/00BF,London Borough of Sutton,31/10/2016,1226811,"1,984.00",Brunswick Cars 9761/1961276/Loc09,10611,Peoples Services Directorate,Hired Peoples Transport (Children),E072
http://statistics.data.gov.uk/id/local-authority/00BF,London Borough of Sutton,31/10/2016,1226812,"1,500.00",Brunswick Cars 9761/1961276/Loc09,10611,Peoples Services Directorate,Hired Peoples Transport (Children),E072
http://statistics.data.gov.uk/id/local-authority/00BF,London Borough of Sutton,31/10/2016,1226813,"3,690.00",Brunswick Cars 9761/1961276/Loc09,10611,Peoples Services Directorate,Hired Peoples Transport (Children),E072
http://statistics.data.gov.uk/id/local-authority/00BF,London Borough of Sutton,10/11/2016,6896022,"1,825.00",BTFI,25814,"Environment, Housing & Regeneration Directorate",Fees - Consultants (Ad Hoc),F283
http://statistics.data.gov.uk/id/local-authority/00BF,London Borough of Sutton,31/10/2016,6895997,"1,023.00",Buller Hotel,23493,"Environment, Housing & Regeneration Directorate",Bed and Breakfast Accommodation,G400
http://statistics.data.gov.uk/id/local-authority/00BF,London Borough of Sutton,31/10/2016,6895998,896.00,Buller Hotel,23493,"Environment, Housing & Regeneration Directorate",Bed and Breakfast Accommodation,G400
http://statistics.data.gov.uk/id/local-authority/00BF,London Borough of Sutton,31/10/2016,6895999,868.00,Buller Hotel,23493,"Environment, Housing & Regeneration Directorate",Bed and Breakfast Accommodation,G400
http://statistics.data.gov.uk/id/local-authority/00BF,London Borough of Sutton,31/10/2016,6896001,858.00,Buller Hotel,23493,"Environment, Housing & Regeneration Directorate",Bed and Breakfast Accommodation,G400
http://statistics.data.gov.uk/id/local-authority/00BF,London Borough of Sutton,31/10/2016,6896002,660.00,Buller Hotel,23493,"Environment, Housing & Regeneration Directorate",Bed and Breakfast Accommodation,G400
http://statistics.data.gov.uk/id/local-authority/00BF,London Borough of Sutton,31/10/2016,6896003,868.00,Buller Hotel,23493,"Environment, Housing & Regeneration Directorate",Bed and Breakfast Accommodation,G400
http://statistics.data.gov.uk/id/local-authority/00BF,London Borough of Sutton,31/10/2016,6896005,"1,023.00",Buller Hotel,23493,"Environment, Housing & Regeneration Directorate",Bed and Breakfast Accommodation,G400
http://statistics.data.gov.uk/id/local-authority/00BF,London Borough of Sutton,31/10/2016,6896006,868.00,Buller Hotel,23493,"Environment, Housing & Regeneration Directorate",Bed and Breakfast Accommodation,G400
http://statistics.data.gov.uk/id/local-authority/00BF,London Borough of Sutton,31/10/2016,6896007,"1,023.00",Buller Hotel,23493,"Environment, Housing & Regeneration Directorate",Bed and Breakfast Accommodation,G400
http://statistics.data.gov.uk/id/local-authority/00BF,London Borough of Sutton,04/11/2016,40007464,"1,868.00",Bupa Care Services,10175,Peoples Services Directorate,Residential Care - Ext Provider,G310
http://statistics.data.gov.uk/id/local-authority/00BF,London Borough of Sutton,04/11/2016,40007631,"1,971.80",Bupa Care Services,10175,Peoples Services Directorate,Nursing Care - Ext Provider,G311
http://statistics.data.gov.uk/id/local-authority/00BF,London Borough of Sutton,04/11/2016,40007266,"2,439.56",Burlington Nursing Home Ltd,19236,Peoples Services Directorate,Nursing Care - Ext Provider,G311
http://statistics.data.gov.uk/id/local-authority/00BF,London Borough of Sutton,25/10/2016,6894664,500.00,Burnell & Lewis Residents Assoc,99891,"Environment, Housing & Regeneration Directorate",Assistance to Voluntary Organisations,F471
http://statistics.data.gov.uk/id/local-authority/00BF,London Borough of Sutton,04/11/2016,40007229,"7,824.28",Butterfly's Care Homes Ltd,28860,Peoples Services Directorate,Residential Care - Ext Provider,G310
http://statistics.data.gov.uk/id/local-authority/00BF,London Borough of Sutton,11/11/2016,6895957,"1,539.00",Bytes Technology Group,22255,"Environment, Housing & Regeneration Directorate",Purchase of Software,F381
http://statistics.data.gov.uk/id/local-authority/00BF,London Borough of Sutton,31/10/2016,6896836,"9,966.00",C & W LLP,26904,Resources Directorate,Fees - Consultants (Ad Hoc),F283
http://statistics.data.gov.uk/id/local-authority/00BF,London Borough of Sutton,31/10/2016,6895043,504.00,Caesar Investments UK Ltd,24923,"Environment, Housing & Regeneration Directorate",Bed and Breakfast Accommodation,G400
http://statistics.data.gov.uk/id/local-authority/00BF,London Borough of Sutton,07/11/2016,6896503,504.00,Caesar Investments UK Ltd,24923,"Environment, Housing & Regeneration Directorate",Bed and Breakfast Accommodation,G400
http://statistics.data.gov.uk/id/local-authority/00BF,London Borough of Sutton,14/11/2016,6896900,504.00,Caesar Investments UK Ltd,24923,"Environment, Housing & Regeneration Directorate",Bed and Breakfast Accommodation,G400
http://statistics.data.gov.uk/id/local-authority/00BF,London Borough of Sutton,21/11/2016,6897155,504.00,Caesar Investments UK Ltd,24923,"Environment, Housing & Regeneration Directorate",Bed and Breakfast Accommodation,G400
http://statistics.data.gov.uk/id/local-authority/00BF,London Borough of Sutton,30/09/2016,6895165,"4,000.00",Callcredit Ltd,29066,Resources Directorate,Fees - Bailiffs,F302
http://statistics.data.gov.uk/id/local-authority/00BF,London Borough of Sutton,04/11/2016,40007235,"4,296.92",Cambian Childcare Ltd,26117,Peoples Services Directorate,Residential Care - Ext Provider,G310
http://statistics.data.gov.uk/id/local-authority/00BF,London Borough of Sutton,30/09/2016,6896920,"3,782.60",Cambridge London Group Ltd,26900,Peoples Services Directorate,Consultants/Hons,A310
http://statistics.data.gov.uk/id/local-authority/00BF,London Borough of Sutton,04/11/2016,40007351,"3,884.56",Canterbury Oast Trust,10755,Peoples Services Directorate,Residential Care - Ext Provider,G310
http://statistics.data.gov.uk/id/local-authority/00BF,London Borough of Sutton,04/11/2016,40007273,"2,267.40",Care Base(Redhill)Ltd t/a Acorn Court Care Home,24206,Peoples Services Directorate,Residential Care - Ext Provider,G310
http://statistics.data.gov.uk/id/local-authority/00BF,London Borough of Sutton,01/11/2016,6895163,"5,585.08",Care Connections Ltd,10798,Peoples Services Directorate,Supported Living - Ext Provider,G306
http://statistics.data.gov.uk/id/local-authority/00BF,London Borough of Sutton,31/10/2016,6895357,"2,152.70",Care Monitoring 2000 Ltd,20716,Peoples Services Directorate,Telephones - Other Expenses,F373
http://statistics.data.gov.uk/id/local-authority/00BF,London Borough of Sutton,18/11/2016,1227333,544.00,Care Staff Solutions,28778,Peoples Services Directorate,Hired Peoples Transport (Children),E072
http://statistics.data.gov.uk/id/local-authority/00BF,London Borough of Sutton,01/10/2016,40010546,"4,060.00",Care Unlimited Domcare Ltd,28906,Peoples Services Directorate,Supported Living - Ext Provider,G306
http://statistics.data.gov.uk/id/local-authority/00BF,London Borough of Sutton,01/10/2016,40010591,"4,060.00",Care Unlimited Domcare Ltd,28906,Peoples Services Directorate,Supported Living - Ext Provider,G306
http://statistics.data.gov.uk/id/local-authority/00BF,London Borough of Sutton,01/10/2016,40010641,"4,060.00",Care Unlimited Domcare Ltd,28906,Peoples Services Directorate,Supported Living - Ext Provider,G306
http://statistics.data.gov.uk/id/local-authority/00BF,London Borough of Sutton,01/10/2016,40010642,"4,060.00",Care Unlimited Domcare Ltd,28906,Peoples Services Directorate,Supported Living - Ext Provider,G306
http://statistics.data.gov.uk/id/local-authority/00BF,London Borough of Sutton,01/10/2016,40010667,"4,574.71",Care Unlimited Domcare Ltd,28906,Peoples Services Directorate,Supported Living - Ext Provider,G306
http://statistics.data.gov.uk/id/local-authority/00BF,London Borough of Sutton,01/10/2016,40010668,"4,060.00",Care Unlimited Domcare Ltd,28906,Peoples Services Directorate,Supported Living - Ext Provider,G306
http://statistics.data.gov.uk/id/local-authority/00BF,London Borough of Sutton,01/10/2016,40010669,"5,239.00",Care Unlimited Domcare Ltd,28906,Peoples Services Directorate,Supported Living - Ext Provider,G306
http://statistics.data.gov.uk/id/local-authority/00BF,London Borough of Sutton,04/11/2016,40007379,"1,780.00",Care Unlimited Group Ltd,10774,Peoples Services Directorate,Residential Care - Ext Provider,G310
http://statistics.data.gov.uk/id/local-authority/00BF,London Borough of Sutton,04/11/2016,40007415,"1,692.00",Care Unlimited Group Ltd,10774,Peoples Services Directorate,Residential Care - Ext Provider,G310
http://statistics.data.gov.uk/id/local-authority/00BF,London Borough of Sutton,04/11/2016,40007505,"2,550.00",Care Unlimited Group Ltd,10774,Peoples Services Directorate,Interim Placements - Ext Provider,G317
http://statistics.data.gov.uk/id/local-authority/00BF,London Borough of Sutton,04/11/2016,40007544,"3,171.43",Care Unlimited Group Ltd,10774,Peoples Services Directorate,Interim Placements - Ext Provider,G317
http://statistics.data.gov.uk/id/local-authority/00BF,London Borough of Sutton,04/11/2016,40007554,"1,692.00",Care Unlimited Group Ltd,10774,Peoples Services Directorate,Residential Care - Ext Provider,G310
http://statistics.data.gov.uk/id/local-authority/00BF,London Borough of Sutton,04/11/2016,40007663,"2,940.00",Care Unlimited Group Ltd,10774,Peoples Services Directorate,Residential Care - Ext Provider,G310
http://statistics.data.gov.uk/id/local-authority/00BF,London Borough of Sutton,13/11/2016,40015311,496.65,Caremark (Sutton),25541,Peoples Services Directorate,Home Care,G334
http://statistics.data.gov.uk/id/local-authority/00BF,London Borough of Sutton,25/09/2016,40015325,538.62,Caremark (Sutton),25541,Peoples Services Directorate,Home Care,G334
http://statistics.data.gov.uk/id/local-authority/00BF,London Borough of Sutton,25/09/2016,40015339,538.62,Caremark (Sutton),25541,Peoples Services Directorate,Home Care,G334
http://statistics.data.gov.uk/id/local-authority/00BF,London Borough of Sutton,06/11/2016,40015432,538.62,Caremark (Sutton),25541,Peoples Services Directorate,Home Care,G334
http://statistics.data.gov.uk/id/local-authority/00BF,London Borough of Sutton,13/11/2016,40015479,528.12,Caremark (Sutton),25541,Peoples Services Directorate,Home Care,G334
http://statistics.data.gov.uk/id/local-authority/00BF,London Borough of Sutton,30/10/2016,40015488,538.62,Caremark (Sutton),25541,Peoples Services Directorate,Home Care,G334
http://statistics.data.gov.uk/id/local-authority/00BF,London Borough of Sutton,30/10/2016,40015594,538.62,Caremark (Sutton),25541,Peoples Services Directorate,Home Care,G334
http://statistics.data.gov.uk/id/local-authority/00BF,London Borough of Sutton,06/11/2016,40015611,538.62,Caremark (Sutton),25541,Peoples Services Directorate,Home Care,G334
http://statistics.data.gov.uk/id/local-authority/00BF,London Borough of Sutton,30/06/2016,40015662,"1,322.16",Caremark (Sutton),25541,Peoples Services Directorate,Home Care,G334
http://statistics.data.gov.uk/id/local-authority/00BF,London Borough of Sutton,01/09/2016,6896237,"1,313.00",Caretech,10783,Peoples Services Directorate,Furniture - Repairs and Maintenance,F081
http://statistics.data.gov.uk/id/local-authority/00BF,London Borough of Sutton,04/11/2016,40007300,"5,270.48",Caretech Community Services Ltd,10791,Peoples Services Directorate,Residential Care - Ext Provider,G310
http://statistics.data.gov.uk/id/local-authority/00BF,London Borough of Sutton,04/11/2016,40007568,"5,270.48",Caretech Community Services Ltd,10791,Peoples Services Directorate,Residential Care - Ext Provider,G310
http://statistics.data.gov.uk/id/local-authority/00BF,London Borough of Sutton,04/11/2016,40007608,"5,405.88",Caretech Community Services Ltd,10791,Peoples Services Directorate,Residential Care - Ext Provider,G310
http://statistics.data.gov.uk/id/local-authority/00BF,London Borough of Sutton,04/11/2016,40007660,"5,270.48",Caretech Community Services Ltd,10791,Peoples Services Directorate,Residential Care - Ext Provider,G310
http://statistics.data.gov.uk/id/local-authority/00BF,London Borough of Sutton,01/10/2016,40010685,"2,092.50",Caretech Community Services Ltd,10791,Peoples Services Directorate,One to One Care,G335
http://statistics.data.gov.uk/id/local-authority/00BF,London Borough of Sutton,27/10/2016,40006902,"5,531.25",Carlene Home Care Services,28878,Peoples Services Directorate,Supported Living - Ext Provider,G306
http://statistics.data.gov.uk/id/local-authority/00BF,London Borough of Sutton,04/11/2016,40007288,"2,654.68",Carlene House,10763,Peoples Services Directorate,Residential Care - Ext Provider,G310
http://statistics.data.gov.uk/id/local-authority/00BF,London Borough of Sutton,04/11/2016,40007588,"2,682.68",Carlene House,10763,Peoples Services Directorate,Residential Care - Ext Provider,G310
http://statistics.data.gov.uk/id/local-authority/00BF,London Borough of Sutton,04/11/2016,40007628,"2,625.28",Carlene House,10763,Peoples Services Directorate,Residential Care - Ext Provider,G310
http://statistics.data.gov.uk/id/local-authority/00BF,London Borough of Sutton,04/11/2016,40007634,"2,740.64",Carlene House,10763,Peoples Services Directorate,Residential Care - Ext Provider,G310
http://statistics.data.gov.uk/id/local-authority/00BF,London Borough of Sutton,04/11/2016,40007641,"4,440.00",Carlene House,10763,Peoples Services Directorate,Residential Care - Ext Provider,G310
http://statistics.data.gov.uk/id/local-authority/00BF,London Borough of Sutton,04/11/2016,40007651,"2,630.60",Carlene House,10763,Peoples Services Directorate,Residential Care - Ext Provider,G310
http://statistics.data.gov.uk/id/local-authority/00BF,London Borough of Sutton,04/11/2016,40007673,"2,625.28",Carlene House,10763,Peoples Services Directorate,Residential Care - Ext Provider,G310
http://statistics.data.gov.uk/id/local-authority/00BF,London Borough of Sutton,28/10/2016,6895252,970.07,Carpetright Plc,99863,Peoples Services Directorate,Personal Requisites,F106
http://statistics.data.gov.uk/id/local-authority/00BF,London Borough of Sutton,18/11/2016,6896552,"1,598.00",Carshalton Beeches Baptist Free Church,20542,"Environment, Housing & Regeneration Directorate",Assistance to Voluntary Organisations,F471
http://statistics.data.gov.uk/id/local-authority/00BF,London Borough of Sutton,24/10/2016,6896606,"233,821.56",Carshalton High School for Girls (Academy),23995,Peoples Services Directorate,Building Works -Main Contractor,Y350
http://statistics.data.gov.uk/id/local-authority/00BF,London Borough of Sutton,12/11/2016,6896155,"1,055.95",Caysh Enterprise Cic,28016,Peoples Services Directorate,Approved Lodgings,H323
http://statistics.data.gov.uk/id/local-authority/00BF,London Borough of Sutton,29/11/2016,1227771,"29,666.67",Caysh Housing Project,23133,"Environment, Housing & Regeneration Directorate",Supporting People - Teenage Parent Services,H247
http://statistics.data.gov.uk/id/local-authority/00BF,London Borough of Sutton,31/10/2016,6895030,"1,202.80",Caysh Housing Project,23133,Peoples Services Directorate,Approved Lodgings,H323
http://statistics.data.gov.uk/id/local-authority/00BF,London Borough of Sutton,31/10/2016,6895032,"1,184.20",Caysh Housing Project,23133,Peoples Services Directorate,Approved Lodgings,H323
http://statistics.data.gov.uk/id/local-authority/00BF,London Borough of Sutton,31/10/2016,6895033,"1,202.80",Caysh Housing Project,23133,Peoples Services Directorate,Approved Lodgings,H323
http://statistics.data.gov.uk/id/local-authority/00BF,London Borough of Sutton,31/10/2016,6895035,"1,184.20",Caysh Housing Project,23133,Peoples Services Directorate,Approved Lodgings,H323
http://statistics.data.gov.uk/id/local-authority/00BF,London Borough of Sutton,31/10/2016,6895037,"1,226.36",Caysh Housing Project,23133,Peoples Services Directorate,Approved Lodgings,H323
http://statistics.data.gov.uk/id/local-authority/00BF,London Borough of Sutton,31/10/2016,6895038,"1,179.86",Caysh Housing Project,23133,Peoples Services Directorate,Approved Lodgings,H323
http://statistics.data.gov.uk/id/local-authority/00BF,London Borough of Sutton,31/10/2016,6895039,"1,179.86",Caysh Housing Project,23133,Peoples Services Directorate,Approved Lodgings,H323
http://statistics.data.gov.uk/id/local-authority/00BF,London Borough of Sutton,31/10/2016,6895041,"1,202.80",Caysh Housing Project,23133,Peoples Services Directorate,Approved Lodgings,H323
http://statistics.data.gov.uk/id/local-authority/00BF,London Borough of Sutton,31/10/2016,6895042,"1,121.27",Caysh Housing Project,23133,Peoples Services Directorate,Approved Lodgings,H323
http://statistics.data.gov.uk/id/local-authority/00BF,London Borough of Sutton,31/10/2016,6895046,"1,184.20",Caysh Housing Project,23133,Peoples Services Directorate,Approved Lodgings,H323
http://statistics.data.gov.uk/id/local-authority/00BF,London Borough of Sutton,24/11/2015,6897199,699.00,Cellmark,16994,Peoples Services Directorate,Fees - Consultants (Ad Hoc),F283
http://statistics.data.gov.uk/id/local-authority/00BF,London Borough of Sutton,24/11/2015,6897204,699.00,Cellmark,16994,Peoples Services Directorate,Fees - Consultants (Ad Hoc),F283
http://statistics.data.gov.uk/id/local-authority/00BF,London Borough of Sutton,28/08/2016,6895180,"8,389.49",Cheam Park Farm Infant School Acadamy,25348,Peoples Services Directorate,Consultants/Hons,A310
http://statistics.data.gov.uk/id/local-authority/00BF,London Borough of Sutton,31/10/2016,1226849,600.00,Cheam Station Cars,15604,Peoples Services Directorate,Hired Peoples Transport (Children),E072
http://statistics.data.gov.uk/id/local-authority/00BF,London Borough of Sutton,31/10/2016,1226850,619.00,Cheam Station Cars,15604,Peoples Services Directorate,Hired Peoples Transport (Children),E072
http://statistics.data.gov.uk/id/local-authority/00BF,London Borough of Sutton,31/10/2016,1226851,"1,000.00",Cheam Station Cars,15604,Peoples Services Directorate,Hired Peoples Transport (Children),E072
http://statistics.data.gov.uk/id/local-authority/00BF,London Borough of Sutton,31/10/2016,1226852,925.00,Cheam Station Cars,15604,Peoples Services Directorate,Hired Peoples Transport (Children),E072
http://statistics.data.gov.uk/id/local-authority/00BF,London Borough of Sutton,31/10/2016,1226853,775.00,Cheam Station Cars,15604,Peoples Services Directorate,Hired Peoples Transport (Children),E072
http://statistics.data.gov.uk/id/local-authority/00BF,London Borough of Sutton,31/10/2016,1226854,770.00,Cheam Station Cars,15604,Peoples Services Directorate,Hired Peoples Transport (Children),E072
http://statistics.data.gov.uk/id/local-authority/00BF,London Borough of Sutton,31/10/2016,1226856,"1,600.00",Cheam Station Cars,15604,Peoples Services Directorate,Hired Peoples Transport (Children),E072
http://statistics.data.gov.uk/id/local-authority/00BF,London Borough of Sutton,31/10/2016,1226857,468.00,Cheam Station Cars,15604,Peoples Services Directorate,Hired Peoples Transport (Children),E072
http://statistics.data.gov.uk/id/local-authority/00BF,London Borough of Sutton,31/10/2016,1226858,"2,811.00",Cheam Station Cars,15604,Peoples Services Directorate,Hired Peoples Transport (Children),E072
http://statistics.data.gov.uk/id/local-authority/00BF,London Borough of Sutton,31/10/2016,1226859,"1,760.00",Cheam Station Cars,15604,Peoples Services Directorate,Hired Peoples Transport (Children),E072
http://statistics.data.gov.uk/id/local-authority/00BF,London Borough of Sutton,31/10/2016,1226860,525.00,Cheam Station Cars,15604,Peoples Services Directorate,Hired Peoples Transport (Children),E072
http://statistics.data.gov.uk/id/local-authority/00BF,London Borough of Sutton,31/10/2016,1226861,"1,190.00",Cheam Station Cars,15604,Peoples Services Directorate,Hired Peoples Transport (Children),E072
http://statistics.data.gov.uk/id/local-authority/00BF,London Borough of Sutton,31/10/2016,1226862,"2,250.00",Cheam Station Cars,15604,Peoples Services Directorate,Hired Peoples Transport (Children),E072
http://statistics.data.gov.uk/id/local-authority/00BF,London Borough of Sutton,31/10/2016,1226863,"2,496.00",Cheam Station Cars,15604,Peoples Services Directorate,Hired Peoples Transport (Children),E072
http://statistics.data.gov.uk/id/local-authority/00BF,London Borough of Sutton,31/10/2016,1226864,"2,820.00",Cheam Station Cars,15604,Peoples Services Directorate,Hired Peoples Transport (Children),E072
http://statistics.data.gov.uk/id/local-authority/00BF,London Borough of Sutton,31/10/2016,1226866,700.00,Cheam Station Cars,15604,Peoples Services Directorate,Hired Peoples Transport (Children),E072
http://statistics.data.gov.uk/id/local-authority/00BF,London Borough of Sutton,31/10/2016,1226868,"1,080.00",Cheam Station Cars,15604,Peoples Services Directorate,Hired Peoples Transport (Children),E072
http://statistics.data.gov.uk/id/local-authority/00BF,London Borough of Sutton,31/10/2016,1226869,"1,402.00",Cheam Station Cars,15604,Peoples Services Directorate,Hired Peoples Transport (Children),E072
http://statistics.data.gov.uk/id/local-authority/00BF,London Borough of Sutton,31/10/2016,1226870,750.00,Cheam Station Cars,15604,Peoples Services Directorate,Hired Peoples Transport (Children),E072
http://statistics.data.gov.uk/id/local-authority/00BF,London Borough of Sutton,31/10/2016,1226872,"2,550.00",Cheam Station Cars,15604,Peoples Services Directorate,Hired Peoples Transport (Children),E072
http://statistics.data.gov.uk/id/local-authority/00BF,London Borough of Sutton,31/10/2016,1226873,"1,760.00",Cheam Station Cars,15604,Peoples Services Directorate,Hired Peoples Transport (Children),E072
http://statistics.data.gov.uk/id/local-authority/00BF,London Borough of Sutton,31/10/2016,1226874,960.00,Cheam Station Cars,15604,Peoples Services Directorate,Hired Peoples Transport (Children),E072
http://statistics.data.gov.uk/id/local-authority/00BF,London Borough of Sutton,31/10/2016,1226875,650.00,Cheam Station Cars,15604,Peoples Services Directorate,Hired Peoples Transport (Children),E072
http://statistics.data.gov.uk/id/local-authority/00BF,London Borough of Sutton,31/10/2016,1226877,"2,736.00",Cheam Station Cars,15604,Peoples Services Directorate,Hired Peoples Transport (Children),E072
http://statistics.data.gov.uk/id/local-authority/00BF,London Borough of Sutton,04/11/2016,40007283,"1,928.24",Chegworth Nursing Home Bayswift Ltd,10908,Peoples Services Directorate,Nursing Care - Ext Provider,G311
http://statistics.data.gov.uk/id/local-authority/00BF,London Borough of Sutton,04/11/2016,40007334,"2,539.84",Chegworth Nursing Home Bayswift Ltd,10908,Peoples Services Directorate,Nursing Care - Ext Provider,G311
http://statistics.data.gov.uk/id/local-authority/00BF,London Borough of Sutton,04/11/2016,40007381,"2,352.00",Chegworth Nursing Home Bayswift Ltd,10908,Peoples Services Directorate,Nursing Care - Ext Provider,G311
http://statistics.data.gov.uk/id/local-authority/00BF,London Borough of Sutton,04/11/2016,40007395,"2,467.96",Chegworth Nursing Home Bayswift Ltd,10908,Peoples Services Directorate,Nursing Care - Ext Provider,G311
http://statistics.data.gov.uk/id/local-authority/00BF,London Borough of Sutton,04/11/2016,40007478,"3,600.00",Chegworth Nursing Home Bayswift Ltd,10908,Peoples Services Directorate,Nursing Care - Ext Provider,G311
http://statistics.data.gov.uk/id/local-authority/00BF,London Borough of Sutton,04/11/2016,40007510,"3,600.00",Chegworth Nursing Home Bayswift Ltd,10908,Peoples Services Directorate,Nursing Care - Short Term Placements,G328
http://statistics.data.gov.uk/id/local-authority/00BF,London Borough of Sutton,04/11/2016,40007521,"2,121.43",Chegworth Nursing Home Bayswift Ltd,10908,Peoples Services Directorate,Nursing Care - Ext Provider,G311
http://statistics.data.gov.uk/id/local-authority/00BF,London Borough of Sutton,04/11/2016,40007542,"2,571.43",Chegworth Nursing Home Bayswift Ltd,10908,Peoples Services Directorate,Nursing Care - Short Term Placements,G328
http://statistics.data.gov.uk/id/local-authority/00BF,London Borough of Sutton,04/11/2016,40007562,"2,781.64",Chegworth Nursing Home Bayswift Ltd,10908,Peoples Services Directorate,Nursing Care - Ext Provider,G311
http://statistics.data.gov.uk/id/local-authority/00BF,London Borough of Sutton,04/11/2016,40007569,"1,904.00",Chegworth Nursing Home Bayswift Ltd,10908,Peoples Services Directorate,Nursing Care - Ext Provider,G311
http://statistics.data.gov.uk/id/local-authority/00BF,London Borough of Sutton,04/11/2016,40007655,"2,800.00",Chegworth Nursing Home Bayswift Ltd,10908,Peoples Services Directorate,Nursing Care - Ext Provider,G311
http://statistics.data.gov.uk/id/local-authority/00BF,London Borough of Sutton,07/11/2016,6895573,"9,513.61",Chelsea and Westminster NHS ft,28891,Peoples Services Directorate,Provider Contract Payments,F470
http://statistics.data.gov.uk/id/local-authority/00BF,London Borough of Sutton,07/11/2016,6895574,"9,513.61",Chelsea and Westminster NHS ft,28891,Peoples Services Directorate,Provider Contract Payments,F470
http://statistics.data.gov.uk/id/local-authority/00BF,London Borough of Sutton,07/11/2016,6895575,"6,219.58",Chelsea and Westminster NHS ft,28891,Peoples Services Directorate,Provider Contract Payments,F470
http://statistics.data.gov.uk/id/local-authority/00BF,London Borough of Sutton,07/11/2016,6895576,"6,219.58",Chelsea and Westminster NHS ft,28891,Peoples Services Directorate,Provider Contract Payments,F470
http://statistics.data.gov.uk/id/local-authority/00BF,London Borough of Sutton,07/11/2016,6895578,"107,562.48",Chelsea and Westminster NHS ft,28891,Peoples Services Directorate,Provider Contract Payments,F470
http://statistics.data.gov.uk/id/local-authority/00BF,London Borough of Sutton,30/10/2016,40009012,462.00,Chenash Homecare Specialists And Care Agency,25667,Peoples Services Directorate,Home Care,G334
http://statistics.data.gov.uk/id/local-authority/00BF,London Borough of Sutton,30/10/2016,40009018,518.00,Chenash Homecare Specialists And Care Agency,25667,Peoples Services Directorate,Home Care,G334
http://statistics.data.gov.uk/id/local-authority/00BF,London Borough of Sutton,30/10/2016,40009670,735.00,Chenash Homecare Specialists And Care Agency,25667,Peoples Services Directorate,Home Care,G334
http://statistics.data.gov.uk/id/local-authority/00BF,London Borough of Sutton,30/10/2016,40009845,462.00,Chenash Homecare Specialists And Care Agency,25667,Peoples Services Directorate,Home Care,G334
http://statistics.data.gov.uk/id/local-authority/00BF,London Borough of Sutton,21/08/2016,40015329,490.00,Chenash Homecare Specialists And Care Agency,25667,Peoples Services Directorate,Home Care,G334
http://statistics.data.gov.uk/id/local-authority/00BF,London Borough of Sutton,06/11/2016,40015363,441.00,Chenash Homecare Specialists And Care Agency,25667,Peoples Services Directorate,Home Care,G334
http://statistics.data.gov.uk/id/local-authority/00BF,London Borough of Sutton,06/11/2016,40015397,574.00,Chenash Homecare Specialists And Care Agency,25667,Peoples Services Directorate,Home Care,G334
http://statistics.data.gov.uk/id/local-authority/00BF,London Borough of Sutton,21/08/2016,40015505,588.00,Chenash Homecare Specialists And Care Agency,25667,Peoples Services Directorate,Home Care,G334
http://statistics.data.gov.uk/id/local-authority/00BF,London Borough of Sutton,21/08/2016,40015537,735.00,Chenash Homecare Specialists And Care Agency,25667,Peoples Services Directorate,Home Care,G334
http://statistics.data.gov.uk/id/local-authority/00BF,London Borough of Sutton,21/08/2016,40015566,546.00,Chenash Homecare Specialists And Care Agency,25667,Peoples Services Directorate,Home Care,G334
http://statistics.data.gov.uk/id/local-authority/00BF,London Borough of Sutton,21/08/2016,40015567,497.54,Chenash Homecare Specialists And Care Agency,25667,Peoples Services Directorate,Home Care,G334
http://statistics.data.gov.uk/id/local-authority/00BF,London Borough of Sutton,06/11/2016,40015619,588.00,Chenash Homecare Specialists And Care Agency,25667,Peoples Services Directorate,Home Care,G334
http://statistics.data.gov.uk/id/local-authority/00BF,London Borough of Sutton,06/11/2016,40015622,735.00,Chenash Homecare Specialists And Care Agency,25667,Peoples Services Directorate,Home Care,G334
http://statistics.data.gov.uk/id/local-authority/00BF,London Borough of Sutton,04/11/2016,40007596,"2,409.80",Cherry Lodge,10934,Peoples Services Directorate,Residential Care - Ext Provider,G310
http://statistics.data.gov.uk/id/local-authority/00BF,London Borough of Sutton,04/11/2016,40007609,"3,360.00",Cherry Lodge,10934,Peoples Services Directorate,Residential Care - Ext Provider,G310
http://statistics.data.gov.uk/id/local-authority/00BF,London Borough of Sutton,15/09/2016,6894926,"1,152.30",Children of Colour,16870,Peoples Services Directorate,Approved Lodgings,H323
http://statistics.data.gov.uk/id/local-authority/00BF,London Borough of Sutton,31/10/2016,1227477,"4,283.33",Chipstead Valey Primary Trust T/A Chipstead Valley Primary School,26265,Peoples Services Directorate,Top-up Funding,G064
http://statistics.data.gov.uk/id/local-authority/00BF,London Borough of Sutton,04/11/2016,40007298,"7,511.00",Choice Care Group,22029,Peoples Services Directorate,Residential Care - Ext Provider,G310
http://statistics.data.gov.uk/id/local-authority/00BF,London Borough of Sutton,04/11/2016,40007402,"7,682.20",Choice Care Group,22029,Peoples Services Directorate,Residential Care - Ext Provider,G310
http://statistics.data.gov.uk/id/local-authority/00BF,London Borough of Sutton,04/11/2016,40007577,"7,511.00",Choice Care Group,22029,Peoples Services Directorate,Residential Care - Ext Provider,G310
http://statistics.data.gov.uk/id/local-authority/00BF,London Borough of Sutton,14/09/2016,40010590,"2,300.85",Choice Care Group,22029,Peoples Services Directorate,Supported Living - Ext Provider,G306
http://statistics.data.gov.uk/id/local-authority/00BF,London Borough of Sutton,14/09/2016,40010615,"1,240.00",Choice Care Group,22029,Peoples Services Directorate,Supported Living - Ext Provider,G306
http://statistics.data.gov.uk/id/local-authority/00BF,London Borough of Sutton,21/10/2016,40006845,763.84,Choice Support,22320,Peoples Services Directorate,Supported Living - Ext Provider,G306
http://statistics.data.gov.uk/id/local-authority/00BF,London Borough of Sutton,21/10/2016,40006845,"5,036.57",Choice Support,22320,Peoples Services Directorate,Supported Living - Ext Provider,G306
http://statistics.data.gov.uk/id/local-authority/00BF,London Borough of Sutton,21/10/2016,40006846,763.84,Choice Support,22320,Peoples Services Directorate,Supported Living - Ext Provider,G306
http://statistics.data.gov.uk/id/local-authority/00BF,London Borough of Sutton,21/10/2016,40006846,"5,684.47",Choice Support,22320,Peoples Services Directorate,Supported Living - Ext Provider,G306
http://statistics.data.gov.uk/id/local-authority/00BF,London Borough of Sutton,21/10/2016,40006847,763.84,Choice Support,22320,Peoples Services Directorate,Supported Living - Ext Provider,G306
http://statistics.data.gov.uk/id/local-authority/00BF,London Borough of Sutton,21/10/2016,40006847,"5,282.09",Choice Support,22320,Peoples Services Directorate,Supported Living - Ext Provider,G306
http://statistics.data.gov.uk/id/local-authority/00BF,London Borough of Sutton,21/10/2016,40006855,763.84,Choice Support,22320,Peoples Services Directorate,Supported Living - Ext Provider,G306
http://statistics.data.gov.uk/id/local-authority/00BF,London Borough of Sutton,21/10/2016,40006855,"4,920.63",Choice Support,22320,Peoples Services Directorate,Supported Living - Ext Provider,G306
http://statistics.data.gov.uk/id/local-authority/00BF,London Borough of Sutton,21/10/2016,40006856,763.84,Choice Support,22320,Peoples Services Directorate,Supported Living - Ext Provider,G306
http://statistics.data.gov.uk/id/local-authority/00BF,London Borough of Sutton,21/10/2016,40006856,"6,236.89",Choice Support,22320,Peoples Services Directorate,Supported Living - Ext Provider,G306
http://statistics.data.gov.uk/id/local-authority/00BF,London Borough of Sutton,21/10/2016,40006857,763.84,Choice Support,22320,Peoples Services Directorate,Supported Living - Ext Provider,G306
http://statistics.data.gov.uk/id/local-authority/00BF,London Borough of Sutton,21/10/2016,40006857,"4,511.43",Choice Support,22320,Peoples Services Directorate,Supported Living - Ext Provider,G306
http://statistics.data.gov.uk/id/local-authority/00BF,London Borough of Sutton,21/10/2016,40006858,763.84,Choice Support,22320,Peoples Services Directorate,Supported Living - Ext Provider,G306
http://statistics.data.gov.uk/id/local-authority/00BF,London Borough of Sutton,21/10/2016,40006858,"4,927.45",Choice Support,22320,Peoples Services Directorate,Supported Living - Ext Provider,G306
http://statistics.data.gov.uk/id/local-authority/00BF,London Borough of Sutton,21/10/2016,40006859,"3,240.16",Choice Support,22320,Peoples Services Directorate,Supported Living - Ext Provider,G306
http://statistics.data.gov.uk/id/local-authority/00BF,London Borough of Sutton,21/10/2016,40006859,545.60,Choice Support,22320,Peoples Services Directorate,Supported Living - Ext Provider,G306
http://statistics.data.gov.uk/id/local-authority/00BF,London Borough of Sutton,21/10/2016,40006859,"2,836.80",Choice Support,22320,Peoples Services Directorate,Supported Living - Ext Provider,G306
http://statistics.data.gov.uk/id/local-authority/00BF,London Borough of Sutton,21/10/2016,40006860,"2,546.61",Choice Support,22320,Peoples Services Directorate,Supported Living - Ext Provider,G306
http://statistics.data.gov.uk/id/local-authority/00BF,London Borough of Sutton,21/10/2016,40006860,545.60,Choice Support,22320,Peoples Services Directorate,Supported Living - Ext Provider,G306
http://statistics.data.gov.uk/id/local-authority/00BF,London Borough of Sutton,21/10/2016,40006860,"1,363.64",Choice Support,22320,Peoples Services Directorate,Supported Living - Ext Provider,G306
http://statistics.data.gov.uk/id/local-authority/00BF,London Borough of Sutton,21/10/2016,40006861,"2,114.20",Choice Support,22320,Peoples Services Directorate,Supported Living - Ext Provider,G306
http://statistics.data.gov.uk/id/local-authority/00BF,London Borough of Sutton,21/10/2016,40006861,545.60,Choice Support,22320,Peoples Services Directorate,Supported Living - Ext Provider,G306
http://statistics.data.gov.uk/id/local-authority/00BF,London Borough of Sutton,21/10/2016,40006861,"1,364.00",Choice Support,22320,Peoples Services Directorate,Supported Living - Ext Provider,G306
http://statistics.data.gov.uk/id/local-authority/00BF,London Borough of Sutton,21/10/2016,40006862,"2,366.54",Choice Support,22320,Peoples Services Directorate,Supported Living - Ext Provider,G306
http://statistics.data.gov.uk/id/local-authority/00BF,London Borough of Sutton,21/10/2016,40006862,545.60,Choice Support,22320,Peoples Services Directorate,Supported Living - Ext Provider,G306
http://statistics.data.gov.uk/id/local-authority/00BF,London Borough of Sutton,21/10/2016,40006862,"1,534.50",Choice Support,22320,Peoples Services Directorate,Supported Living - Ext Provider,G306
http://statistics.data.gov.uk/id/local-authority/00BF,London Borough of Sutton,21/10/2016,40006863,"1,241.24",Choice Support,22320,Peoples Services Directorate,Supported Living - Ext Provider,G306
http://statistics.data.gov.uk/id/local-authority/00BF,London Borough of Sutton,21/10/2016,40006863,545.60,Choice Support,22320,Peoples Services Directorate,Supported Living - Ext Provider,G306
http://statistics.data.gov.uk/id/local-authority/00BF,London Borough of Sutton,21/10/2016,40006863,"1,677.72",Choice Support,22320,Peoples Services Directorate,Supported Living - Ext Provider,G306
http://statistics.data.gov.uk/id/local-authority/00BF,London Borough of Sutton,21/10/2016,40006866,"1,534.50",Choice Support,22320,Peoples Services Directorate,Supported Living - Ext Provider,G306
http://statistics.data.gov.uk/id/local-authority/00BF,London Borough of Sutton,21/10/2016,40006866,545.60,Choice Support,22320,Peoples Services Directorate,Supported Living - Ext Provider,G306
http://statistics.data.gov.uk/id/local-authority/00BF,London Borough of Sutton,21/10/2016,40006866,"1,602.70",Choice Support,22320,Peoples Services Directorate,Supported Living - Ext Provider,G306
http://statistics.data.gov.uk/id/local-authority/00BF,London Borough of Sutton,21/10/2016,40006872,"1,493.58",Choice Support,22320,Peoples Services Directorate,Supported Living - Ext Provider,G306
http://statistics.data.gov.uk/id/local-authority/00BF,London Borough of Sutton,21/10/2016,40006872,545.60,Choice Support,22320,Peoples Services Directorate,Supported Living - Ext Provider,G306
http://statistics.data.gov.uk/id/local-authority/00BF,London Borough of Sutton,21/10/2016,40006872,"1,807.30",Choice Support,22320,Peoples Services Directorate,Supported Living - Ext Provider,G306
http://statistics.data.gov.uk/id/local-authority/00BF,London Borough of Sutton,21/10/2016,40006873,763.84,Choice Support,22320,Peoples Services Directorate,Supported Living - Ext Provider,G306
http://statistics.data.gov.uk/id/local-authority/00BF,London Borough of Sutton,21/10/2016,40006873,"5,261.63",Choice Support,22320,Peoples Services Directorate,Supported Living - Ext Provider,G306
http://statistics.data.gov.uk/id/local-authority/00BF,London Borough of Sutton,01/11/2016,6895102,"10,634.00",Chroma Vision Limited,20351,"Environment, Housing & Regeneration Directorate",IT Equipment - Repair and Maintenance,F382
http://statistics.data.gov.uk/id/local-authority/00BF,London Borough of Sutton,01/12/2016,6896968,"21,680.00",Citizens Advice Bureau,10969,Chief Executive's Directorate,Provider Contract Payments,F470
http://statistics.data.gov.uk/id/local-authority/00BF,London Borough of Sutton,01/12/2016,6897065,"120,239.50",Citizens Advice Bureau,10969,Chief Executive's Directorate,Provider Contract Payments,F470
http://statistics.data.gov.uk/id/local-authority/00BF,London Borough of Sutton,27/10/2016,6895259,"10,838.70",City of London,22388,"Environment, Housing & Regeneration Directorate",Asbestos CA Disposal,G173
http://statistics.data.gov.uk/id/local-authority/00BF,London Borough of Sutton,31/10/2016,6895388,"1,920.00",City Sprint UK (Excel) Ltd,26267,Peoples Services Directorate,Hired Vehicles,E070
http://statistics.data.gov.uk/id/local-authority/00BF,London Borough of Sutton,08/09/2016,6891312,"2,018.00",City Suburban Tree Surgeons,24817,"Environment, Housing & Regeneration Directorate",Trees,G401
http://statistics.data.gov.uk/id/local-authority/00BF,London Borough of Sutton,04/11/2016,6895443,"40,952.94",City Suburban Tree Surgeons,24817,"Environment, Housing & Regeneration Directorate",Highway Trees - Maintenance,D560
http://statistics.data.gov.uk/id/local-authority/00BF,London Borough of Sutton,04/11/2016,6895454,"10,694.00",City Suburban Tree Surgeons,24817,"Environment, Housing & Regeneration Directorate",Trees,G401
http://statistics.data.gov.uk/id/local-authority/00BF,London Borough of Sutton,04/11/2016,6895455,"18,619.50",City Suburban Tree Surgeons,24817,"Environment, Housing & Regeneration Directorate",Highway Trees - Maintenance,D560
http://statistics.data.gov.uk/id/local-authority/00BF,London Borough of Sutton,04/11/2016,6895475,"12,963.04",City Suburban Tree Surgeons,24817,"Environment, Housing & Regeneration Directorate",Trees - SCH,D875
http://statistics.data.gov.uk/id/local-authority/00BF,London Borough of Sutton,08/11/2016,6895618,"5,406.29",City Suburban Tree Surgeons,24817,"Environment, Housing & Regeneration Directorate",Trees - SCH,D875
http://statistics.data.gov.uk/id/local-authority/00BF,London Borough of Sutton,01/11/2016,6896546,"24,114.00",Cityglen Ltd T/A Hytyme ltd,24115,"Environment, Housing & Regeneration Directorate",Bed and Breakfast Accommodation,G400
http://statistics.data.gov.uk/id/local-authority/00BF,London Borough of Sutton,04/11/2016,6895695,"1,482.00",Civica UK Ltd,10978,Resources Directorate,IT Licences,F385
http://statistics.data.gov.uk/id/local-authority/00BF,London Borough of Sutton,26/10/2016,6896657,"9,900.00",Civica UK Ltd,10978,"Environment, Housing & Regeneration Directorate",Fees - Computer Software,F384
http://statistics.data.gov.uk/id/local-authority/00BF,London Borough of Sutton,25/11/2016,6897102,756.70,Civica UK Ltd,10978,Resources Directorate,Purchase of IT Equipment,F380
http://statistics.data.gov.uk/id/local-authority/00BF,London Borough of Sutton,04/11/2016,40007308,"4,000.00",Claremont Care Svs Ltd,18724,Peoples Services Directorate,Nursing Care - Ext Provider,G311
http://statistics.data.gov.uk/id/local-authority/00BF,London Borough of Sutton,04/11/2016,40007343,"4,200.00",Claremont Care Svs Ltd,18724,Peoples Services Directorate,Nursing Care - Ext Provider,G311
http://statistics.data.gov.uk/id/local-authority/00BF,London Borough of Sutton,04/11/2016,40007502,"2,805.00",Claremont Care Svs Ltd,18724,Peoples Services Directorate,Nursing Care - Ext Provider,G311
http://statistics.data.gov.uk/id/local-authority/00BF,London Borough of Sutton,04/11/2016,40007581,"2,400.00",Claremont Care Svs Ltd,18724,Peoples Services Directorate,Interim Placements - Ext Provider,G317
http://statistics.data.gov.uk/id/local-authority/00BF,London Borough of Sutton,04/11/2016,40007618,"3,400.00",Claremont Care Svs Ltd,18724,Peoples Services Directorate,Nursing Care - Ext Provider,G311
http://statistics.data.gov.uk/id/local-authority/00BF,London Borough of Sutton,04/11/2016,40007373,"2,000.00",Cloyda Limited,20402,Peoples Services Directorate,Residential Care - Ext Provider,G310
http://statistics.data.gov.uk/id/local-authority/00BF,London Borough of Sutton,04/11/2016,40007315,"7,036.00",Cmg Homes Ltd,11026,Peoples Services Directorate,Residential Care - Ext Provider,G310
http://statistics.data.gov.uk/id/local-authority/00BF,London Borough of Sutton,04/11/2016,40007487,"7,000.00",Cmg Homes Ltd,11026,Peoples Services Directorate,Residential Care - Ext Provider,G310
http://statistics.data.gov.uk/id/local-authority/00BF,London Borough of Sutton,04/11/2016,40007504,"7,200.00",Cmg Homes Ltd,11026,Peoples Services Directorate,Residential Care - Ext Provider,G310
http://statistics.data.gov.uk/id/local-authority/00BF,London Borough of Sutton,04/11/2016,40007526,"5,416.92",Cmg Homes Ltd,11026,Peoples Services Directorate,Residential Care - Ext Provider,G310
http://statistics.data.gov.uk/id/local-authority/00BF,London Borough of Sutton,15/11/2016,40010160,"3,874.54",Cmg Homes Ltd,11026,Peoples Services Directorate,Supported Living - Ext Provider,G306
http://statistics.data.gov.uk/id/local-authority/00BF,London Borough of Sutton,15/11/2016,40010161,"4,444.29",Cmg Homes Ltd,11026,Peoples Services Directorate,Supported Living - Ext Provider,G306
http://statistics.data.gov.uk/id/local-authority/00BF,London Borough of Sutton,15/11/2016,40010163,"3,685.71",Cmg Homes Ltd,11026,Peoples Services Directorate,Supported Living - Ext Provider,G306
http://statistics.data.gov.uk/id/local-authority/00BF,London Borough of Sutton,15/11/2016,40010164,"3,540.00",Cmg Homes Ltd,11026,Peoples Services Directorate,Supported Living - Ext Provider,G306
http://statistics.data.gov.uk/id/local-authority/00BF,London Borough of Sutton,01/08/2016,40010166,"10,553.43",Cmg Homes Ltd,11026,Peoples Services Directorate,Supported Living - Ext Provider,G306
http://statistics.data.gov.uk/id/local-authority/00BF,London Borough of Sutton,01/09/2016,40010167,"3,804.14",Cmg Homes Ltd,11026,Peoples Services Directorate,Supported Living - Ext Provider,G306
http://statistics.data.gov.uk/id/local-authority/00BF,London Borough of Sutton,01/09/2016,6896346,"3,696.75",CNH Capital Europe Ltd,23033,"Environment, Housing & Regeneration Directorate",Hired Vehicles,E070
http://statistics.data.gov.uk/id/local-authority/00BF,London Borough of Sutton,31/10/2016,6895605,"1,488.95",Cobalt Telephone Technologies,15645,"Environment, Housing & Regeneration Directorate",General Office Expenses,F235
http://statistics.data.gov.uk/id/local-authority/00BF,London Borough of Sutton,19/10/2016,6896926,"13,020.00",Collaboratei,26296,Chief Executive's Directorate,Fees - Surveys,F280
http://statistics.data.gov.uk/id/local-authority/00BF,London Borough of Sutton,31/10/2016,40010626,713.92,Comfort Care Services UK Ltd,17585,Peoples Services Directorate,Supported Living - Ext Provider,G306
http://statistics.data.gov.uk/id/local-authority/00BF,London Borough of Sutton,11/11/2016,40010727,476.00,Community Home Care Provider,11097,Peoples Services Directorate,Home Care,G334
http://statistics.data.gov.uk/id/local-authority/00BF,London Borough of Sutton,11/11/2016,40010907,513.00,Community Home Care Provider,11097,Peoples Services Directorate,Home Care,G334
http://statistics.data.gov.uk/id/local-authority/00BF,London Borough of Sutton,11/11/2016,40010975,476.00,Community Home Care Provider,11097,Peoples Services Directorate,Home Care,G334
http://statistics.data.gov.uk/id/local-authority/00BF,London Borough of Sutton,11/11/2016,40010990,476.00,Community Home Care Provider,11097,Peoples Services Directorate,Home Care,G334
http://statistics.data.gov.uk/id/local-authority/00BF,London Borough of Sutton,22/11/2016,40015719,476.00,Community Home Care Provider,11097,Peoples Services Directorate,Home Care,G334
http://statistics.data.gov.uk/id/local-authority/00BF,London Borough of Sutton,22/11/2016,40015741,476.00,Community Home Care Provider,11097,Peoples Services Directorate,Home Care,G334
http://statistics.data.gov.uk/id/local-authority/00BF,London Borough of Sutton,22/11/2016,40015772,459.00,Community Home Care Provider,11097,Peoples Services Directorate,Home Care,G334
http://statistics.data.gov.uk/id/local-authority/00BF,London Borough of Sutton,24/08/2015,6892580,952.77,Community Options Ltd,24917,Peoples Services Directorate,Provider Contract Payments,F470
http://statistics.data.gov.uk/id/local-authority/00BF,London Borough of Sutton,04/02/2016,6892581,952.77,Community Options Ltd,24917,Peoples Services Directorate,Provider Contract Payments,F470
http://statistics.data.gov.uk/id/local-authority/00BF,London Borough of Sutton,31/03/2016,6892582,932.05,Community Options Ltd,24917,Peoples Services Directorate,Provider Contract Payments,F470
http://statistics.data.gov.uk/id/local-authority/00BF,London Borough of Sutton,31/10/2016,6895742,"8,192.20",Community Options Ltd,24917,HRA Directorate,Fees - Other,F299
http://statistics.data.gov.uk/id/local-authority/00BF,London Borough of Sutton,31/10/2016,6895742,"1,396.11",Community Options Ltd,24917,HRA Directorate,Fees - Other,F299
http://statistics.data.gov.uk/id/local-authority/00BF,London Borough of Sutton,14/11/2016,6896573,"4,699.65",Community Options Ltd,24917,HRA Directorate,Unoccupied Property Council Tax,D685
http://statistics.data.gov.uk/id/local-authority/00BF,London Borough of Sutton,31/08/2016,6894403,"2,450.00",Compass Children's Homes Ltd,26810,Peoples Services Directorate,Fees - Consultants (Ad Hoc),F283
http://statistics.data.gov.uk/id/local-authority/00BF,London Borough of Sutton,15/11/2016,5014816,"-1,997.81",Compass Fostering London & Eastern,99863,Peoples Services Directorate,Fees - Consultants (Ad Hoc),F283
http://statistics.data.gov.uk/id/local-authority/00BF,London Borough of Sutton,15/11/2016,6896288,"1,997.81",Compass Fostering London & Eastern,99863,Peoples Services Directorate,Fees - Consultants (Ad Hoc),F283
http://statistics.data.gov.uk/id/local-authority/00BF,London Borough of Sutton,15/11/2016,6896598,"1,997.81",Compass Fostering London & Eastern,99863,Peoples Services Directorate,Fees - Consultants (Ad Hoc),F283
http://statistics.data.gov.uk/id/local-authority/00BF,London Borough of Sutton,22/08/2016,6896065,547.98,Compass Fostering South Ltd,27957,Peoples Services Directorate,Fees - Consultants (Ad Hoc),F283
http://statistics.data.gov.uk/id/local-authority/00BF,London Borough of Sutton,22/08/2016,6896066,"1,171.66",Compass Fostering South Ltd,27957,Peoples Services Directorate,Fees - Consultants (Ad Hoc),F283
http://statistics.data.gov.uk/id/local-authority/00BF,London Borough of Sutton,27/10/2016,6895409,"1,600.12",Contract Security Services,23827,Chief Executive's Directorate,Security - Cash In Transit,G410
http://statistics.data.gov.uk/id/local-authority/00BF,London Borough of Sutton,12/03/2014,6896350,516.50,Coram Voice,21584,Peoples Services Directorate,Children Assessments,G329
http://statistics.data.gov.uk/id/local-authority/00BF,London Borough of Sutton,28/07/2016,6896366,533.00,Core Assets Children's Services Ltd,27511,Peoples Services Directorate,Children Assessments,G329
http://statistics.data.gov.uk/id/local-authority/00BF,London Borough of Sutton,28/11/2015,6896367,"1,365.00",Core Assets Children's Services Ltd,27511,Peoples Services Directorate,Children Assessments,G329
http://statistics.data.gov.uk/id/local-authority/00BF,London Borough of Sutton,28/08/2016,6896368,663.00,Core Assets Children's Services Ltd,27511,Peoples Services Directorate,Children Assessments,G329
http://statistics.data.gov.uk/id/local-authority/00BF,London Borough of Sutton,28/10/2016,40010124,598.00,Core Assets Children's Services Ltd,27511,Peoples Services Directorate,Provider Contract Payments,F470
http://statistics.data.gov.uk/id/local-authority/00BF,London Borough of Sutton,28/06/2016,40011332,450.00,Core Assets Children's Services Ltd,27511,Peoples Services Directorate,Provider Contract Payments,F470
http://statistics.data.gov.uk/id/local-authority/00BF,London Borough of Sutton,28/09/2016,40011343,858.00,Core Assets Children's Services Ltd,27511,Peoples Services Directorate,Provider Contract Payments,F470
http://statistics.data.gov.uk/id/local-authority/00BF,London Borough of Sutton,03/11/2016,6895466,"10,940.00",Corelogic Ltd,24747,Peoples Services Directorate,Fees - Computer Software,F384
http://statistics.data.gov.uk/id/local-authority/00BF,London Borough of Sutton,03/11/2016,6895467,"8,493.98",Corelogic Ltd,24747,Peoples Services Directorate,Fees - Computer Software,F384
http://statistics.data.gov.uk/id/local-authority/00BF,London Borough of Sutton,15/09/2016,6895090,"3,000.00",Corkills Ltd,28692,Peoples Services Directorate,Training - Course Fees,A520
http://statistics.data.gov.uk/id/local-authority/00BF,London Borough of Sutton,31/10/2016,6894969,"14,234.06",Corporate Document Services Ltd,11098,Resources Directorate,Suspense/Holding Accounts,X550
http://statistics.data.gov.uk/id/local-authority/00BF,London Borough of Sutton,31/10/2016,6894999,752.10,Corporate Document Services Ltd,11098,"Environment, Housing & Regeneration Directorate",Advertising/Publicity (non Staff),F240
http://statistics.data.gov.uk/id/local-authority/00BF,London Borough of Sutton,04/11/2016,40007329,"3,053.24",Cottisbraine House,11058,Peoples Services Directorate,Residential Care - Ext Provider,G310
http://statistics.data.gov.uk/id/local-authority/00BF,London Borough of Sutton,01/11/2016,6895330,"166,565.17",Cranstoun,11184,Peoples Services Directorate,Provider Contract Payments,F470
http://statistics.data.gov.uk/id/local-authority/00BF,London Borough of Sutton,04/11/2016,40007534,"2,700.00",Cranstoun,11184,Peoples Services Directorate,Interim Placements - Ext Provider,G317
http://statistics.data.gov.uk/id/local-authority/00BF,London Borough of Sutton,04/11/2016,40007537,"5,207.14",Cranstoun,11184,Peoples Services Directorate,Interim Placements - Ext Provider,G317
http://statistics.data.gov.uk/id/local-authority/00BF,London Borough of Sutton,25/11/2016,1227766,"4,843.73",Cressey Oasis Education Ltd,27626,Peoples Services Directorate,Independent Schools,G325
http://statistics.data.gov.uk/id/local-authority/00BF,London Borough of Sutton,31/10/2016,6895319,874.82,Crest Manor Ltd,25469,Peoples Services Directorate,Approved Lodgings,H323
http://statistics.data.gov.uk/id/local-authority/00BF,London Borough of Sutton,31/10/2016,6895320,"1,550.00",Crest Manor Ltd,25469,Peoples Services Directorate,Approved Lodgings,H323
http://statistics.data.gov.uk/id/local-authority/00BF,London Borough of Sutton,31/10/2016,6895321,874.82,Crest Manor Ltd,25469,Peoples Services Directorate,Approved Lodgings,H323
http://statistics.data.gov.uk/id/local-authority/00BF,London Borough of Sutton,31/10/2016,6895322,"2,063.23",Crest Manor Ltd,25469,Peoples Services Directorate,Approved Lodgings,H323
http://statistics.data.gov.uk/id/local-authority/00BF,London Borough of Sutton,31/10/2016,6895323,974.95,Crest Manor Ltd,25469,Peoples Services Directorate,Approved Lodgings,H323
http://statistics.data.gov.uk/id/local-authority/00BF,London Borough of Sutton,31/10/2016,6895324,974.95,Crest Manor Ltd,25469,Peoples Services Directorate,Approved Lodgings,H323
http://statistics.data.gov.uk/id/local-authority/00BF,London Borough of Sutton,31/10/2016,6895325,974.95,Crest Manor Ltd,25469,Peoples Services Directorate,Approved Lodgings,H323
http://statistics.data.gov.uk/id/local-authority/00BF,London Borough of Sutton,31/10/2016,6895326,"1,644.73",Crest Manor Ltd,25469,Peoples Services Directorate,Approved Lodgings,H323
http://statistics.data.gov.uk/id/local-authority/00BF,London Borough of Sutton,31/10/2016,6895327,"1,585.07",Crest Manor Ltd,25469,Peoples Services Directorate,Approved Lodgings,H323
http://statistics.data.gov.uk/id/local-authority/00BF,London Borough of Sutton,31/10/2016,6895390,798.30,Crest Manor Ltd,25469,Peoples Services Directorate,Approved Lodgings,H323
http://statistics.data.gov.uk/id/local-authority/00BF,London Borough of Sutton,04/11/2016,40007563,"2,352.52",Crossways Community,11187,Peoples Services Directorate,Residential Care - Ext Provider,G310
http://statistics.data.gov.uk/id/local-authority/00BF,London Borough of Sutton,01/11/2016,6895861,475.00,Croydon Care Solutions Ltd,24776,Peoples Services Directorate,Equipment,H250
http://statistics.data.gov.uk/id/local-authority/00BF,London Borough of Sutton,29/11/2016,1227772,"1,832.14",Croydon Churches Housing Association,19583,"Environment, Housing & Regeneration Directorate",Supporting People - Older People Services,H244
http://statistics.data.gov.uk/id/local-authority/00BF,London Borough of Sutton,13/10/2016,6893945,"278,000.00",Croydon Council,11227,Peoples Services Directorate,Equipment,H250
http://statistics.data.gov.uk/id/local-authority/00BF,London Borough of Sutton,19/09/2016,6892027,903.00,Croydon Day Opportunities Ltd,24451,Peoples Services Directorate,Play Groups,G322
http://statistics.data.gov.uk/id/local-authority/00BF,London Borough of Sutton,19/09/2016,6892028,516.00,Croydon Day Opportunities Ltd,24451,Peoples Services Directorate,Play Groups,G322
http://statistics.data.gov.uk/id/local-authority/00BF,London Borough of Sutton,09/11/2016,6895862,"11,437.77",Croydon Health Service NHST,26283,Peoples Services Directorate,Provider Contract Payments,F470
http://statistics.data.gov.uk/id/local-authority/00BF,London Borough of Sutton,31/10/2016,1226814,"2,718.00",Cruisers Ltd,18087,Peoples Services Directorate,Hired Peoples Transport (Children),E072
http://statistics.data.gov.uk/id/local-authority/00BF,London Borough of Sutton,31/10/2016,1226815,"3,135.00",Cruisers Ltd,18087,Peoples Services Directorate,Hired Peoples Transport (Children),E072
http://statistics.data.gov.uk/id/local-authority/00BF,London Borough of Sutton,04/11/2016,40007260,"8,926.00",CSS Ltd t/a Grove Care,19184,Peoples Services Directorate,Residential Care - Ext Provider,G310
http://statistics.data.gov.uk/id/local-authority/00BF,London Borough of Sutton,17/11/2016,6896525,550.00,Curve Solutions Ltd,23246,Peoples Services Directorate,Training - Course Fees,A520
http://statistics.data.gov.uk/id/local-authority/00BF,London Borough of Sutton,02/11/2016,6895204,950.00,Cygnet IT Services CIC,25840,Peoples Services Directorate,IT Equipment - Repair and Maintenance,F382
http://statistics.data.gov.uk/id/local-authority/00BF,London Borough of Sutton,02/11/2016,6895204,"1,010.00",Cygnet IT Services CIC,25840,Peoples Services Directorate,IT Equipment - Repair and Maintenance,F382
http://statistics.data.gov.uk/id/local-authority/00BF,London Borough of Sutton,02/11/2016,6895204,"2,200.00",Cygnet IT Services CIC,25840,Peoples Services Directorate,IT Equipment - Repair and Maintenance,F382
http://statistics.data.gov.uk/id/local-authority/00BF,London Borough of Sutton,07/11/2016,6895539,"59,870.00",Cygnet IT Services CIC,25840,Peoples Services Directorate,IT Equipment - Repair and Maintenance,F382
http://statistics.data.gov.uk/id/local-authority/00BF,London Borough of Sutton,31/10/2016,6895343,460.52,Deepstore Ltd,21074,Resources Directorate,Offsite Storage,F231
http://statistics.data.gov.uk/id/local-authority/00BF,London Borough of Sutton,31/10/2016,6895346,676.26,Deepstore Ltd,21074,Resources Directorate,Offsite Storage,F231
http://statistics.data.gov.uk/id/local-authority/00BF,London Borough of Sutton,31/10/2016,6895347,476.20,Deepstore Ltd,21074,Resources Directorate,Offsite Storage,F231
http://statistics.data.gov.uk/id/local-authority/00BF,London Borough of Sutton,01/10/2016,6895928,"1,500.00",Denhan Property Services,28353,"Environment, Housing & Regeneration Directorate",Bed and Breakfast Accommodation,G400
http://statistics.data.gov.uk/id/local-authority/00BF,London Borough of Sutton,01/10/2016,6895930,"1,475.00",Denhan Property Services,28353,"Environment, Housing & Regeneration Directorate",Bed and Breakfast Accommodation,G400
http://statistics.data.gov.uk/id/local-authority/00BF,London Borough of Sutton,01/10/2016,6895931,"1,095.00",Denhan Property Services,28353,"Environment, Housing & Regeneration Directorate",Bed and Breakfast Accommodation,G400
http://statistics.data.gov.uk/id/local-authority/00BF,London Borough of Sutton,01/10/2016,6895932,"1,365.00",Denhan Property Services,28353,"Environment, Housing & Regeneration Directorate",Bed and Breakfast Accommodation,G400
http://statistics.data.gov.uk/id/local-authority/00BF,London Borough of Sutton,01/10/2016,6895933,"1,230.00",Denhan Property Services,28353,"Environment, Housing & Regeneration Directorate",Bed and Breakfast Accommodation,G400
http://statistics.data.gov.uk/id/local-authority/00BF,London Borough of Sutton,01/10/2016,6895934,"1,020.00",Denhan Property Services,28353,"Environment, Housing & Regeneration Directorate",Bed and Breakfast Accommodation,G400
http://statistics.data.gov.uk/id/local-authority/00BF,London Borough of Sutton,01/10/2016,6895935,"1,200.00",Denhan Property Services,28353,"Environment, Housing & Regeneration Directorate",Bed and Breakfast Accommodation,G400
http://statistics.data.gov.uk/id/local-authority/00BF,London Borough of Sutton,03/11/2016,6895399,"1,000.00",Denmark Gardens Residents Assoc,26846,"Environment, Housing & Regeneration Directorate",Assistance to Voluntary Organisations,F471
http://statistics.data.gov.uk/id/local-authority/00BF,London Borough of Sutton,01/11/2016,6895182,"1,118.99",Dennis Eagle,11416,"Environment, Housing & Regeneration Directorate",Materials - General,F100
http://statistics.data.gov.uk/id/local-authority/00BF,London Borough of Sutton,25/10/2016,6896489,"1,860.38",Dennis Eagle,11416,"Environment, Housing & Regeneration Directorate",Materials - General,F100
http://statistics.data.gov.uk/id/local-authority/00BF,London Borough of Sutton,11/10/2016,6896492,460.06,Dennis Eagle,11416,"Environment, Housing & Regeneration Directorate",Materials - General,F100
http://statistics.data.gov.uk/id/local-authority/00BF,London Borough of Sutton,28/09/2016,6896496,461.24,Dennis Eagle,11416,"Environment, Housing & Regeneration Directorate",Materials - General,F100
http://statistics.data.gov.uk/id/local-authority/00BF,London Borough of Sutton,31/10/2016,6894908,"1,200.00",Dimitri Chumakov,99898,"Environment, Housing & Regeneration Directorate",Depositors,X460
http://statistics.data.gov.uk/id/local-authority/00BF,London Borough of Sutton,05/10/2016,40006884,"2,232.44",Direct Care And Support Services,23268,Peoples Services Directorate,Supported Living - Ext Provider,G306
http://statistics.data.gov.uk/id/local-authority/00BF,London Borough of Sutton,02/11/2016,40010617,"3,132.80",Direct Care And Support Services,23268,Peoples Services Directorate,Supported Living - Ext Provider,G306
http://statistics.data.gov.uk/id/local-authority/00BF,London Borough of Sutton,02/11/2016,40010627,"2,497.98",Direct Care And Support Services,23268,Peoples Services Directorate,Supported Living - Ext Provider,G306
http://statistics.data.gov.uk/id/local-authority/00BF,London Borough of Sutton,02/11/2016,40010628,"2,356.31",Direct Care And Support Services,23268,Peoples Services Directorate,Supported Living - Ext Provider,G306
http://statistics.data.gov.uk/id/local-authority/00BF,London Borough of Sutton,02/11/2016,40010645,"2,343.60",Direct Care And Support Services,23268,Peoples Services Directorate,Supported Living - Ext Provider,G306
http://statistics.data.gov.uk/id/local-authority/00BF,London Borough of Sutton,02/11/2016,40010701,"2,232.44",Direct Care And Support Services,23268,Peoples Services Directorate,Supported Living - Ext Provider,G306
http://statistics.data.gov.uk/id/local-authority/00BF,London Borough of Sutton,02/11/2016,40010702,"2,664.48",Direct Care And Support Services,23268,Peoples Services Directorate,Supported Living - Ext Provider,G306
http://statistics.data.gov.uk/id/local-authority/00BF,London Borough of Sutton,31/10/2016,6895374,"2,150.00",DMA Signs Limited,20534,"Environment, Housing & Regeneration Directorate",Notices And Signs,Y445
http://statistics.data.gov.uk/id/local-authority/00BF,London Borough of Sutton,31/10/2016,6895393,"1,280.00",DMA Signs Limited,20534,"Environment, Housing & Regeneration Directorate",Notices And Signs,Y445
http://statistics.data.gov.uk/id/local-authority/00BF,London Borough of Sutton,14/11/2016,6896405,727.25,DMA Signs Limited,20534,"Environment, Housing & Regeneration Directorate",Notices And Signs,Y445
http://statistics.data.gov.uk/id/local-authority/00BF,London Borough of Sutton,15/11/2016,6896533,"1,161.00",Doctornow,16649,Resources Directorate,Contractual Consultant Fees,G430
http://statistics.data.gov.uk/id/local-authority/00BF,London Borough of Sutton,03/10/2016,6896540,705.22,Downs View Nurseries Ltd,11382,"Environment, Housing & Regeneration Directorate","Trees, Plants and Shrubs",F101
http://statistics.data.gov.uk/id/local-authority/00BF,London Borough of Sutton,28/10/2016,6895230,850.00,Dr Danielle Shbero,28728,Peoples Services Directorate,Specialist Adoption & Permanence (SGO),H347
http://statistics.data.gov.uk/id/local-authority/00BF,London Borough of Sutton,18/10/2016,6896439,"3,282.00",Dr Rajashekar Krishnaiah,25754,Peoples Services Directorate,Fees - Other,F299
http://statistics.data.gov.uk/id/local-authority/00BF,London Borough of Sutton,18/10/2016,6896440,"4,120.80",Dr Rajashekar Krishnaiah,25754,Peoples Services Directorate,Fees - Other,F299
http://statistics.data.gov.uk/id/local-authority/00BF,London Borough of Sutton,20/07/2015,6896833,935.00,Dr Satish Durgam,28486,Peoples Services Directorate,Provider Contract Payments,F470
http://statistics.data.gov.uk/id/local-authority/00BF,London Borough of Sutton,21/10/2015,6896834,797.50,Dr Satish Durgam,28486,Peoples Services Directorate,Provider Contract Payments,F470
http://statistics.data.gov.uk/id/local-authority/00BF,London Borough of Sutton,20/01/2016,6896835,962.50,Dr Satish Durgam,28486,Peoples Services Directorate,Provider Contract Payments,F470
http://statistics.data.gov.uk/id/local-authority/00BF,London Borough of Sutton,08/11/2016,6895701,700.00,Drama Buds,28563,Peoples Services Directorate,Arts Programme,F306
http://statistics.data.gov.uk/id/local-authority/00BF,London Borough of Sutton,01/11/2016,6894825,"2,360.00",Dreamlettings,11391,"Environment, Housing & Regeneration Directorate",General Office Expenses,F235
http://statistics.data.gov.uk/id/local-authority/00BF,London Borough of Sutton,01/12/2016,6897177,"2,360.00",Dreamlettings,11391,"Environment, Housing & Regeneration Directorate",General Office Expenses,F235
http://statistics.data.gov.uk/id/local-authority/00BF,London Borough of Sutton,27/10/2016,6894790,"1,136.29",DSI Billing Services Ltd,17962,Resources Directorate,Postages - General,F350
http://statistics.data.gov.uk/id/local-authority/00BF,London Borough of Sutton,28/10/2016,6895254,"1,471.40",DSI Billing Services Ltd,17962,Resources Directorate,Fees - Other,F299
http://statistics.data.gov.uk/id/local-authority/00BF,London Borough of Sutton,07/11/2016,6895602,"1,050.29",DSI Billing Services Ltd,17962,Resources Directorate,Postages - General,F350
http://statistics.data.gov.uk/id/local-authority/00BF,London Borough of Sutton,11/11/2016,6895983,994.10,DSI Billing Services Ltd,17962,Resources Directorate,Postages - General,F350
http://statistics.data.gov.uk/id/local-authority/00BF,London Borough of Sutton,08/11/2016,6896576,"1,107.06",DSI Billing Services Ltd,17962,Resources Directorate,Printing - General,F215
http://statistics.data.gov.uk/id/local-authority/00BF,London Borough of Sutton,08/11/2016,6896576,"1,170.51",DSI Billing Services Ltd,17962,Resources Directorate,Postage Central Recharge,F351
http://statistics.data.gov.uk/id/local-authority/00BF,London Borough of Sutton,24/11/2016,6896899,"1,997.53",DSI Billing Services Ltd,17962,Resources Directorate,Postages - General,F350
http://statistics.data.gov.uk/id/local-authority/00BF,London Borough of Sutton,16/11/2016,6896382,"8,800.00",Due North Limited,22671,Chief Executive's Directorate,Purchase of IT Equipment,F380
http://statistics.data.gov.uk/id/local-authority/00BF,London Borough of Sutton,16/11/2016,6896383,500.00,Due North Limited,22671,Chief Executive's Directorate,Purchase of IT Equipment,F380
http://statistics.data.gov.uk/id/local-authority/00BF,London Borough of Sutton,17/10/2016,6895005,"2,500.00",Dunfield & Mead Ltd,28055,Peoples Services Directorate,Approved Lodgings,H323
http://statistics.data.gov.uk/id/local-authority/00BF,London Borough of Sutton,17/10/2016,6895006,"2,500.00",Dunfield & Mead Ltd,28055,Peoples Services Directorate,Approved Lodgings,H323
http://statistics.data.gov.uk/id/local-authority/00BF,London Borough of Sutton,17/10/2016,6895007,"2,500.00",Dunfield & Mead Ltd,28055,Peoples Services Directorate,Approved Lodgings,H323
http://statistics.data.gov.uk/id/local-authority/00BF,London Borough of Sutton,17/10/2016,6895755,867.90,Dunfield & Mead Ltd,28055,Peoples Services Directorate,Living Allowance,H322
http://statistics.data.gov.uk/id/local-authority/00BF,London Borough of Sutton,06/10/2016,40006904,"2,781.24",Dunheved Lodge,11403,Peoples Services Directorate,One to One Care,G335
http://statistics.data.gov.uk/id/local-authority/00BF,London Borough of Sutton,04/11/2016,40007524,"2,999.92",Dunheved Lodge,11403,Peoples Services Directorate,Residential Care - Ext Provider,G310
http://statistics.data.gov.uk/id/local-authority/00BF,London Borough of Sutton,21/08/2016,6896025,444.00,Dunheved Partnership Ltd,26353,"Environment, Housing & Regeneration Directorate",Bed and Breakfast Accommodation,G400
http://statistics.data.gov.uk/id/local-authority/00BF,London Borough of Sutton,23/10/2016,6896158,"1,036.00",Dunheved Partnership Ltd,26353,"Environment, Housing & Regeneration Directorate",Bed and Breakfast Accommodation,G400
http://statistics.data.gov.uk/id/local-authority/00BF,London Borough of Sutton,17/07/2016,6896190,777.00,Dunheved Partnership Ltd,26353,"Environment, Housing & Regeneration Directorate",Bed and Breakfast Accommodation,G400
http://statistics.data.gov.uk/id/local-authority/00BF,London Borough of Sutton,31/07/2016,6896191,518.00,Dunheved Partnership Ltd,26353,"Environment, Housing & Regeneration Directorate",Bed and Breakfast Accommodation,G400
http://statistics.data.gov.uk/id/local-authority/00BF,London Borough of Sutton,31/10/2016,1227752,"10,545.10",Dunraven School,24982,Peoples Services Directorate,Top-up Funding,G064
http://statistics.data.gov.uk/id/local-authority/00BF,London Borough of Sutton,31/10/2016,40005733,"4,460.00",DWT Windows & Doors,97215,Peoples Services Directorate,Building Works -Main Contractor,Y350
http://statistics.data.gov.uk/id/local-authority/00BF,London Borough of Sutton,14/11/2016,40009937,"4,650.00",DWT Windows & Doors,97215,Peoples Services Directorate,Building Works -Main Contractor,Y350
http://statistics.data.gov.uk/id/local-authority/00BF,London Borough of Sutton,16/11/2016,6896035,850.00,E & S Training & Consultancy,26106,Peoples Services Directorate,Training - Course Fees,A520
http://statistics.data.gov.uk/id/local-authority/00BF,London Borough of Sutton,02/11/2016,6895381,660.00,Eagle House Junior School,15445,Peoples Services Directorate,Payments to Schools,G065
http://statistics.data.gov.uk/id/local-authority/00BF,London Borough of Sutton,14/09/2016,1227033,"1,422.00",East Sussex County Council,11413,Peoples Services Directorate,Top-up Funding,G064
http://statistics.data.gov.uk/id/local-authority/00BF,London Borough of Sutton,14/09/2019,5014783,"-1,422.00",East Sussex County Council,11413,Peoples Services Directorate,Top-up Funding,G064
http://statistics.data.gov.uk/id/local-authority/00BF,London Borough of Sutton,04/11/2016,40007226,"3,300.00",Eastcroft Nursing Home,11420,Peoples Services Directorate,Nursing Care - Ext Provider,G311
http://statistics.data.gov.uk/id/local-authority/00BF,London Borough of Sutton,18/11/2016,6896553,"1,115.00",EcoLocal,10872,"Environment, Housing & Regeneration Directorate",Assistance to Voluntary Organisations,F471
http://statistics.data.gov.uk/id/local-authority/00BF,London Borough of Sutton,31/10/2016,6895220,467.65,Ecolocal Services Ltd,11438,Resources Directorate,Courier Post,F355
http://statistics.data.gov.uk/id/local-authority/00BF,London Borough of Sutton,22/11/2016,6896880,"7,971.30",Econ Engineering Ltd,11432,"Environment, Housing & Regeneration Directorate",Council Transport,E060
http://statistics.data.gov.uk/id/local-authority/00BF,London Borough of Sutton,26/10/2016,6895448,"1,272.96",EDF Energy (Seeboard),13999,Peoples Services Directorate,Electricity - General,D620
http://statistics.data.gov.uk/id/local-authority/00BF,London Borough of Sutton,01/11/2016,6895628,"1,185.93",EDF Energy (Seeboard),13999,"Environment, Housing & Regeneration Directorate",Electricity - General,D620
http://statistics.data.gov.uk/id/local-authority/00BF,London Borough of Sutton,01/11/2016,6896257,614.90,EDF Energy (Seeboard),13999,"Environment, Housing & Regeneration Directorate",Electricity - General,D620
http://statistics.data.gov.uk/id/local-authority/00BF,London Borough of Sutton,27/10/2016,6896775,-445.05,EDF Energy (Seeboard),13999,HRA Directorate,Electricity - Anti Hypothermia Heating,D622
http://statistics.data.gov.uk/id/local-authority/00BF,London Borough of Sutton,02/11/2016,6896781,852.67,EDF Energy (Seeboard),13999,HRA Directorate,Electricity - Anti Hypothermia Heating,D622
http://statistics.data.gov.uk/id/local-authority/00BF,London Borough of Sutton,02/11/2016,6896782,421.58,EDF Energy (Seeboard),13999,HRA Directorate,Electricity - Anti Hypothermia Heating,D622
http://statistics.data.gov.uk/id/local-authority/00BF,London Borough of Sutton,24/10/2016,6896152,"7,536.75",EE,28356,Resources Directorate,Telephones - Rentals,F370
http://statistics.data.gov.uk/id/local-authority/00BF,London Borough of Sutton,18/11/2016,6896690,"2,677.60",Egbert H Taylor & Company,14527,"Environment, Housing & Regeneration Directorate",Materials - General,F100
http://statistics.data.gov.uk/id/local-authority/00BF,London Borough of Sutton,31/10/2016,6895328,"13,933.69",Eldercare,22163,HRA Directorate,Supporting People - Alarm Services,H237
http://statistics.data.gov.uk/id/local-authority/00BF,London Borough of Sutton,31/10/2016,6895329,"4,000.00",Eldercare,22163,Peoples Services Directorate,Agency Services,G431
http://statistics.data.gov.uk/id/local-authority/00BF,London Borough of Sutton,31/10/2016,6895468,"8,147.35",Eldercare,22163,Peoples Services Directorate,Agency Services,G431
http://statistics.data.gov.uk/id/local-authority/00BF,London Borough of Sutton,31/10/2016,6895469,"8,152.00",Eldercare,22163,Peoples Services Directorate,Equipment,H250
http://statistics.data.gov.uk/id/local-authority/00BF,London Borough of Sutton,04/11/2016,40007246,"4,484.80",Eleanor Nursing & Social Care Ltd,25134,Peoples Services Directorate,Residential Care - Ext Provider,G310
http://statistics.data.gov.uk/id/local-authority/00BF,London Borough of Sutton,04/09/2016,40009724,441.00,Elite CarePlus Ltd,26199,Peoples Services Directorate,Home Care,G334
http://statistics.data.gov.uk/id/local-authority/00BF,London Borough of Sutton,25/09/2016,40009749,441.00,Elite CarePlus Ltd,26199,Peoples Services Directorate,Home Care,G334
http://statistics.data.gov.uk/id/local-authority/00BF,London Borough of Sutton,02/10/2016,40009750,441.00,Elite CarePlus Ltd,26199,Peoples Services Directorate,Home Care,G334
http://statistics.data.gov.uk/id/local-authority/00BF,London Borough of Sutton,16/10/2016,40009751,441.00,Elite CarePlus Ltd,26199,Peoples Services Directorate,Home Care,G334
http://statistics.data.gov.uk/id/local-authority/00BF,London Borough of Sutton,30/10/2016,40009752,441.00,Elite CarePlus Ltd,26199,Peoples Services Directorate,Home Care,G334
http://statistics.data.gov.uk/id/local-authority/00BF,London Borough of Sutton,23/10/2016,40015321,441.00,Elite CarePlus Ltd,26199,Peoples Services Directorate,Home Care,G334
http://statistics.data.gov.uk/id/local-authority/00BF,London Borough of Sutton,22/11/2016,6897016,"1,782.48",Elizabethan Security,22830,"Environment, Housing & Regeneration Directorate",Special,D535
http://statistics.data.gov.uk/id/local-authority/00BF,London Borough of Sutton,22/11/2016,6897016,"1,782.48",Elizabethan Security,22830,"Environment, Housing & Regeneration Directorate",Special,D535
http://statistics.data.gov.uk/id/local-authority/00BF,London Borough of Sutton,24/10/2016,6894841,424.32,Emorsgate Seeds,26753,"Environment, Housing & Regeneration Directorate",Nature Conservation,G014
http://statistics.data.gov.uk/id/local-authority/00BF,London Borough of Sutton,04/10/2016,6895681,"542,831.00",Encompass,29087,"Environment, Housing & Regeneration Directorate",Housing Contract Fee,G025
http://statistics.data.gov.uk/id/local-authority/00BF,London Borough of Sutton,04/10/2016,6895682,"542,831.00",Encompass,29087,"Environment, Housing & Regeneration Directorate",Housing Contract Fee,G025
http://statistics.data.gov.uk/id/local-authority/00BF,London Borough of Sutton,24/10/2016,6896241,800.00,Entertain Etc Ltd,29073,Peoples Services Directorate,Arts Programme,F306
http://statistics.data.gov.uk/id/local-authority/00BF,London Borough of Sutton,26/10/2016,40006924,"1,744.32",Enviva Paediatric Care/formerlyPNL Nursing Link Ltd (Pnl),28212,Peoples Services Directorate,Provider Contract Payments,F470
http://statistics.data.gov.uk/id/local-authority/00BF,London Borough of Sutton,02/11/2016,40007905,654.12,Enviva Paediatric Care/formerlyPNL Nursing Link Ltd (Pnl),28212,Peoples Services Directorate,Provider Contract Payments,F470
http://statistics.data.gov.uk/id/local-authority/00BF,London Borough of Sutton,09/11/2016,40011306,999.35,Enviva Paediatric Care/formerlyPNL Nursing Link Ltd (Pnl),28212,Peoples Services Directorate,Provider Contract Payments,F470
http://statistics.data.gov.uk/id/local-authority/00BF,London Borough of Sutton,16/11/2016,40011360,908.50,Enviva Paediatric Care/formerlyPNL Nursing Link Ltd (Pnl),28212,Peoples Services Directorate,Provider Contract Payments,F470
http://statistics.data.gov.uk/id/local-authority/00BF,London Borough of Sutton,04/11/2016,40007321,"1,724.16",Eothen Homes Ltd,11539,Peoples Services Directorate,Residential Care - Ext Provider,G310
http://statistics.data.gov.uk/id/local-authority/00BF,London Borough of Sutton,04/11/2016,40007480,"1,780.00",Eothen Homes Ltd,11539,Peoples Services Directorate,Residential Care - Ext Provider,G310
http://statistics.data.gov.uk/id/local-authority/00BF,London Borough of Sutton,04/11/2016,40007508,"1,780.00",Eothen Homes Ltd,11539,Peoples Services Directorate,Residential Care - Ext Provider,G310
http://statistics.data.gov.uk/id/local-authority/00BF,London Borough of Sutton,04/11/2016,40007551,"1,724.16",Eothen Homes Ltd,11539,Peoples Services Directorate,Residential Care - Ext Provider,G310
http://statistics.data.gov.uk/id/local-authority/00BF,London Borough of Sutton,04/11/2016,40007571,"2,948.00",Eothen Homes Ltd,11539,Peoples Services Directorate,Residential Care - Ext Provider,G310
http://statistics.data.gov.uk/id/local-authority/00BF,London Borough of Sutton,02/11/2016,6895285,427.36,Ernest Doe & Sons Ltd,11372,"Environment, Housing & Regeneration Directorate",Operational Equipment - Environmental Health,F011
http://statistics.data.gov.uk/id/local-authority/00BF,London Borough of Sutton,08/11/2016,6895704,"4,989.16",Ernest Doe & Sons Ltd,11372,"Environment, Housing & Regeneration Directorate",Operational Equipment - Environmental Health,F011
http://statistics.data.gov.uk/id/local-authority/00BF,London Borough of Sutton,23/11/2016,6896856,826.64,Ernest Doe & Sons Ltd,11372,"Environment, Housing & Regeneration Directorate",Operational Equipment - Environmental Health,F011
http://statistics.data.gov.uk/id/local-authority/00BF,London Borough of Sutton,23/10/2016,6894978,"1,820.00",Euro Hotels (Thornton Heath) Ltd,10030,Peoples Services Directorate,C.C.A Rent & Utilities,H211
http://statistics.data.gov.uk/id/local-authority/00BF,London Borough of Sutton,30/10/2016,6895470,455.00,Euro Hotels (Thornton Heath) Ltd,10030,Peoples Services Directorate,C.C.A Rent & Utilities,H211
http://statistics.data.gov.uk/id/local-authority/00BF,London Borough of Sutton,30/10/2016,6896449,630.00,Euro Hotels (Thornton Heath) Ltd,10030,Peoples Services Directorate,C.C.A Rent & Utilities,H211
http://statistics.data.gov.uk/id/local-authority/00BF,London Borough of Sutton,14/11/2016,6896612,"3,529.00",Eurocoin Ltd,26899,"Environment, Housing & Regeneration Directorate",Equipment -General,Y520
http://statistics.data.gov.uk/id/local-authority/00BF,London Borough of Sutton,27/10/2016,6894780,450.00,Experia Solutions,25718,Resources Directorate,Training - Course Fees,A520
http://statistics.data.gov.uk/id/local-authority/00BF,London Borough of Sutton,24/10/2016,6895795,"2,510.15",Expert In Mind,22228,Peoples Services Directorate,Children Assessments,G329
http://statistics.data.gov.uk/id/local-authority/00BF,London Borough of Sutton,28/10/2016,6895251,500.00,F L Beadle & Sons Ltd,97197,"Environment, Housing & Regeneration Directorate",Other Services,F340
http://statistics.data.gov.uk/id/local-authority/00BF,London Borough of Sutton,03/11/2016,6895582,"9,919.48",F M Conway Limited,97060,"Environment, Housing & Regeneration Directorate",Roads & Sewers Etc-Main Contract,Y300
http://statistics.data.gov.uk/id/local-authority/00BF,London Borough of Sutton,07/11/2016,6895945,"14,495.38",F M Conway Limited,97060,"Environment, Housing & Regeneration Directorate",Roads & Sewers Etc-Main Contract,Y300
http://statistics.data.gov.uk/id/local-authority/00BF,London Borough of Sutton,07/11/2016,6895954,"85,947.74",F M Conway Limited,97060,"Environment, Housing & Regeneration Directorate",Roads & Sewers Etc-Main Contract,Y300
http://statistics.data.gov.uk/id/local-authority/00BF,London Borough of Sutton,24/10/2016,6895955,"48,130.93",F M Conway Limited,97060,"Environment, Housing & Regeneration Directorate",Roads & Sewers Etc-Main Contract,Y300
http://statistics.data.gov.uk/id/local-authority/00BF,London Borough of Sutton,11/11/2016,6896187,"31,145.77",F M Conway Limited,97060,"Environment, Housing & Regeneration Directorate",Roads & Sewers Etc-Main Contract,Y300
http://statistics.data.gov.uk/id/local-authority/00BF,London Borough of Sutton,15/11/2016,6896239,"25,845.56",F M Conway Limited,97060,"Environment, Housing & Regeneration Directorate",Roads & Sewers Etc-Main Contract,Y300
http://statistics.data.gov.uk/id/local-authority/00BF,London Borough of Sutton,07/11/2016,6896433,"74,018.66",F M Conway Limited,97060,"Environment, Housing & Regeneration Directorate",Roads & Sewers Etc-Main Contract,Y300
http://statistics.data.gov.uk/id/local-authority/00BF,London Borough of Sutton,07/11/2016,6896434,"83,108.06",F M Conway Limited,97060,"Environment, Housing & Regeneration Directorate",Roads & Sewers Etc-Main Contract,Y300
http://statistics.data.gov.uk/id/local-authority/00BF,London Borough of Sutton,16/11/2016,6897167,"38,015.00",F M Conway Limited,97060,"Environment, Housing & Regeneration Directorate",Roads & Sewers Etc-Main Contract,Y300
http://statistics.data.gov.uk/id/local-authority/00BF,London Borough of Sutton,25/11/2016,6897220,"42,831.50",F M Conway Limited,97060,"Environment, Housing & Regeneration Directorate",Roads & Sewers Etc-Main Contract,Y300
http://statistics.data.gov.uk/id/local-authority/00BF,London Borough of Sutton,16/11/2016,6897221,"38,015.00",F M Conway Limited,97060,"Environment, Housing & Regeneration Directorate",Roads & Sewers Etc-Main Contract,Y300
http://statistics.data.gov.uk/id/local-authority/00BF,London Borough of Sutton,29/11/2016,1227773,"25,916.67",Family Mosaic Housing,21012,"Environment, Housing & Regeneration Directorate",Supporting People - Mental Health Services,H243
http://statistics.data.gov.uk/id/local-authority/00BF,London Borough of Sutton,29/11/2016,1227774,"18,833.33",Family Mosaic Housing,21012,"Environment, Housing & Regeneration Directorate",Supporting People - Generic Services,H241
http://statistics.data.gov.uk/id/local-authority/00BF,London Borough of Sutton,04/11/2016,40007420,"3,400.00",Family Star Ltd,19653,Peoples Services Directorate,Nursing Care - Ext Provider,G311
http://statistics.data.gov.uk/id/local-authority/00BF,London Borough of Sutton,04/11/2016,40007555,"16,658.57",Family Star Ltd,19653,Peoples Services Directorate,Nursing Care - Short Term Placements,G328
http://statistics.data.gov.uk/id/local-authority/00BF,London Borough of Sutton,01/11/2016,6895653,810.00,Fierce Neutral Ltd,16535,"Environment, Housing & Regeneration Directorate",Bed and Breakfast Accommodation,G400
http://statistics.data.gov.uk/id/local-authority/00BF,London Borough of Sutton,01/11/2016,6895655,588.00,Fierce Neutral Ltd,16535,"Environment, Housing & Regeneration Directorate",Bed and Breakfast Accommodation,G400
http://statistics.data.gov.uk/id/local-authority/00BF,London Borough of Sutton,01/11/2016,6895658,720.00,Fierce Neutral Ltd,16535,"Environment, Housing & Regeneration Directorate",Bed and Breakfast Accommodation,G400
http://statistics.data.gov.uk/id/local-authority/00BF,London Borough of Sutton,01/10/2016,6896637,"1,110.00",Fierce Neutral Ltd,16535,"Environment, Housing & Regeneration Directorate",Bed and Breakfast Accommodation,G400
http://statistics.data.gov.uk/id/local-authority/00BF,London Borough of Sutton,01/10/2016,6896640,"1,110.00",Fierce Neutral Ltd,16535,"Environment, Housing & Regeneration Directorate",Bed and Breakfast Accommodation,G400
http://statistics.data.gov.uk/id/local-authority/00BF,London Borough of Sutton,01/10/2016,6896641,"1,110.00",Fierce Neutral Ltd,16535,"Environment, Housing & Regeneration Directorate",Bed and Breakfast Accommodation,G400
http://statistics.data.gov.uk/id/local-authority/00BF,London Borough of Sutton,01/10/2016,6896646,"1,800.00",Fierce Neutral Ltd,16535,"Environment, Housing & Regeneration Directorate",Bed and Breakfast Accommodation,G400
http://statistics.data.gov.uk/id/local-authority/00BF,London Borough of Sutton,31/10/2016,6896379,"8,648.56",Financial Data Management PLC,28773,Resources Directorate,Printing - General,F215
http://statistics.data.gov.uk/id/local-authority/00BF,London Borough of Sutton,04/11/2016,40007216,"3,438.00",Fircroft Homes,11660,Peoples Services Directorate,Residential Care - Ext Provider,G310
http://statistics.data.gov.uk/id/local-authority/00BF,London Borough of Sutton,04/11/2016,40007429,"2,600.00",Firtree House Nursing Home,11653,Peoples Services Directorate,Nursing Care - Ext Provider,G311
http://statistics.data.gov.uk/id/local-authority/00BF,London Borough of Sutton,04/11/2016,40007262,"3,758.08",Fitzroy,11657,Peoples Services Directorate,Residential Care - Ext Provider,G310
http://statistics.data.gov.uk/id/local-authority/00BF,London Borough of Sutton,01/10/2016,40010696,"1,224.28",Fitzroy,11657,Peoples Services Directorate,Day Care,G337
http://statistics.data.gov.uk/id/local-authority/00BF,London Borough of Sutton,19/10/2016,6895118,"1,000.00",Fiveways Municipal Vehicle Hire Ltd,11658,"Environment, Housing & Regeneration Directorate",Centralised Transport Hire,E068
http://statistics.data.gov.uk/id/local-authority/00BF,London Borough of Sutton,19/10/2016,6895119,"1,000.00",Fiveways Municipal Vehicle Hire Ltd,11658,"Environment, Housing & Regeneration Directorate",Centralised Transport Hire,E068
http://statistics.data.gov.uk/id/local-authority/00BF,London Borough of Sutton,19/10/2016,6895120,"1,000.00",Fiveways Municipal Vehicle Hire Ltd,11658,"Environment, Housing & Regeneration Directorate",Centralised Transport Hire,E068
http://statistics.data.gov.uk/id/local-authority/00BF,London Borough of Sutton,19/10/2016,6895130,"1,000.00",Fiveways Municipal Vehicle Hire Ltd,11658,"Environment, Housing & Regeneration Directorate",Centralised Transport Hire,E068
http://statistics.data.gov.uk/id/local-authority/00BF,London Borough of Sutton,06/10/2016,6895131,"1,300.00",Fiveways Municipal Vehicle Hire Ltd,11658,"Environment, Housing & Regeneration Directorate",Centralised Transport Hire,E068
http://statistics.data.gov.uk/id/local-authority/00BF,London Borough of Sutton,06/10/2016,6895132,"1,300.00",Fiveways Municipal Vehicle Hire Ltd,11658,"Environment, Housing & Regeneration Directorate",Centralised Transport Hire,E068
http://statistics.data.gov.uk/id/local-authority/00BF,London Borough of Sutton,02/11/2016,6895545,"1,000.00",Fiveways Municipal Vehicle Hire Ltd,11658,"Environment, Housing & Regeneration Directorate",Centralised Transport Hire,E068
http://statistics.data.gov.uk/id/local-authority/00BF,London Borough of Sutton,02/11/2016,6895547,"1,000.00",Fiveways Municipal Vehicle Hire Ltd,11658,"Environment, Housing & Regeneration Directorate",Centralised Transport Hire,E068
http://statistics.data.gov.uk/id/local-authority/00BF,London Borough of Sutton,02/11/2016,6895548,"1,000.00",Fiveways Municipal Vehicle Hire Ltd,11658,"Environment, Housing & Regeneration Directorate",Centralised Transport Hire,E068
http://statistics.data.gov.uk/id/local-authority/00BF,London Borough of Sutton,02/11/2016,6895549,"1,000.00",Fiveways Municipal Vehicle Hire Ltd,11658,"Environment, Housing & Regeneration Directorate",Centralised Transport Hire,E068
http://statistics.data.gov.uk/id/local-authority/00BF,London Borough of Sutton,07/11/2016,6895817,"1,000.00",Fiveways Municipal Vehicle Hire Ltd,11658,"Environment, Housing & Regeneration Directorate",Centralised Transport Hire,E068
http://statistics.data.gov.uk/id/local-authority/00BF,London Borough of Sutton,07/11/2016,6895818,"1,000.00",Fiveways Municipal Vehicle Hire Ltd,11658,"Environment, Housing & Regeneration Directorate",Centralised Transport Hire,E068
http://statistics.data.gov.uk/id/local-authority/00BF,London Borough of Sutton,14/11/2016,6896468,"1,000.00",Fiveways Municipal Vehicle Hire Ltd,11658,"Environment, Housing & Regeneration Directorate",Centralised Transport Hire,E068
http://statistics.data.gov.uk/id/local-authority/00BF,London Borough of Sutton,14/11/2016,6896469,"1,000.00",Fiveways Municipal Vehicle Hire Ltd,11658,"Environment, Housing & Regeneration Directorate",Centralised Transport Hire,E068
http://statistics.data.gov.uk/id/local-authority/00BF,London Borough of Sutton,14/11/2016,6896583,"1,020.00",Fleet (Line Markers) Ltd,11696,"Environment, Housing & Regeneration Directorate",Materials - General,F100
http://statistics.data.gov.uk/id/local-authority/00BF,London Borough of Sutton,07/11/2016,6895542,995.17,Forestdale Business Services Ltd,10578,"Environment, Housing & Regeneration Directorate",Materials - General,F100
http://statistics.data.gov.uk/id/local-authority/00BF,London Borough of Sutton,31/10/2016,6895686,600.00,Fostering Network,11730,Peoples Services Directorate,Personal Requisites,F106
http://statistics.data.gov.uk/id/local-authority/00BF,London Borough of Sutton,10/11/2016,1227478,"19,911.00",Foxes Academy Ltd,25760,Peoples Services Directorate,Top-up Funding,G064
http://statistics.data.gov.uk/id/local-authority/00BF,London Borough of Sutton,10/11/2016,1227479,"15,816.85",Foxes Academy Ltd,25760,Peoples Services Directorate,Top-up Funding,G064
http://statistics.data.gov.uk/id/local-authority/00BF,London Borough of Sutton,24/10/2016,6895538,483.00,Fresh Acres Nurseries Ltd,23698,"Environment, Housing & Regeneration Directorate","Trees, Plants and Shrubs",F101
http://statistics.data.gov.uk/id/local-authority/00BF,London Borough of Sutton,04/11/2016,40007278,"1,840.00",Friends Of The Elderly,11766,Peoples Services Directorate,Residential Care - Ext Provider,G310
http://statistics.data.gov.uk/id/local-authority/00BF,London Borough of Sutton,04/11/2016,40007337,"1,692.00",Friends Of The Elderly,11766,Peoples Services Directorate,Residential Care - Ext Provider,G310
http://statistics.data.gov.uk/id/local-authority/00BF,London Borough of Sutton,04/11/2016,40007476,"2,928.00",Friends Of The Elderly,11766,Peoples Services Directorate,Residential Care - Ext Provider,G310
http://statistics.data.gov.uk/id/local-authority/00BF,London Borough of Sutton,04/11/2016,40007564,"1,660.00",Friends Of The Elderly,11766,Peoples Services Directorate,Residential Care - Ext Provider,G310
http://statistics.data.gov.uk/id/local-authority/00BF,London Borough of Sutton,04/11/2016,40007584,418.55,Friends Of The Elderly,11766,Peoples Services Directorate,Residential Care - Ext Provider,G310
http://statistics.data.gov.uk/id/local-authority/00BF,London Borough of Sutton,04/11/2016,40007615,"1,692.00",Friends Of The Elderly,11766,Peoples Services Directorate,Residential Care - Ext Provider,G310
http://statistics.data.gov.uk/id/local-authority/00BF,London Borough of Sutton,31/10/2016,40010543,"5,723.20",Frontier Support Services,28792,Peoples Services Directorate,Supported Living - Ext Provider,G306
http://statistics.data.gov.uk/id/local-authority/00BF,London Borough of Sutton,03/10/2016,40010610,"4,672.00",Frontier Support Services,28792,Peoples Services Directorate,Supported Living - Ext Provider,G306
http://statistics.data.gov.uk/id/local-authority/00BF,London Borough of Sutton,12/09/2016,40010656,"5,840.00",Frontier Support Services,28792,Peoples Services Directorate,Supported Living - Ext Provider,G306
http://statistics.data.gov.uk/id/local-authority/00BF,London Borough of Sutton,28/11/2016,6897178,670.00,Fuel Oils (Holdings) Ltd,13642,"Environment, Housing & Regeneration Directorate",Materials - General,F100
http://statistics.data.gov.uk/id/local-authority/00BF,London Borough of Sutton,04/11/2016,40007657,"2,294.12",Gable Lodge,11789,Peoples Services Directorate,Nursing Care - Ext Provider,G311
http://statistics.data.gov.uk/id/local-authority/00BF,London Borough of Sutton,04/11/2016,40007285,"3,000.00",Galleon Care Homes Ltd,23693,Peoples Services Directorate,Nursing Care - Ext Provider,G311
http://statistics.data.gov.uk/id/local-authority/00BF,London Borough of Sutton,08/11/2016,6895882,"5,000.00",Gandlake Limited,18183,Resources Directorate,Fees - Other,F299
http://statistics.data.gov.uk/id/local-authority/00BF,London Borough of Sutton,28/11/2016,6897050,826.89,Gandlake Limited,18183,Resources Directorate,IT Licences,F385
http://statistics.data.gov.uk/id/local-authority/00BF,London Borough of Sutton,28/11/2016,6897072,"4,651.35",Gandlake Limited,18183,Resources Directorate,IT Equipment - Repair and Maintenance,F382
http://statistics.data.gov.uk/id/local-authority/00BF,London Borough of Sutton,28/11/2016,6897072,"4,651.35",Gandlake Limited,18183,Resources Directorate,IT Equipment - Repair and Maintenance,F382
http://statistics.data.gov.uk/id/local-authority/00BF,London Borough of Sutton,04/11/2016,40007630,"1,744.00",Gate Lodge Care Home,16164,Peoples Services Directorate,Residential Care - Ext Provider,G310
http://statistics.data.gov.uk/id/local-authority/00BF,London Borough of Sutton,17/10/2016,6896189,"10,352.00",Gatenby Sanderson,18532,Peoples Services Directorate,Agency Staff - Other,A301
http://statistics.data.gov.uk/id/local-authority/00BF,London Borough of Sutton,25/11/2016,6897249,"33,859.42",GBS Kingston Hospital NHSFT,26293,Peoples Services Directorate,Provider Contract Payments,F470
http://statistics.data.gov.uk/id/local-authority/00BF,London Borough of Sutton,08/09/2016,6895673,"1,865.00",Gloveman Supplies Ltd,11854,Peoples Services Directorate,Health and Safety Equipment,F005
http://statistics.data.gov.uk/id/local-authority/00BF,London Borough of Sutton,28/11/2016,6897101,789.60,Gloveman Supplies Ltd,11854,Peoples Services Directorate,Health and Safety Equipment,F005
http://statistics.data.gov.uk/id/local-authority/00BF,London Borough of Sutton,28/10/2016,6895553,550.00,Go Plant Environmental,11867,"Environment, Housing & Regeneration Directorate",Centralised Transport Hire,E068
http://statistics.data.gov.uk/id/local-authority/00BF,London Borough of Sutton,28/10/2016,6895555,650.00,Go Plant Environmental,11867,"Environment, Housing & Regeneration Directorate",Centralised Transport Hire,E068
http://statistics.data.gov.uk/id/local-authority/00BF,London Borough of Sutton,28/10/2016,6895557,585.00,Go Plant Environmental,11867,"Environment, Housing & Regeneration Directorate",Centralised Transport Hire,E068
http://statistics.data.gov.uk/id/local-authority/00BF,London Borough of Sutton,28/10/2016,6895560,650.00,Go Plant Environmental,11867,"Environment, Housing & Regeneration Directorate",Centralised Transport Hire,E068
http://statistics.data.gov.uk/id/local-authority/00BF,London Borough of Sutton,04/11/2016,6896087,550.00,Go Plant Environmental,11867,"Environment, Housing & Regeneration Directorate",Centralised Transport Hire,E068
http://statistics.data.gov.uk/id/local-authority/00BF,London Borough of Sutton,04/11/2016,6896090,585.00,Go Plant Environmental,11867,"Environment, Housing & Regeneration Directorate",Centralised Transport Hire,E068
http://statistics.data.gov.uk/id/local-authority/00BF,London Borough of Sutton,04/11/2016,6896092,650.00,Go Plant Environmental,11867,"Environment, Housing & Regeneration Directorate",Centralised Transport Hire,E068
http://statistics.data.gov.uk/id/local-authority/00BF,London Borough of Sutton,04/11/2016,6896093,650.00,Go Plant Environmental,11867,"Environment, Housing & Regeneration Directorate",Centralised Transport Hire,E068
http://statistics.data.gov.uk/id/local-authority/00BF,London Borough of Sutton,11/11/2016,6896739,585.00,Go Plant Environmental,11867,"Environment, Housing & Regeneration Directorate",Centralised Transport Hire,E068
http://statistics.data.gov.uk/id/local-authority/00BF,London Borough of Sutton,11/11/2016,6896741,650.00,Go Plant Environmental,11867,"Environment, Housing & Regeneration Directorate",Centralised Transport Hire,E068
http://statistics.data.gov.uk/id/local-authority/00BF,London Borough of Sutton,11/11/2016,6896742,650.00,Go Plant Environmental,11867,"Environment, Housing & Regeneration Directorate",Centralised Transport Hire,E068
http://statistics.data.gov.uk/id/local-authority/00BF,London Borough of Sutton,11/11/2016,6896746,550.00,Go Plant Environmental,11867,"Environment, Housing & Regeneration Directorate",Centralised Transport Hire,E068
http://statistics.data.gov.uk/id/local-authority/00BF,London Borough of Sutton,16/11/2016,6896535,638.00,Graffiti Removal Ltd,22343,"Environment, Housing & Regeneration Directorate",Materials - General,F100
http://statistics.data.gov.uk/id/local-authority/00BF,London Borough of Sutton,04/11/2016,40007326,"3,238.40",Grange Cottage Ltd,11892,Peoples Services Directorate,Residential Care - Ext Provider,G310
http://statistics.data.gov.uk/id/local-authority/00BF,London Borough of Sutton,04/11/2016,40007345,"1,882.40",Grange Cottage Ltd,11892,Peoples Services Directorate,Residential Care - Ext Provider,G310
http://statistics.data.gov.uk/id/local-authority/00BF,London Borough of Sutton,04/11/2016,40007358,"1,882.40",Grange Cottage Ltd,11892,Peoples Services Directorate,Residential Care - Ext Provider,G310
http://statistics.data.gov.uk/id/local-authority/00BF,London Borough of Sutton,04/11/2016,40007437,"2,600.00",Grange Cottage Ltd,11892,Peoples Services Directorate,Residential Care - Ext Provider,G310
http://statistics.data.gov.uk/id/local-authority/00BF,London Borough of Sutton,04/11/2016,40007549,428.57,Grange Cottage Ltd,11892,Peoples Services Directorate,Respite Care - Residential,G327
http://statistics.data.gov.uk/id/local-authority/00BF,London Borough of Sutton,04/11/2016,40007363,"1,712.32",Grasmere Rest Home,11893,Peoples Services Directorate,Residential Care - Ext Provider,G310
http://statistics.data.gov.uk/id/local-authority/00BF,London Borough of Sutton,04/11/2016,40007371,"1,801.36",Grasmere Rest Home,11893,Peoples Services Directorate,Residential Care - Ext Provider,G310
http://statistics.data.gov.uk/id/local-authority/00BF,London Borough of Sutton,04/11/2016,40007404,"2,700.00",Grasmere Rest Home,11893,Peoples Services Directorate,Residential Care - Ext Provider,G310
http://statistics.data.gov.uk/id/local-authority/00BF,London Borough of Sutton,04/11/2016,40007454,"2,274.96",Grasmere Rest Home,11893,Peoples Services Directorate,Residential Care - Ext Provider,G310
http://statistics.data.gov.uk/id/local-authority/00BF,London Borough of Sutton,04/11/2016,40007458,"1,680.16",Grasmere Rest Home,11893,Peoples Services Directorate,Residential Care - Ext Provider,G310
http://statistics.data.gov.uk/id/local-authority/00BF,London Borough of Sutton,04/11/2016,40007522,"12,071.43",Grasmere Rest Home,11893,Peoples Services Directorate,Residential Care - Ext Provider,G310
http://statistics.data.gov.uk/id/local-authority/00BF,London Borough of Sutton,04/11/2016,40007550,"2,408.56",Grasmere Rest Home,11893,Peoples Services Directorate,Residential Care - Ext Provider,G310
http://statistics.data.gov.uk/id/local-authority/00BF,London Borough of Sutton,04/11/2016,40007557,"1,801.36",Grasmere Rest Home,11893,Peoples Services Directorate,Residential Care - Ext Provider,G310
http://statistics.data.gov.uk/id/local-authority/00BF,London Borough of Sutton,04/11/2016,40007604,"1,764.92",Grasmere Rest Home,11893,Peoples Services Directorate,Residential Care - Ext Provider,G310
http://statistics.data.gov.uk/id/local-authority/00BF,London Borough of Sutton,04/11/2016,40007621,"1,712.32",Grasmere Rest Home,11893,Peoples Services Directorate,Residential Care - Ext Provider,G310
http://statistics.data.gov.uk/id/local-authority/00BF,London Borough of Sutton,02/11/2016,6895219,583.33,Greater London Authority,11908,HRA Directorate,Other Services,F340
http://statistics.data.gov.uk/id/local-authority/00BF,London Borough of Sutton,01/11/2016,6895496,"2,000.00",Green Machines Sweepers Ltd,26278,"Environment, Housing & Regeneration Directorate",Centralised Transport Hire,E068
http://statistics.data.gov.uk/id/local-authority/00BF,London Borough of Sutton,01/11/2016,6895497,"2,000.00",Green Machines Sweepers Ltd,26278,"Environment, Housing & Regeneration Directorate",Centralised Transport Hire,E068
http://statistics.data.gov.uk/id/local-authority/00BF,London Borough of Sutton,04/11/2016,40007213,"5,616.08",Greenfield Care Homes Limited,22712,Peoples Services Directorate,Residential Care - Ext Provider,G310
http://statistics.data.gov.uk/id/local-authority/00BF,London Borough of Sutton,24/10/2016,6896270,"1,100,000.00",Greenshaw High School (Academy),23985,Peoples Services Directorate,Building Works -Main Contractor,Y350
http://statistics.data.gov.uk/id/local-authority/00BF,London Borough of Sutton,04/11/2016,6895471,"2,400.00",Greenwolf Ltd,26816,Chief Executive's Directorate,Fees - Computer Software,F384
http://statistics.data.gov.uk/id/local-authority/00BF,London Borough of Sutton,29/09/2016,6896182,766.20,Groundserv,22662,"Environment, Housing & Regeneration Directorate",Materials - General,F100
http://statistics.data.gov.uk/id/local-authority/00BF,London Borough of Sutton,17/11/2016,6896970,618.00,Groundserv,22662,"Environment, Housing & Regeneration Directorate",Operational Equipment - Environmental Health,F011
http://statistics.data.gov.uk/id/local-authority/00BF,London Borough of Sutton,25/11/2016,6897146,790.92,Groundserv,22662,"Environment, Housing & Regeneration Directorate",Materials - General,F100
http://statistics.data.gov.uk/id/local-authority/00BF,London Borough of Sutton,15/10/2016,6894975,522.50,Hackbridge Medical Centre,25738,Peoples Services Directorate,Provider Contract Payments,F470
http://statistics.data.gov.uk/id/local-authority/00BF,London Borough of Sutton,27/10/2016,6895246,"21,723.03",Hall Fuels Ltd,11982,"Environment, Housing & Regeneration Directorate",Fuel Etc,E030
http://statistics.data.gov.uk/id/local-authority/00BF,London Borough of Sutton,10/11/2016,6896298,"20,921.00",Hall Fuels Ltd,11982,"Environment, Housing & Regeneration Directorate",Fuel Etc,E030
http://statistics.data.gov.uk/id/local-authority/00BF,London Borough of Sutton,10/11/2016,6896413,905.20,Hall Fuels Ltd,11982,"Environment, Housing & Regeneration Directorate",Fuel Etc,E030
http://statistics.data.gov.uk/id/local-authority/00BF,London Borough of Sutton,18/11/2016,6896498,710.00,Hallmark Connections Ltd,99891,"Environment, Housing & Regeneration Directorate",Fees - Other,F299
http://statistics.data.gov.uk/id/local-authority/00BF,London Borough of Sutton,11/11/2016,6896083,"1,840.00",Harrowden Turf Ltd,26694,"Environment, Housing & Regeneration Directorate",Nature Conservation,G014
http://statistics.data.gov.uk/id/local-authority/00BF,London Borough of Sutton,25/10/2016,6895583,454.00,Hawker Publications Ltd,17743,Peoples Services Directorate,Training - Course Fees,A520
http://statistics.data.gov.uk/id/local-authority/00BF,London Borough of Sutton,04/11/2016,40007574,"3,316.88",Haydon Park Lodge,12002,Peoples Services Directorate,Residential Care - Ext Provider,G310
http://statistics.data.gov.uk/id/local-authority/00BF,London Borough of Sutton,04/11/2016,40007586,"4,263.00",Haydon Park Lodge,12002,Peoples Services Directorate,Residential Care - Ext Provider,G310
http://statistics.data.gov.uk/id/local-authority/00BF,London Borough of Sutton,28/07/2016,5014790,"10,000.00",Hays Specialist Recruitment Ltd,18016,Peoples Services Directorate,Consultants/Hons,A310
http://statistics.data.gov.uk/id/local-authority/00BF,London Borough of Sutton,30/08/2016,6890959,"7,815.00",Hays Specialist Recruitment Ltd,18016,Peoples Services Directorate,Agency Staff - Other,A301
http://statistics.data.gov.uk/id/local-authority/00BF,London Borough of Sutton,02/11/2016,6895502,973.89,Hays Specialist Recruitment Ltd,18016,Resources Directorate,Agency Staff - Adecco,A300
http://statistics.data.gov.uk/id/local-authority/00BF,London Borough of Sutton,02/11/2016,6895503,"1,311.76",Hays Specialist Recruitment Ltd,18016,Resources Directorate,Agency Staff - Adecco,A300
http://statistics.data.gov.uk/id/local-authority/00BF,London Borough of Sutton,04/11/2016,6895821,"1,311.77",Hays Specialist Recruitment Ltd,18016,Resources Directorate,Agency Staff - Adecco,A300
http://statistics.data.gov.uk/id/local-authority/00BF,London Borough of Sutton,21/10/2016,6896528,487.84,Hays Specialist Recruitment Ltd,18016,Resources Directorate,Consultants/Hons,A310
http://statistics.data.gov.uk/id/local-authority/00BF,London Borough of Sutton,26/10/2016,6896529,609.80,Hays Specialist Recruitment Ltd,18016,Resources Directorate,Consultants/Hons,A310
http://statistics.data.gov.uk/id/local-authority/00BF,London Borough of Sutton,19/10/2016,6896530,579.31,Hays Specialist Recruitment Ltd,18016,Resources Directorate,Consultants/Hons,A310
http://statistics.data.gov.uk/id/local-authority/00BF,London Borough of Sutton,07/11/2016,6896531,457.35,Hays Specialist Recruitment Ltd,18016,Resources Directorate,Consultants/Hons,A310
http://statistics.data.gov.uk/id/local-authority/00BF,London Borough of Sutton,18/11/2016,6896881,"1,311.76",Hays Specialist Recruitment Ltd,18016,Resources Directorate,Agency Staff - Adecco,A300
http://statistics.data.gov.uk/id/local-authority/00BF,London Borough of Sutton,18/11/2016,6896883,"1,291.88",Hays Specialist Recruitment Ltd,18016,Resources Directorate,Agency Staff - Adecco,A300
http://statistics.data.gov.uk/id/local-authority/00BF,London Borough of Sutton,08/11/2016,6895716,"2,207.00",Health Management Ltd,12086,Resources Directorate,Contractual Consultant Fees,G430
http://statistics.data.gov.uk/id/local-authority/00BF,London Borough of Sutton,08/11/2016,6895717,"3,203.00",Health Management Ltd,12086,Resources Directorate,Contractual Consultant Fees,G430
http://statistics.data.gov.uk/id/local-authority/00BF,London Borough of Sutton,23/11/2016,6896727,"27,490.50",Healthwatch Sutton Ltd,24984,Chief Executive's Directorate,Provider Contract Payments,F470
http://statistics.data.gov.uk/id/local-authority/00BF,London Borough of Sutton,04/11/2016,40007245,"20,964.00",Heathcotes (Southern) Limited,26792,Peoples Services Directorate,Residential Care - Ext Provider,G310
http://statistics.data.gov.uk/id/local-authority/00BF,London Borough of Sutton,04/11/2016,40007518,"8,400.00",Heathcotes (Southern) Limited,26792,Peoples Services Directorate,Residential Care - Ext Provider,G310
http://statistics.data.gov.uk/id/local-authority/00BF,London Borough of Sutton,04/11/2016,40007376,534.10,Heatherwood Nursing Home,17510,Peoples Services Directorate,Nursing Care - Ext Provider,G311
http://statistics.data.gov.uk/id/local-authority/00BF,London Borough of Sutton,04/11/2016,40007385,"3,600.00",Heatherwood Nursing Home,17510,Peoples Services Directorate,Nursing Care - Ext Provider,G311
http://statistics.data.gov.uk/id/local-authority/00BF,London Borough of Sutton,04/11/2016,40007423,"3,340.00",Heatherwood Nursing Home,17510,Peoples Services Directorate,Nursing Care - Ext Provider,G311
http://statistics.data.gov.uk/id/local-authority/00BF,London Borough of Sutton,04/11/2016,40007514,"3,600.00",Heatherwood Nursing Home,17510,Peoples Services Directorate,Nursing Care - Ext Provider,G311
http://statistics.data.gov.uk/id/local-authority/00BF,London Borough of Sutton,04/11/2016,40007438,"3,600.00",Hendford Nursing Home,12071,Peoples Services Directorate,Nursing Care - Ext Provider,G311
http://statistics.data.gov.uk/id/local-authority/00BF,London Borough of Sutton,04/11/2016,40007488,"3,848.00",Hendford Nursing Home,12071,Peoples Services Directorate,Nursing Care - Ext Provider,G311
http://statistics.data.gov.uk/id/local-authority/00BF,London Borough of Sutton,09/10/2016,40010765,516.75,Heritage Care Ltd,21702,Peoples Services Directorate,Home Care,G334
http://statistics.data.gov.uk/id/local-authority/00BF,London Borough of Sutton,16/10/2016,40010766,516.75,Heritage Care Ltd,21702,Peoples Services Directorate,Home Care,G334
http://statistics.data.gov.uk/id/local-authority/00BF,London Borough of Sutton,23/10/2016,40010767,516.75,Heritage Care Ltd,21702,Peoples Services Directorate,Home Care,G334
http://statistics.data.gov.uk/id/local-authority/00BF,London Borough of Sutton,30/10/2016,40010802,516.75,Heritage Care Ltd,21702,Peoples Services Directorate,Home Care,G334
http://statistics.data.gov.uk/id/local-authority/00BF,London Borough of Sutton,09/10/2016,40010806,492.73,Heritage Care Ltd,21702,Peoples Services Directorate,Home Care,G334
http://statistics.data.gov.uk/id/local-authority/00BF,London Borough of Sutton,16/10/2016,40010807,492.73,Heritage Care Ltd,21702,Peoples Services Directorate,Home Care,G334
http://statistics.data.gov.uk/id/local-authority/00BF,London Borough of Sutton,23/10/2016,40010808,492.73,Heritage Care Ltd,21702,Peoples Services Directorate,Home Care,G334
http://statistics.data.gov.uk/id/local-authority/00BF,London Borough of Sutton,30/10/2016,40010809,509.94,Heritage Care Ltd,21702,Peoples Services Directorate,Home Care,G334
http://statistics.data.gov.uk/id/local-authority/00BF,London Borough of Sutton,11/09/2016,40015631,516.75,Heritage Care Ltd,21702,Peoples Services Directorate,Home Care,G334
http://statistics.data.gov.uk/id/local-authority/00BF,London Borough of Sutton,18/09/2016,40015632,516.75,Heritage Care Ltd,21702,Peoples Services Directorate,Home Care,G334
http://statistics.data.gov.uk/id/local-authority/00BF,London Borough of Sutton,11/09/2016,40015633,521.55,Heritage Care Ltd,21702,Peoples Services Directorate,Home Care,G334
http://statistics.data.gov.uk/id/local-authority/00BF,London Borough of Sutton,18/09/2016,40015634,502.24,Heritage Care Ltd,21702,Peoples Services Directorate,Home Care,G334
http://statistics.data.gov.uk/id/local-authority/00BF,London Borough of Sutton,04/11/2016,40007605,"2,645.08",HF Trust Ltd,12131,Peoples Services Directorate,Residential Care - Ext Provider,G310
http://statistics.data.gov.uk/id/local-authority/00BF,London Borough of Sutton,09/11/2016,40010682,"2,016.00",HF Trust Ltd,12131,Peoples Services Directorate,One to One Care,G335
http://statistics.data.gov.uk/id/local-authority/00BF,London Borough of Sutton,10/11/2016,40010689,790.51,HF Trust Ltd,12131,Peoples Services Directorate,One to One Care,G335
http://statistics.data.gov.uk/id/local-authority/00BF,London Borough of Sutton,09/11/2016,40010694,"2,016.00",HF Trust Ltd,12131,Peoples Services Directorate,One to One Care,G335
http://statistics.data.gov.uk/id/local-authority/00BF,London Borough of Sutton,31/10/2016,6894945,"4,317.37",Higher Level Care (HLC),24443,Peoples Services Directorate,Approved Lodgings,H323
http://statistics.data.gov.uk/id/local-authority/00BF,London Borough of Sutton,31/10/2016,6894959,"1,949.78",Higher Level Care (HLC),24443,Peoples Services Directorate,Approved Lodgings,H323
http://statistics.data.gov.uk/id/local-authority/00BF,London Borough of Sutton,31/10/2016,6896728,640.00,Higher Level Care (HLC),24443,Peoples Services Directorate,Asylum Seekers,H200
http://statistics.data.gov.uk/id/local-authority/00BF,London Borough of Sutton,10/11/2016,6895871,"7,238.09",Highway Surveyors Ltd,28697,"Environment, Housing & Regeneration Directorate",Roads & Sewers Etc-Main Contract,Y300
http://statistics.data.gov.uk/id/local-authority/00BF,London Borough of Sutton,17/10/2016,6894972,873.00,Hilda Mallett,26310,"Environment, Housing & Regeneration Directorate",General Office Expenses,F235
http://statistics.data.gov.uk/id/local-authority/00BF,London Borough of Sutton,01/10/2016,6895274,"2,418.00",Hilda Mallett,26310,"Environment, Housing & Regeneration Directorate",General Office Expenses,F235
http://statistics.data.gov.uk/id/local-authority/00BF,London Borough of Sutton,14/11/2016,6896272,"1,209.00",Hilda Mallett,26310,"Environment, Housing & Regeneration Directorate",General Office Expenses,F235
http://statistics.data.gov.uk/id/local-authority/00BF,London Borough of Sutton,14/11/2016,6896273,"1,209.00",Hilda Mallett,26310,"Environment, Housing & Regeneration Directorate",General Office Expenses,F235
http://statistics.data.gov.uk/id/local-authority/00BF,London Borough of Sutton,04/11/2016,40007485,"3,380.00",Hill House Nursing Home Ltd,17378,Peoples Services Directorate,Nursing Care - Ext Provider,G311
http://statistics.data.gov.uk/id/local-authority/00BF,London Borough of Sutton,04/11/2016,40007303,"6,565.76",HMT CARE LTD,16498,Peoples Services Directorate,Residential Care - Ext Provider,G310
http://statistics.data.gov.uk/id/local-authority/00BF,London Borough of Sutton,11/11/2016,6896633,502.60,Hobart UK Services,97098,Peoples Services Directorate,Other Equipment - Purchase,F015
http://statistics.data.gov.uk/id/local-authority/00BF,London Borough of Sutton,02/11/2016,6895209,455.00,Homes2let,28382,"Environment, Housing & Regeneration Directorate",Bed and Breakfast Accommodation,G400
http://statistics.data.gov.uk/id/local-authority/00BF,London Borough of Sutton,02/11/2016,6895210,455.00,Homes2let,28382,"Environment, Housing & Regeneration Directorate",Bed and Breakfast Accommodation,G400
http://statistics.data.gov.uk/id/local-authority/00BF,London Borough of Sutton,02/11/2016,6895216,455.00,Homes2let,28382,"Environment, Housing & Regeneration Directorate",Bed and Breakfast Accommodation,G400
http://statistics.data.gov.uk/id/local-authority/00BF,London Borough of Sutton,08/11/2016,6896172,455.00,Homes2let,28382,"Environment, Housing & Regeneration Directorate",Bed and Breakfast Accommodation,G400
http://statistics.data.gov.uk/id/local-authority/00BF,London Borough of Sutton,08/11/2016,6896175,455.00,Homes2let,28382,"Environment, Housing & Regeneration Directorate",Bed and Breakfast Accommodation,G400
http://statistics.data.gov.uk/id/local-authority/00BF,London Borough of Sutton,08/11/2016,6896179,455.00,Homes2let,28382,"Environment, Housing & Regeneration Directorate",Bed and Breakfast Accommodation,G400
http://statistics.data.gov.uk/id/local-authority/00BF,London Borough of Sutton,15/11/2016,6896512,455.00,Homes2let,28382,"Environment, Housing & Regeneration Directorate",Bed and Breakfast Accommodation,G400
http://statistics.data.gov.uk/id/local-authority/00BF,London Borough of Sutton,15/11/2016,6896519,455.00,Homes2let,28382,"Environment, Housing & Regeneration Directorate",Bed and Breakfast Accommodation,G400
http://statistics.data.gov.uk/id/local-authority/00BF,London Borough of Sutton,15/11/2016,6896521,455.00,Homes2let,28382,"Environment, Housing & Regeneration Directorate",Bed and Breakfast Accommodation,G400
http://statistics.data.gov.uk/id/local-authority/00BF,London Borough of Sutton,22/11/2016,6896788,455.00,Homes2let,28382,"Environment, Housing & Regeneration Directorate",Bed and Breakfast Accommodation,G400
http://statistics.data.gov.uk/id/local-authority/00BF,London Borough of Sutton,22/11/2016,6896789,455.00,Homes2let,28382,"Environment, Housing & Regeneration Directorate",Bed and Breakfast Accommodation,G400
http://statistics.data.gov.uk/id/local-authority/00BF,London Borough of Sutton,22/11/2016,6896825,455.00,Homes2let,28382,"Environment, Housing & Regeneration Directorate",Bed and Breakfast Accommodation,G400
http://statistics.data.gov.uk/id/local-authority/00BF,London Borough of Sutton,08/11/2016,6895669,619.44,Hopelit UK Ltd,12165,Peoples Services Directorate,Nursing Care - Ext Provider,G311
http://statistics.data.gov.uk/id/local-authority/00BF,London Borough of Sutton,04/11/2016,40007417,"2,444.00",Hopelit UK Ltd,12165,Peoples Services Directorate,Nursing Care - Ext Provider,G311
http://statistics.data.gov.uk/id/local-authority/00BF,London Borough of Sutton,04/11/2016,40007424,"3,200.00",Hopelit UK Ltd,12165,Peoples Services Directorate,Nursing Care - Ext Provider,G311
http://statistics.data.gov.uk/id/local-authority/00BF,London Borough of Sutton,04/11/2016,40007427,"3,200.00",Hopelit UK Ltd,12165,Peoples Services Directorate,Nursing Care - Ext Provider,G311
http://statistics.data.gov.uk/id/local-authority/00BF,London Borough of Sutton,04/11/2016,40007477,"3,000.00",Hopelit UK Ltd,12165,Peoples Services Directorate,Nursing Care - Ext Provider,G311
http://statistics.data.gov.uk/id/local-authority/00BF,London Borough of Sutton,04/11/2016,40007513,"3,400.00",Hopelit UK Ltd,12165,Peoples Services Directorate,Respite Care,G333
http://statistics.data.gov.uk/id/local-authority/00BF,London Borough of Sutton,04/11/2016,40007611,"2,509.20",Hopelit UK Ltd,12165,Peoples Services Directorate,Nursing Care - Ext Provider,G311
http://statistics.data.gov.uk/id/local-authority/00BF,London Borough of Sutton,01/09/2016,6895857,"4,680.08",Hounslow & Richmond Community Healthcare,25124,Peoples Services Directorate,Provider Contract Payments,F470
http://statistics.data.gov.uk/id/local-authority/00BF,London Borough of Sutton,01/09/2016,6895857,"12,716.49",Hounslow & Richmond Community Healthcare,25124,Peoples Services Directorate,Provider Contract Payments,F470
http://statistics.data.gov.uk/id/local-authority/00BF,London Borough of Sutton,01/09/2016,6895857,"7,300.43",Hounslow & Richmond Community Healthcare,25124,Peoples Services Directorate,Provider Contract Payments,F470
http://statistics.data.gov.uk/id/local-authority/00BF,London Borough of Sutton,29/11/2016,1227775,"3,125.00",Housing 21,12171,"Environment, Housing & Regeneration Directorate",Supporting People - Frail Elderly Services,H240
http://statistics.data.gov.uk/id/local-authority/00BF,London Borough of Sutton,26/10/2016,6894735,923.24,Housing 21,12171,Peoples Services Directorate,Rent - General,D650
http://statistics.data.gov.uk/id/local-authority/00BF,London Borough of Sutton,26/10/2016,6894736,996.04,Housing 21,12171,Peoples Services Directorate,Rent - General,D650
http://statistics.data.gov.uk/id/local-authority/00BF,London Borough of Sutton,27/10/2016,6895000,"21,411.00",Housing 21,12171,Peoples Services Directorate,Homecare Core Services,G336
http://statistics.data.gov.uk/id/local-authority/00BF,London Borough of Sutton,04/11/2016,6895438,"1,055.12",Housing 21,12171,Peoples Services Directorate,Rent - General,D650
http://statistics.data.gov.uk/id/local-authority/00BF,London Borough of Sutton,02/10/2016,40008970,546.75,Housing 21,12171,Peoples Services Directorate,Home Care,G334
http://statistics.data.gov.uk/id/local-authority/00BF,London Borough of Sutton,02/10/2016,40008975,486.00,Housing 21,12171,Peoples Services Directorate,Home Care,G334
http://statistics.data.gov.uk/id/local-authority/00BF,London Borough of Sutton,02/10/2016,40008980,567.00,Housing 21,12171,Peoples Services Directorate,Home Care,G334
http://statistics.data.gov.uk/id/local-authority/00BF,London Borough of Sutton,02/10/2016,40009007,756.00,Housing 21,12171,Peoples Services Directorate,Home Care,G334
http://statistics.data.gov.uk/id/local-authority/00BF,London Borough of Sutton,25/09/2016,40009276,486.00,Housing 21,12171,Peoples Services Directorate,Home Care,G334
http://statistics.data.gov.uk/id/local-authority/00BF,London Borough of Sutton,25/09/2016,40009279,567.00,Housing 21,12171,Peoples Services Directorate,Home Care,G334
http://statistics.data.gov.uk/id/local-authority/00BF,London Borough of Sutton,25/09/2016,40009410,756.00,Housing 21,12171,Peoples Services Directorate,Home Care,G334
http://statistics.data.gov.uk/id/local-authority/00BF,London Borough of Sutton,25/09/2016,40009539,546.75,Housing 21,12171,Peoples Services Directorate,Home Care,G334
http://statistics.data.gov.uk/id/local-authority/00BF,London Borough of Sutton,30/10/2016,40010761,472.50,Housing 21,12171,Peoples Services Directorate,Home Care,G334
http://statistics.data.gov.uk/id/local-authority/00BF,London Borough of Sutton,30/10/2016,40010818,546.75,Housing 21,12171,Peoples Services Directorate,Home Care,G334
http://statistics.data.gov.uk/id/local-authority/00BF,London Borough of Sutton,30/10/2016,40010824,472.50,Housing 21,12171,Peoples Services Directorate,Home Care,G334
http://statistics.data.gov.uk/id/local-authority/00BF,London Borough of Sutton,30/10/2016,40010831,560.25,Housing 21,12171,Peoples Services Directorate,Home Care,G334
http://statistics.data.gov.uk/id/local-authority/00BF,London Borough of Sutton,30/10/2016,40010904,756.00,Housing 21,12171,Peoples Services Directorate,Home Care,G334
http://statistics.data.gov.uk/id/local-authority/00BF,London Borough of Sutton,24/10/2016,6896829,999.99,Hugh Harris Ltd T/A Fresh Air Fitness,24234,"Environment, Housing & Regeneration Directorate",Repairs to Playground / Sports Equipment,F031
http://statistics.data.gov.uk/id/local-authority/00BF,London Borough of Sutton,25/10/2016,6895018,480.00,Hughes Jay & Panter LTD,99815,"Environment, Housing & Regeneration Directorate",Grants -Made,Y610
http://statistics.data.gov.uk/id/local-authority/00BF,London Borough of Sutton,05/10/2016,6895019,437.40,Hughes Jay & Panter LTD,99815,"Environment, Housing & Regeneration Directorate",Grants -Made,Y610
http://statistics.data.gov.uk/id/local-authority/00BF,London Borough of Sutton,22/04/2016,6895177,"2,870.00",Human Technics Ltd,26832,Resources Directorate,Training - Course Fees,A520
http://statistics.data.gov.uk/id/local-authority/00BF,London Borough of Sutton,08/11/2016,1226970,954.00,Humpty Dumpty Pre-School,18634,Peoples Services Directorate,PVI - Pupil Premium,G407
http://statistics.data.gov.uk/id/local-authority/00BF,London Borough of Sutton,04/11/2016,40007325,"1,963.28",Hydefall Ltd T/A Sutton Court Care Centre,23013,Peoples Services Directorate,Nursing Care - Ext Provider,G311
http://statistics.data.gov.uk/id/local-authority/00BF,London Borough of Sutton,04/11/2016,40007388,"3,400.00",Hydefall Ltd T/A Sutton Court Care Centre,23013,Peoples Services Directorate,Nursing Care - Ext Provider,G311
http://statistics.data.gov.uk/id/local-authority/00BF,London Borough of Sutton,04/11/2016,40007389,"3,400.00",Hydefall Ltd T/A Sutton Court Care Centre,23013,Peoples Services Directorate,Nursing Care - Ext Provider,G311
http://statistics.data.gov.uk/id/local-authority/00BF,London Borough of Sutton,04/11/2016,40007405,"2,444.00",Hydefall Ltd T/A Sutton Court Care Centre,23013,Peoples Services Directorate,Nursing Care - Ext Provider,G311
http://statistics.data.gov.uk/id/local-authority/00BF,London Borough of Sutton,04/11/2016,40007422,"3,303.24",Hydefall Ltd T/A Sutton Court Care Centre,23013,Peoples Services Directorate,Nursing Care - Ext Provider,G311
http://statistics.data.gov.uk/id/local-authority/00BF,London Borough of Sutton,04/11/2016,40007433,"2,467.96",Hydefall Ltd T/A Sutton Court Care Centre,23013,Peoples Services Directorate,Nursing Care - Ext Provider,G311
http://statistics.data.gov.uk/id/local-authority/00BF,London Borough of Sutton,04/11/2016,40007444,"3,340.00",Hydefall Ltd T/A Sutton Court Care Centre,23013,Peoples Services Directorate,Nursing Care - Ext Provider,G311
http://statistics.data.gov.uk/id/local-authority/00BF,London Borough of Sutton,04/11/2016,40007489,"3,400.00",Hydefall Ltd T/A Sutton Court Care Centre,23013,Peoples Services Directorate,Nursing Care - Ext Provider,G311
http://statistics.data.gov.uk/id/local-authority/00BF,London Borough of Sutton,04/11/2016,40007617,"2,406.84",Hydefall Ltd T/A Sutton Court Care Centre,23013,Peoples Services Directorate,Residential Care - Ext Provider,G310
http://statistics.data.gov.uk/id/local-authority/00BF,London Borough of Sutton,20/10/2016,6897297,"2,136.25",Hydro-Cleansing Ltd,21201,"Environment, Housing & Regeneration Directorate",Hazardous Waste Disposal,G163
http://statistics.data.gov.uk/id/local-authority/00BF,London Borough of Sutton,24/11/2016,6896894,"5,740.00",I & J Bushell Ltd,10695,"Environment, Housing & Regeneration Directorate",Nature Conservation,G014
http://statistics.data.gov.uk/id/local-authority/00BF,London Borough of Sutton,24/11/2016,6896895,"7,120.00",I & J Bushell Ltd,10695,"Environment, Housing & Regeneration Directorate",Nature Conservation,G014
http://statistics.data.gov.uk/id/local-authority/00BF,London Borough of Sutton,17/11/2016,1227379,424.66,Ian Tarr &  RM Tarr,26348,Peoples Services Directorate,Approved Lodgings,H323
http://statistics.data.gov.uk/id/local-authority/00BF,London Borough of Sutton,01/11/2016,6895164,"9,588.00",Icongrove Ltd,28854,"Environment, Housing & Regeneration Directorate",Temporary Protection - Homeless Persons,H300
http://statistics.data.gov.uk/id/local-authority/00BF,London Borough of Sutton,21/09/2016,6892302,"13,813.36",Image Retrieval (Uk) Ltd,12236,"Environment, Housing & Regeneration Directorate",Microfilm/Microfiche,F230
http://statistics.data.gov.uk/id/local-authority/00BF,London Borough of Sutton,29/09/2016,6895002,"1,316.00",Imperial College Healthcare NHS Trust,26670,Peoples Services Directorate,Provider Contract Payments,F470
http://statistics.data.gov.uk/id/local-authority/00BF,London Borough of Sutton,28/10/2016,6896340,"38,697.00",Impower Consulting Ltd,26176,Chief Executive's Directorate,Fees - Consultants (Ad Hoc),F283
http://statistics.data.gov.uk/id/local-authority/00BF,London Borough of Sutton,14/09/2016,6895333,"5,757.01",Independence Homes,16042,Peoples Services Directorate,Supported Living - Ext Provider,G306
http://statistics.data.gov.uk/id/local-authority/00BF,London Borough of Sutton,14/09/2016,6895335,"7,599.03",Independence Homes,16042,Peoples Services Directorate,Supported Living - Ext Provider,G306
http://statistics.data.gov.uk/id/local-authority/00BF,London Borough of Sutton,14/09/2016,6895336,"3,822.61",Independence Homes,16042,Peoples Services Directorate,Supported Living - Ext Provider,G306
http://statistics.data.gov.uk/id/local-authority/00BF,London Borough of Sutton,14/09/2016,6895337,"4,815.54",Independence Homes,16042,Peoples Services Directorate,Supported Living - Ext Provider,G306
http://statistics.data.gov.uk/id/local-authority/00BF,London Borough of Sutton,14/09/2016,6895338,"10,057.02",Independence Homes,16042,Peoples Services Directorate,Supported Living - Ext Provider,G306
http://statistics.data.gov.uk/id/local-authority/00BF,London Borough of Sutton,14/09/2016,6895339,"6,218.91",Independence Homes,16042,Peoples Services Directorate,Supported Living - Ext Provider,G306
http://statistics.data.gov.uk/id/local-authority/00BF,London Borough of Sutton,14/09/2016,6895340,"3,210.67",Independence Homes,16042,Peoples Services Directorate,Supported Living - Ext Provider,G306
http://statistics.data.gov.uk/id/local-authority/00BF,London Borough of Sutton,04/11/2016,40007614,"7,940.80",Independence Homes,16042,Peoples Services Directorate,Residential Care - Ext Provider,G310
http://statistics.data.gov.uk/id/local-authority/00BF,London Borough of Sutton,14/09/2016,40010541,"5,048.04",Independence Homes,16042,Peoples Services Directorate,Supported Living - Ext Provider,G306
http://statistics.data.gov.uk/id/local-authority/00BF,London Borough of Sutton,14/09/2016,40010542,"5,864.27",Independence Homes,16042,Peoples Services Directorate,Supported Living - Ext Provider,G306
http://statistics.data.gov.uk/id/local-authority/00BF,London Borough of Sutton,14/09/2016,40010581,"6,089.33",Independence Homes,16042,Peoples Services Directorate,Supported Living - Ext Provider,G306
http://statistics.data.gov.uk/id/local-authority/00BF,London Borough of Sutton,22/09/2016,40010657,"6,502.56",Independence Homes,16042,Peoples Services Directorate,Supported Living - Ext Provider,G306
http://statistics.data.gov.uk/id/local-authority/00BF,London Borough of Sutton,14/09/2016,40010663,"4,885.60",Independence Homes,16042,Peoples Services Directorate,Supported Living - Ext Provider,G306
http://statistics.data.gov.uk/id/local-authority/00BF,London Borough of Sutton,14/09/2016,40010664,"6,789.62",Independence Homes,16042,Peoples Services Directorate,Supported Living - Ext Provider,G306
http://statistics.data.gov.uk/id/local-authority/00BF,London Borough of Sutton,04/11/2016,40007602,"4,281.20",Independent Lifestyle Options,19554,Peoples Services Directorate,Residential Care - Ext Provider,G310
http://statistics.data.gov.uk/id/local-authority/00BF,London Borough of Sutton,31/08/2016,6894854,570.00,Inform Cpi Ltd,25904,Resources Directorate,Fees - Other,F299
http://statistics.data.gov.uk/id/local-authority/00BF,London Borough of Sutton,01/09/2016,6894435,980.00,Inspire Works Ltd,20554,Peoples Services Directorate,Materials - General,F100
http://statistics.data.gov.uk/id/local-authority/00BF,London Borough of Sutton,01/11/2016,6895710,"5,705.00",Inspire Works Ltd,20554,Peoples Services Directorate,Materials - General,F100
http://statistics.data.gov.uk/id/local-authority/00BF,London Borough of Sutton,01/11/2016,6895024,"4,000.00",Institute of Directors,26772,"Environment, Housing & Regeneration Directorate",Other Services,F340
http://statistics.data.gov.uk/id/local-authority/00BF,London Borough of Sutton,27/09/2016,6895543,556.29,Integrated Services Programme,17257,Peoples Services Directorate,Fostering Allowance - Respite/Emergency,H342
http://statistics.data.gov.uk/id/local-authority/00BF,London Borough of Sutton,24/10/2016,6894646,"13,248.00",Ipeople Services Ltd,27767,Peoples Services Directorate,Agency Staff - Other,A301
http://statistics.data.gov.uk/id/local-authority/00BF,London Borough of Sutton,31/10/2016,6894993,"13,248.00",Ipeople Services Ltd,27767,Peoples Services Directorate,Agency Staff - Other,A301
http://statistics.data.gov.uk/id/local-authority/00BF,London Borough of Sutton,31/10/2016,6895089,"1,470.00",It Works Ltd,25570,Resources Directorate,Recharge-Other Staff,A254
http://statistics.data.gov.uk/id/local-authority/00BF,London Borough of Sutton,08/11/2016,6895699,"1,470.00",It Works Ltd,25570,Resources Directorate,Recharge-Other Staff,A254
http://statistics.data.gov.uk/id/local-authority/00BF,London Borough of Sutton,15/11/2016,6896265,735.00,It Works Ltd,25570,Resources Directorate,Recharge-Other Staff,A254
http://statistics.data.gov.uk/id/local-authority/00BF,London Borough of Sutton,09/11/2016,6895791,"4,600.00",I-Three Management Consulting Ltd,25986,Chief Executive's Directorate,Fees - Consultants (Ad Hoc),F283
http://statistics.data.gov.uk/id/local-authority/00BF,London Borough of Sutton,19/10/2016,6896163,"10,080.00",I-Three Management Consulting Ltd,25986,Chief Executive's Directorate,Fees - Consultants (Ad Hoc),F283
http://statistics.data.gov.uk/id/local-authority/00BF,London Borough of Sutton,04/11/2016,40007390,"2,444.00",J & M L Dudhee,11401,Peoples Services Directorate,Nursing Care - Ext Provider,G311
http://statistics.data.gov.uk/id/local-authority/00BF,London Borough of Sutton,04/11/2016,40007528,"1,780.00",J & M L Dudhee,11401,Peoples Services Directorate,Interim Placements - Ext Provider,G317
